Workbook

Sheet 1. Information Sheet
U1: a | AA1: =IF(OR(F16="", F16="(if applicable)"), F14, F14 & " - " & F16) -> Oakville Hydro Electricity Distribution Inc. - Town of Oakville
M12: Version | N12: 1.1
E14: Utility Name | F14: Oakville Hydro Electricity Distribution Inc.
E16: Service Territory | F16: Town of Oakville
E18: Assigned EB Number | F18: EB-2014-0102
E20: Name of Contact and Title | F20: Maryanne Wilson, Manager, Regulatory Affairs
E22: Phone Number | F22: 905-825-4422
E24: Email Address | F24: mwilson@oakvillehydro.com
E26: We are applying for rates effective | F26: 2015-01-01
E28: Rate-Setting Method | F28: Price Cap IR
A30: Please indicate in which Rate Year the Group 1 accounts were last cleared1 | F30: 2014
A32: Please indicate the last Cost of Service Re-Basing Year | F32: 2014
B35: Notes
C37: Pale green cells represent input cells.
C39: Pale blue cells represent drop-down lists. The applicant should select the appropriate item from the drop-down list.
C41: White cells contain fixed values, automatically generated values or formulae.
A44: Note: 1. Rate year of application

Sheet 2. Related Links
A13: ● | B13: Ontario Energy Board's 2015 Electricity Distribution Rates Webpage
A15: ● | B15: An updated version of Chapter 3 of the Filing Requirements for Electricity Distribution Rate Applications for 2015 rates.

Sheet 3. Rate Class Selection
A12: Select the appropriate rate classes as they appear on your most recent Board-Approved Tariff of Rates and Charges, including the MicroFit Class.
A14: How many classes are on your most recent Board-Approved Tariff of Rates and Charges? | J14: 9
A16: Select Your Rate Classes from the Blue Cells below. Please ensure that a rate class is assigned to each shaded cell.
B18: Rate Class Classification | Q18: # of duplicates
A19: 1 | B19: RESIDENTIAL | P19: =COUNTIF($B$19:$J$40, B19) -> 1 | Q19: =COUNTIF(P19:P40, 2)/2 -> 0
A20: 2 | B20: GENERAL SERVICE LESS THAN 50 KW | P20: =COUNTIF($B$19:$J$40, B20) -> 1
A21: 3 | B21: GENERAL SERVICE 50 TO 1,000 KW | P21: 1
A22: 4 | B22: GENERAL SERVICE GREATER THAN 1,000 KW | P22: 1
A23: 5 | B23: UNMETERED SCATTERED LOAD | P23: 1
A24: 6 | B24: SENTINEL LIGHTING | P24: 1
A25: 7 | B25: STREET LIGHTING | P25: 1
A26: 8 | B26: EMBEDDED DISTRIBUTOR | P26: 1
A27: 9 | B27: microFIT | P27: 1
P28: 0
P29: 0
P30: 0
P31: 0
P32: 0
P33: 0

Sheet 4. Current Tariff Schedule
Z1: 3 | AA1: January | AB1: ≥
AA2: February
AA3: March
AA4: April
AA5: May
AA6: June
AA7: July
AA8: August
AA9: September
AA10: October
AA11: November
B12: For each class, Applicants are required to copy and paste the class descriptions (located directly under the class name) and the description of the applicability of those rates (description is found under the class name and directly under the word "APPLICATION"). By using the drop-down lists located under the column labeled "Rate Description", please select the descriptions of the rates and charges that BEST MATCHES the descriptions on your most recent Board-Approved Tariff of Rates and Charges. If the description is not found in the drop-down list, please enter the description in the green cells under the correct class exactly as it appears on the tariff. Please do not enter more than one "Service Charge" for each class for which a base monthly fixed charge applies. | AA12: December
B21: =IF(ISBLANK('1. Information Sheet'!F14), "Please Choose Distributor Name on Sheet 1", '1. Information Sheet'!F14) -> Oakville Hydro Electricity Distribution Inc.
B22: TARIFF OF RATES AND CHARGES
A24: RESIDENTIAL | B24: RESIDENTIAL Service Classification
A25: RESIDENTIAL
A26: RESIDENTIAL | B26: This class refers to the supply of electrical energy to detached and semi-detached residential buildings as well as farms as defined in the local zoning by-laws. Where the residential dwelling comprises the entire electrical load of a farm, it is defined as a residential service. Where electricity is provided to a combined residential and business (including agricultural usage) and the service does not provide for separate metering, the classification shall be at the discretion of Oakville Hydro and shall be based on such considerations as the estimated predominant consumption. Further servicing details are available in the distributor’s Conditions of Service.
A27: RESIDENTIAL
A28: RESIDENTIAL
A29: RESIDENTIAL
A30: RESIDENTIAL
A31: RESIDENTIAL
A32: RESIDENTIAL | B32: APPLICATION
A33: RESIDENTIAL
A34: RESIDENTIAL | B34: The application of these rates and charges shall be in accordance with the Licence of the Distributor and any Code or Order of the Board, and amendments thereto as approved by the Board, which may be applicable to the administration of this schedule.
A35: RESIDENTIAL
A36: RESIDENTIAL
A37: RESIDENTIAL | B37: No rates and charges for the distribution of electricity and charges to meet the costs of any work or service done or furnished for the purpose of the distribution of electricity shall be made except as permitted by this schedule, unless required by the Distributor’s Licence or a Code or Order of the Board, and amendments thereto as approved by the Board, or as specified herein.
A38: RESIDENTIAL
A39: RESIDENTIAL
A40: RESIDENTIAL
A41: RESIDENTIAL | B41: Unless specifically noted, this schedule does not contain any charges for the electricity commodity, be it under the Regulated Price Plan, a contract with a retailer or the wholesale market price, as applicable. In addition, the charges in the MONTHLY RATES AND CHARGES – Regulatory Component of this schedule do not apply to a customer that is an embedded wholesale market participant
A42: RESIDENTIAL
A43: RESIDENTIAL
A44: RESIDENTIAL | B44: It should be noted that this schedule does not list any charges or assessments that are required by law to be charged by a distributor and that are not subject to Board approval, such as the Debt Retirement Charge, charges for Ministry of Energy Conservation and Renewable Energy Program, the Provincial Benefit and any applicable taxes.
A45: RESIDENTIAL
A46: RESIDENTIAL
A47: RESIDENTIAL
A48: RESIDENTIAL | B48: MONTHLY RATES AND CHARGES - Delivery Component (If applicable, Effective Date MUST be included in rate description)
A49: RESIDENTIAL | B49: Service Charge | H49: $ | I49: 14.42 | K49: 1_C_MSC
A50: RESIDENTIAL | B50: Rate Rider for Smart Metering Entity Charge - effective until October 31, 2018 | H50: $ | I50: 0.79 | K50: 1_C_SMEC | L50: 2018-10-31
A51: RESIDENTIAL | B51: Distribution Volumetric Rate | H51: $/kWh | I51: 0.0157 | K51: 1_C_VC_1
A52: RESIDENTIAL | B52: Low Voltage Service Rate | H52: $/kWh | I52: 0.0004 | K52: 1_C_LVrate
A53: RESIDENTIAL | B53: Retail Transmission Rate - Network Service Rate | H53: $/kWh | I53: 0.0079 | K53: 1_C_RTSR_Network
A54: RESIDENTIAL | B54: Retail Transmission Rate - Line and Transformation Connection Service Rate | H54: $/kWh | I54: 0.0053 | K54: 1_C_RTSR_Connection
A55: RESIDENTIAL
A56: RESIDENTIAL
A57: RESIDENTIAL
A58: RESIDENTIAL
A59: RESIDENTIAL
A60: RESIDENTIAL
A61: RESIDENTIAL
A62: RESIDENTIAL
A63: RESIDENTIAL
A64: RESIDENTIAL
A65: RESIDENTIAL
A66: RESIDENTIAL
A67: RESIDENTIAL
A68: RESIDENTIAL
A69: RESIDENTIAL
A70: RESIDENTIAL
A71: RESIDENTIAL
A72: RESIDENTIAL
A73: RESIDENTIAL | B73: Rate Rider for Recovery of Stranded Meter Assets - effective until April 30, 2019 | H73: $ | I73: 0.77 | K73: 1_C_MSC_Rate_Rider_2 | L73: 2019-04-30
A74: RESIDENTIAL | B74: Rate Rider for Disposition of Deferral/Variance Accounts (2014) - effective until April 30, 2015 | H74: $/kWh | I74: -0.0005 | K74: 1_C_VC_DEFVAR_kWh_1 | L74: 2015-04-30
A75: RESIDENTIAL | B75: Rate Rider for Disposition of Global Adjustment Sub-Account (2014) - effective until April 30, 2015 Applicable only for Non-RPP Customers | H75: $/kWh | I75: -0.0016 | K75: 1_C_VC_GA_Rate_Rider_kWh_1 | L75: 2015-04-30
A76: RESIDENTIAL | B76: Rate Rider for Disposition of Account 1576 - effective until April 30, 2015 | H76: $/kWh | I76: -0.0006 | K76: 1_C_VC_Rate_Rider_kWh_2 | L76: 2015-04-30
A77: RESIDENTIAL | B77: Rate Rider for Disposition of CGAAP CWIP DIfferential - effective until April 30, 2015 | H77: $/kWh | I77: 0.0003 | K77: 1_C_VC_Rate_Rider_kWh_3 | L77: 2015-04-30
A78: RESIDENTIAL | B78: Rate Rider for Disposition of Incremental Capital Expenditures - effective until April 30, 2015 | H78: $/kWh | I78: 0.0002 | K78: 1_C_VC_Rate_Rider_kWh_4 | L78: 2015-04-30
A79: RESIDENTIAL | B79: MONTHLY RATES AND CHARGES - Regulatory Component
A80: RESIDENTIAL
A81: RESIDENTIAL | B81: Wholesale Market Service Rate | H81: $/kWh | I81: 0.0044 | K81: 1_C_WMSR
A82: RESIDENTIAL | B82: Rural or Remote Electricity Rate Protection Charge (RRRP) | H82: $/kWh | I82: 0.0013 | K82: 1_C_RRPC
A83: RESIDENTIAL | B83: Standard Supply Service - Administrative Charge (if applicable) | H83: $ | I83: 0.25 | K83: 1_C_SSS
A84: RESIDENTIAL
A87: GENERAL SERVICE LESS THAN 50 KW | B87: GENERAL SERVICE LESS THAN 50 KW Service Classification
A88: GENERAL SERVICE LESS THAN 50 KW
A89: GENERAL SERVICE LESS THAN 50 KW | B89: This class refers to customers who do not qualify as residential customers and whose monthly average peak demand in the preceding twelve months is less than 50kW. For new customers without prior billing history, the peak demand will be based on 90% of the proposed capacity or installed transformation. Note: Apartment buildings or multi-unit complexes and subdivisions that are not individually metered are treated as General Service. Further servicing details are available in the distributor’s Conditions of Service.
A90: GENERAL SERVICE LESS THAN 50 KW
A91: GENERAL SERVICE LESS THAN 50 KW
A92: GENERAL SERVICE LESS THAN 50 KW
A93: GENERAL SERVICE LESS THAN 50 KW
A94: GENERAL SERVICE LESS THAN 50 KW
A95: GENERAL SERVICE LESS THAN 50 KW | B95: APPLICATION
A96: GENERAL SERVICE LESS THAN 50 KW
A97: GENERAL SERVICE LESS THAN 50 KW | B97: The application of these rates and charges shall be in accordance with the Licence of the Distributor and any Code or Order of the Board, and amendments thereto as approved by the Board, which may be applicable to the administration of this schedule
A98: GENERAL SERVICE LESS THAN 50 KW
A99: GENERAL SERVICE LESS THAN 50 KW
A100: GENERAL SERVICE LESS THAN 50 KW | B100: No rates and charges for the distribution of electricity and charges to meet the costs of any work or service done or furnished for the purpose of the distribution of electricity shall be made except as permitted by this schedule, unless required by the Distributor’s Licence or a Code or Order of the Board, and amendments thereto as approved by the Board, or as specified herein.
A101: GENERAL SERVICE LESS THAN 50 KW
A102: GENERAL SERVICE LESS THAN 50 KW
A103: GENERAL SERVICE LESS THAN 50 KW
A104: GENERAL SERVICE LESS THAN 50 KW | B104: Unless specifically noted, this schedule does not contain any charges for the electricity commodity, be it under the Regulated Price Plan, a contract with a retailer or the wholesale market price, as applicable. In addition, the charges in the MONTHLY RATES AND CHARGES – Regulatory Component of this schedule do not apply to a customer that is an embedded wholesale market participant
A105: GENERAL SERVICE LESS THAN 50 KW
A106: GENERAL SERVICE LESS THAN 50 KW
A107: GENERAL SERVICE LESS THAN 50 KW | B107: It should be noted that this schedule does not list any charges, assessments or credits that are required by law to be invoiced by a distributor and that are not subject to Board approval, such as the Debt Retirement Charge, the Global Adjustment, the Ontario Clean Energy Benefit and the HST.
A108: GENERAL SERVICE LESS THAN 50 KW
A109: GENERAL SERVICE LESS THAN 50 KW
A110: GENERAL SERVICE LESS THAN 50 KW
A111: GENERAL SERVICE LESS THAN 50 KW | B111: MONTHLY RATES AND CHARGES - Delivery Component (If applicable, Effective Date MUST be included in rate description)
A112: GENERAL SERVICE LESS THAN 50 KW | B112: Service Charge | H112: $ | I112: 34.71 | K112: 2_C_MSC
A113: GENERAL SERVICE LESS THAN 50 KW | B113: Rate Rider for Smart Metering Entity Charge - effective until October 31, 2018 | H113: $ | I113: 0.79 | K113: 2_C_SMEC | L113: 2018-10-31
A114: GENERAL SERVICE LESS THAN 50 KW | B114: Distribution Volumetric Rate | H114: $/kWh | I114: 0.0153 | K114: 2_C_VC_1
A115: GENERAL SERVICE LESS THAN 50 KW | B115: Low Voltage Service Rate | H115: $/kWh | I115: 0.0003 | K115: 2_C_LVrate
A116: GENERAL SERVICE LESS THAN 50 KW | B116: Retail Transmission Rate - Network Service Rate | H116: $/kWh | I116: 0.0073 | K116: 2_C_RTSR_Network
A117: GENERAL SERVICE LESS THAN 50 KW | B117: Retail Transmission Rate - Line and Transformation Connection Service Rate | H117: $/kWh | I117: 0.0048 | K117: 2_C_RTSR_Connection
A118: GENERAL SERVICE LESS THAN 50 KW
A119: GENERAL SERVICE LESS THAN 50 KW
A120: GENERAL SERVICE LESS THAN 50 KW
A121: GENERAL SERVICE LESS THAN 50 KW
A122: GENERAL SERVICE LESS THAN 50 KW
A123: GENERAL SERVICE LESS THAN 50 KW
A124: GENERAL SERVICE LESS THAN 50 KW
A125: GENERAL SERVICE LESS THAN 50 KW
A126: GENERAL SERVICE LESS THAN 50 KW
A127: GENERAL SERVICE LESS THAN 50 KW
A128: GENERAL SERVICE LESS THAN 50 KW
A129: GENERAL SERVICE LESS THAN 50 KW
A130: GENERAL SERVICE LESS THAN 50 KW
A131: GENERAL SERVICE LESS THAN 50 KW
A132: GENERAL SERVICE LESS THAN 50 KW
A133: GENERAL SERVICE LESS THAN 50 KW
A134: GENERAL SERVICE LESS THAN 50 KW
A135: GENERAL SERVICE LESS THAN 50 KW
A136: GENERAL SERVICE LESS THAN 50 KW | B136: Rate Rider for Recovery of Stranded Meter Assets - effective until April 30, 2019 | H136: $ | I136: 2.27 | K136: 2_C_MSC_Rate_Rider_2 | L136: 2019-04-30
A137: GENERAL SERVICE LESS THAN 50 KW | B137: Rate Rider for Disposition of Deferral/Variance Accounts (2014) - effective until April 30, 2015 | H137: $/kWh | I137: -0.0007 | K137: 2_C_VC_DEFVAR_kWh_1 | L137: 2015-04-30
A138: GENERAL SERVICE LESS THAN 50 KW | B138: Rate Rider for Disposition of Global Adjustment Sub-Account (2014) - effective until April 30, 2015 Applicable only for Non-RPP Customers | H138: $/kWh | I138: -0.0016 | K138: 2_C_VC_GA_Rate_Rider_kWh_1 | L138: 2015-04-30
A139: GENERAL SERVICE LESS THAN 50 KW | B139: Rate Rider for Disposition of Account 1576 - effective until April 30, 2015 | H139: $/kWh | I139: -0.0006 | K139: 2_C_VC_Rate_Rider_kWh_2 | L139: 2015-04-30
A140: GENERAL SERVICE LESS THAN 50 KW | B140: Rate Rider for Disposition of CGAAP CWIP DIfferential - effective until April 30, 2015 | H140: $/kWh | I140: 0.0003 | K140: 2_C_VC_Rate_Rider_kWh_3 | L140: 2015-04-30
A141: GENERAL SERVICE LESS THAN 50 KW | B141: Rate Rider for Disposition of Incremental Capital Expenditures - effective until April 30, 2015 | H141: $/kWh | I141: 0.0002 | K141: 2_C_VC_Rate_Rider_kWh_4 | L141: 2015-04-30
A142: GENERAL SERVICE LESS THAN 50 KW | B142: MONTHLY RATES AND CHARGES - Regulatory Component
A143: GENERAL SERVICE LESS THAN 50 KW
A144: GENERAL SERVICE LESS THAN 50 KW | B144: Wholesale Market Service Rate | H144: =H81 -> $/kWh | I144: 0.0044 | K144: 2_C_WMSR
A145: GENERAL SERVICE LESS THAN 50 KW | B145: Rural or Remote Electricity Rate Protection Charge (RRRP) | H145: $/kWh | I145: 0.0013 | K145: 2_C_RRPC
A146: GENERAL SERVICE LESS THAN 50 KW | B146: Standard Supply Service - Administrative Charge (if applicable) | H146: $ | I146: 0.25 | K146: 2_C_SSS
A147: GENERAL SERVICE LESS THAN 50 KW
A150: GENERAL SERVICE 50 TO 1,000 KW | B150: GENERAL SERVICE 50 TO 1,000 KW Service Classification
A151: GENERAL SERVICE 50 TO 1,000 KW
A152: GENERAL SERVICE 50 TO 1,000 KW | B152: This class refers to customers who do not qualify as residential customers whose monthly average peak demand in the preceding twelve months is in the range of 50 to 999 kW. There are two sub categories within this class, those being non-interval and interval metered accounts. For new customers without prior billing history, the peak demand will be based on 90% of the proposed capacity or installed transformation. Further servicing details are available in the distributor’s Conditions of Service.
A153: GENERAL SERVICE 50 TO 1,000 KW
A154: GENERAL SERVICE 50 TO 1,000 KW
A155: GENERAL SERVICE 50 TO 1,000 KW
A156: GENERAL SERVICE 50 TO 1,000 KW
A157: GENERAL SERVICE 50 TO 1,000 KW
A158: GENERAL SERVICE 50 TO 1,000 KW | B158: APPLICATION
A159: GENERAL SERVICE 50 TO 1,000 KW
A160: GENERAL SERVICE 50 TO 1,000 KW | B160: The application of these rates and charges shall be in accordance with the Licence of the Distributor and any Code or Order of the Board, and amendments thereto as approved by the Board, which may be applicable to the administration of this schedule.
A161: GENERAL SERVICE 50 TO 1,000 KW
A162: GENERAL SERVICE 50 TO 1,000 KW
A163: GENERAL SERVICE 50 TO 1,000 KW | B163: No rates and charges for the distribution of electricity and charges to meet the costs of any work or service done or furnished for the purpose of the distribution of electricity shall be made except as permitted by this schedule, unless required by the Distributor’s Licence or a Code or Order of the Board, and amendments thereto as approved by the Board, or as specified herein.
A164: GENERAL SERVICE 50 TO 1,000 KW
A165: GENERAL SERVICE 50 TO 1,000 KW
A166: GENERAL SERVICE 50 TO 1,000 KW
A167: GENERAL SERVICE 50 TO 1,000 KW | B167: Unless specifically noted, this schedule does not contain any charges for the electricity commodity, be it under the Regulated Price Plan, a contract with a retailer or the wholesale market price, as applicable. In addition, the charges in the MONTHLY RATES AND CHARGES – Regulatory Component of this schedule do not apply to a customer that is an embedded wholesale market participant.
A168: GENERAL SERVICE 50 TO 1,000 KW
A169: GENERAL SERVICE 50 TO 1,000 KW
A170: GENERAL SERVICE 50 TO 1,000 KW | B170: It should be noted that this schedule does not list any charges, assessments or credits that are required by law to be invoiced by a distributor and that are not subject to Board approval, such as the Debt Retirement Charge, the Global Adjustment, the Ontario Clean Energy Benefit and the HST
A171: GENERAL SERVICE 50 TO 1,000 KW
A172: GENERAL SERVICE 50 TO 1,000 KW
A173: GENERAL SERVICE 50 TO 1,000 KW
A174: GENERAL SERVICE 50 TO 1,000 KW | B174: MONTHLY RATES AND CHARGES - Delivery Component (If applicable, Effective Date MUST be included in rate description)
A175: GENERAL SERVICE 50 TO 1,000 KW | B175: Service Charge | H175: $ | I175: 118.45 | K175: 3_C_MSC
A176: GENERAL SERVICE 50 TO 1,000 KW | B176: Distribution Volumetric Rate | H176: $/kW | I176: 4.632 | K176: 3_C_VC_1
A177: GENERAL SERVICE 50 TO 1,000 KW | B177: Low Voltage Service Rate | H177: $/kW | I177: 0.1313 | K177: 3_C_LVrate
A178: GENERAL SERVICE 50 TO 1,000 KW | B178: Retail Transmission Rate - Network Service Rate | H178: $/kW | I178: 2.7441 | K178: 3_C_RTSR_Network
A179: GENERAL SERVICE 50 TO 1,000 KW | B179: Retail Transmission Rate - Network Service Rate - Interval Metered | H179: $/kW | I179: 2.8328 | K179: 3_C_RTSR_Network_Interval
A180: GENERAL SERVICE 50 TO 1,000 KW | B180: Retail Transmission Rate - Line and Transformation Connection Service Rate | H180: $/kW | I180: 1.8182 | K180: 3_C_RTSR_Connection
A181: GENERAL SERVICE 50 TO 1,000 KW | B181: Retail Transmission Rate - Line and Transformation Connection Service Rate - Interval Metered | H181: $/kW | I181: 1.8771 | K181: 3_C_RTSR_Connection_Interval
A182: GENERAL SERVICE 50 TO 1,000 KW
A183: GENERAL SERVICE 50 TO 1,000 KW
A184: GENERAL SERVICE 50 TO 1,000 KW
A185: GENERAL SERVICE 50 TO 1,000 KW
A186: GENERAL SERVICE 50 TO 1,000 KW
A187: GENERAL SERVICE 50 TO 1,000 KW
A188: GENERAL SERVICE 50 TO 1,000 KW
A189: GENERAL SERVICE 50 TO 1,000 KW
A190: GENERAL SERVICE 50 TO 1,000 KW
A191: GENERAL SERVICE 50 TO 1,000 KW
A192: GENERAL SERVICE 50 TO 1,000 KW
A193: GENERAL SERVICE 50 TO 1,000 KW
A194: GENERAL SERVICE 50 TO 1,000 KW
A195: GENERAL SERVICE 50 TO 1,000 KW
A196: GENERAL SERVICE 50 TO 1,000 KW
A197: GENERAL SERVICE 50 TO 1,000 KW
A198: GENERAL SERVICE 50 TO 1,000 KW
A199: GENERAL SERVICE 50 TO 1,000 KW | B199: Rate Rider for Disposition of Deferral/Variance Accounts (2014) - effective until April 30, 2015 | H199: $/kW | I199: -0.5227 | K199: 3_C_VC_DEFVAR_kW_1 | L199: 2015-04-30
A200: GENERAL SERVICE 50 TO 1,000 KW | B200: Rate Rider for Disposition of Global Adjustment Sub-Account (2014) - effective until April 30, 2015 Applicable only for Non-RPP Customers | H200: $/kW | I200: -0.5833 | K200: 3_C_VC_GA_Rate_Rider_kW_1 | L200: 2015-04-30
A201: GENERAL SERVICE 50 TO 1,000 KW | B201: Rate Rider for Disposition of Account 1576 - effective until April 30, 2015 | H201: $/kW | I201: -0.2105 | K201: 3_C_VC_Rate_Rider_kW_2 | L201: 2015-04-30
A202: GENERAL SERVICE 50 TO 1,000 KW | B202: Rate Rider for Disposition of CGAAP CWIP DIfferential - effective until April 30, 2015 | H202: $/kW | I202: 0.1138 | K202: 3_C_VC_Rate_Rider_kW_3 | L202: 2015-04-30
A203: GENERAL SERVICE 50 TO 1,000 KW | B203: Rate Rider for Disposition of Incremental Capital Expenditures - effective until April 30, 2015 | H203: $/kW | I203: 0.0682 | K203: 3_C_VC_Rate_Rider_kW_4 | L203: 2015-04-30
A204: GENERAL SERVICE 50 TO 1,000 KW
A205: GENERAL SERVICE 50 TO 1,000 KW | B205: MONTHLY RATES AND CHARGES - Regulatory Component
A206: GENERAL SERVICE 50 TO 1,000 KW
A207: GENERAL SERVICE 50 TO 1,000 KW | B207: Wholesale Market Service Rate | H207: =H81 -> $/kWh | I207: 0.0044 | K207: 3_C_WMSR
A208: GENERAL SERVICE 50 TO 1,000 KW | B208: Rural or Remote Electricity Rate Protection Charge (RRRP) | H208: $/kWh | I208: 0.0013 | K208: 3_C_RRPC
A209: GENERAL SERVICE 50 TO 1,000 KW | B209: Standard Supply Service - Administrative Charge (if applicable) | H209: $ | I209: 0.25 | K209: 3_C_SSS
A210: GENERAL SERVICE 50 TO 1,000 KW
A213: GENERAL SERVICE GREATER THAN 1,000 KW | B213: GENERAL SERVICE GREATER THAN 1,000 KW Service Classification
A214: GENERAL SERVICE GREATER THAN 1,000 KW
A215: GENERAL SERVICE GREATER THAN 1,000 KW | B215: This class refers to customers who do not qualify as residential customers whose monthly average peak demand in the preceding twelve months is equal to or greater than 1,000 kW. These accounts will all be interval metered accounts. For new customers without prior billing history, the peak demand will be based on 90% of the proposed capacity or installed transformation. Further servicing details are available in the distributor’s Conditions of Service.
... 357 more rows

Sheet 4. Hidden (hidden)
M1: Current Rate Classes | N1: Changed to Rate Classes | O1: Values in A that are NOT in B | P1: Values in B that are Not in A | Q1: Count of A | R1: Count of B
M2: RESIDENTIAL | N2: RESIDENTIAL | Q2: 9 | R2: 9
M3: GENERAL SERVICE LESS THAN 50 KW | N3: GENERAL SERVICE LESS THAN 50 KW
M4: GENERAL SERVICE 50 TO 1,000 KW | N4: GENERAL SERVICE 50 TO 1,000 KW
M5: GENERAL SERVICE GREATER THAN 1,000 KW | N5: GENERAL SERVICE GREATER THAN 1,000 KW
M6: UNMETERED SCATTERED LOAD | N6: UNMETERED SCATTERED LOAD
M7: SENTINEL LIGHTING | N7: SENTINEL LIGHTING
M8: STREET LIGHTING | N8: STREET LIGHTING
M9: EMBEDDED DISTRIBUTOR | N9: EMBEDDED DISTRIBUTOR
M10: microFIT | N10: microFIT
A24: RESIDENTIAL | B24: RESIDENTIAL Service Classification
A25: RESIDENTIAL
A26: RESIDENTIAL
A27: RESIDENTIAL
A28: RESIDENTIAL
A29: RESIDENTIAL
A30: RESIDENTIAL
A31: RESIDENTIAL
A32: RESIDENTIAL | B32: APPLICATION
A33: RESIDENTIAL
A34: RESIDENTIAL
A35: RESIDENTIAL
A36: RESIDENTIAL
A37: RESIDENTIAL
A38: RESIDENTIAL
A39: RESIDENTIAL
A40: RESIDENTIAL
A41: RESIDENTIAL
A42: RESIDENTIAL
A43: RESIDENTIAL
A44: RESIDENTIAL
A45: RESIDENTIAL
A46: RESIDENTIAL
A47: RESIDENTIAL
A48: RESIDENTIAL | B48: MONTHLY RATES AND CHARGES - Delivery Component (If applicable, Effective Date MUST be included in rate description)
A49: RESIDENTIAL
A50: RESIDENTIAL
A51: RESIDENTIAL
A52: RESIDENTIAL
A53: RESIDENTIAL
A54: RESIDENTIAL
A55: RESIDENTIAL
A56: RESIDENTIAL
A57: RESIDENTIAL
A58: RESIDENTIAL
A59: RESIDENTIAL
A60: RESIDENTIAL
A61: RESIDENTIAL
A62: RESIDENTIAL
A63: RESIDENTIAL
A64: RESIDENTIAL
A65: RESIDENTIAL
A66: RESIDENTIAL
A67: RESIDENTIAL
A68: RESIDENTIAL
A69: RESIDENTIAL
A70: RESIDENTIAL
A71: RESIDENTIAL
A72: RESIDENTIAL
A73: RESIDENTIAL
A74: RESIDENTIAL
A75: RESIDENTIAL
A76: RESIDENTIAL
A77: RESIDENTIAL
A78: RESIDENTIAL
A79: RESIDENTIAL | B79: MONTHLY RATES AND CHARGES - Regulatory Component
A80: RESIDENTIAL
A81: RESIDENTIAL | B81: Wholesale Market Service Rate | H81: $/kWh | I81: 0.0044
A82: RESIDENTIAL | B82: Rural or Remote Electricity Rate Protection Charge (RRRP) | H82: $/kWh | I82: 0.0013
A83: RESIDENTIAL | B83: Standard Supply Service - Administrative Charge (if applicable) | H83: $ | I83: 0.25
A84: RESIDENTIAL
A87: GENERAL SERVICE 50 TO 999 KW | B87: GENERAL SERVICE 50 TO 999 KW Service Classification
A88: GENERAL SERVICE 50 TO 999 KW
A89: GENERAL SERVICE 50 TO 999 KW
A90: GENERAL SERVICE 50 TO 999 KW
A91: GENERAL SERVICE 50 TO 999 KW
A92: GENERAL SERVICE 50 TO 999 KW
A93: GENERAL SERVICE 50 TO 999 KW
A94: GENERAL SERVICE 50 TO 999 KW
A95: GENERAL SERVICE 50 TO 999 KW | B95: APPLICATION
A96: GENERAL SERVICE 50 TO 999 KW
A97: GENERAL SERVICE 50 TO 999 KW
A98: GENERAL SERVICE 50 TO 999 KW
A99: GENERAL SERVICE 50 TO 999 KW
A100: GENERAL SERVICE 50 TO 999 KW
A101: GENERAL SERVICE 50 TO 999 KW
A102: GENERAL SERVICE 50 TO 999 KW
A103: GENERAL SERVICE 50 TO 999 KW
A104: GENERAL SERVICE 50 TO 999 KW
A105: GENERAL SERVICE 50 TO 999 KW
A106: GENERAL SERVICE 50 TO 999 KW
A107: GENERAL SERVICE 50 TO 999 KW
A108: GENERAL SERVICE 50 TO 999 KW
A109: GENERAL SERVICE 50 TO 999 KW
A110: GENERAL SERVICE 50 TO 999 KW
A111: GENERAL SERVICE 50 TO 999 KW | B111: MONTHLY RATES AND CHARGES - Delivery Component (If applicable, Effective Date MUST be included in rate description)
A112: GENERAL SERVICE 50 TO 999 KW
A113: GENERAL SERVICE 50 TO 999 KW
A114: GENERAL SERVICE 50 TO 999 KW
A115: GENERAL SERVICE 50 TO 999 KW
A116: GENERAL SERVICE 50 TO 999 KW
A117: GENERAL SERVICE 50 TO 999 KW
A118: GENERAL SERVICE 50 TO 999 KW
A119: GENERAL SERVICE 50 TO 999 KW
A120: GENERAL SERVICE 50 TO 999 KW
A121: GENERAL SERVICE 50 TO 999 KW
A122: GENERAL SERVICE 50 TO 999 KW
A123: GENERAL SERVICE 50 TO 999 KW
A124: GENERAL SERVICE 50 TO 999 KW
A125: GENERAL SERVICE 50 TO 999 KW
A126: GENERAL SERVICE 50 TO 999 KW
A127: GENERAL SERVICE 50 TO 999 KW
A128: GENERAL SERVICE 50 TO 999 KW
A129: GENERAL SERVICE 50 TO 999 KW
A130: GENERAL SERVICE 50 TO 999 KW
A131: GENERAL SERVICE 50 TO 999 KW
A132: GENERAL SERVICE 50 TO 999 KW
A133: GENERAL SERVICE 50 TO 999 KW
A134: GENERAL SERVICE 50 TO 999 KW
A135: GENERAL SERVICE 50 TO 999 KW
A136: GENERAL SERVICE 50 TO 999 KW
A137: GENERAL SERVICE 50 TO 999 KW
A138: GENERAL SERVICE 50 TO 999 KW
A139: GENERAL SERVICE 50 TO 999 KW
A140: GENERAL SERVICE 50 TO 999 KW
A141: GENERAL SERVICE 50 TO 999 KW
A142: GENERAL SERVICE 50 TO 999 KW | B142: MONTHLY RATES AND CHARGES - Regulatory Component
A143: GENERAL SERVICE 50 TO 999 KW
A144: GENERAL SERVICE 50 TO 999 KW | B144: Wholesale Market Service Rate | H144: $/kWh | I144: 0.0044
A145: GENERAL SERVICE 50 TO 999 KW | B145: Rural or Remote Electricity Rate Protection Charge (RRRP) | H145: $/kWh | I145: 0.0013
A146: GENERAL SERVICE 50 TO 999 KW | B146: Standard Supply Service - Administrative Charge (if applicable) | H146: $ | I146: 0.25
A147: GENERAL SERVICE 50 TO 999 KW
A150: STREET LIGHTING | B150: STREET LIGHTING Service Classification
A151: STREET LIGHTING
A152: STREET LIGHTING
A153: STREET LIGHTING
A154: STREET LIGHTING
A155: STREET LIGHTING
A156: STREET LIGHTING
A157: STREET LIGHTING
A158: STREET LIGHTING | B158: APPLICATION
A159: STREET LIGHTING
A160: STREET LIGHTING
A161: STREET LIGHTING
A162: STREET LIGHTING
A163: STREET LIGHTING
A164: STREET LIGHTING
A165: STREET LIGHTING
A166: STREET LIGHTING
A167: STREET LIGHTING
A168: STREET LIGHTING
A169: STREET LIGHTING
A170: STREET LIGHTING
A171: STREET LIGHTING
A172: STREET LIGHTING
A173: STREET LIGHTING
A174: STREET LIGHTING | B174: MONTHLY RATES AND CHARGES - Delivery Component (If applicable, Effective Date MUST be included in rate description)
A175: STREET LIGHTING
A176: STREET LIGHTING
A177: STREET LIGHTING
A178: STREET LIGHTING
A179: STREET LIGHTING
A180: STREET LIGHTING
A181: STREET LIGHTING
A182: STREET LIGHTING
A183: STREET LIGHTING
A184: STREET LIGHTING
A185: STREET LIGHTING
A186: STREET LIGHTING
A187: STREET LIGHTING
A188: STREET LIGHTING
A189: STREET LIGHTING
A190: STREET LIGHTING
A191: STREET LIGHTING
A192: STREET LIGHTING
A193: STREET LIGHTING
A194: STREET LIGHTING
A195: STREET LIGHTING
A196: STREET LIGHTING
A197: STREET LIGHTING
A198: STREET LIGHTING
A199: STREET LIGHTING
A200: STREET LIGHTING
A201: STREET LIGHTING
A202: STREET LIGHTING
A203: STREET LIGHTING
A204: STREET LIGHTING
A205: STREET LIGHTING | B205: MONTHLY RATES AND CHARGES - Regulatory Component
A206: STREET LIGHTING
A207: STREET LIGHTING | B207: Wholesale Market Service Rate | H207: $/kWh | I207: 0.0044
A208: STREET LIGHTING | B208: Rural or Remote Electricity Rate Protection Charge (RRRP) | H208: $/kWh | I208: 0.0013
A209: STREET LIGHTING | B209: Standard Supply Service - Administrative Charge (if applicable) | H209: $ | I209: 0.25
A210: STREET LIGHTING

Sheet 5. 2014 Continuity Schedule
C15: Please complete the following continuity schedule for the following Deferral / Variance Accounts. Enter information into green cells only. If you have received approval to dispose of balances from prior years, the starting point for entries in the 2015 DVA schedule below will be the balance sheet date as per your G/L for which you received approval. For example, if in the 2014 EDR process (CoS or IRM) you received approval for the December 31, 2012 balances, the starting point for your entries below should be the 2011 year. This will allow for the correct starting point for the 2012 opening balance columns for both principal and interest. Please refer to the footnotes for further instructions.
E19: 2010 | O19: 2011 | Y19: 2012 | AL19: 2013 | AY19: 2014 | BC19: Projected Interest on Dec-31-13 Balances | BF19: 2.1.7 RRR
C20: Account Descriptions | D20: Account Number | E20: Opening Principal Amounts as of Jan-1-10 | F20: Transactions Debit / (Credit) during 2010 excluding interest and adjustments 2 | G20: Board-Approved Disposition during 2010 | H20: Adjustments during 2010 - other 1 | I20: Closing Principal Balance as of Dec-31-10 | J20: Opening Interest Amounts as of Jan-1-10 | K20: Interest Jan-1 to Dec-31-10 | L20: Board-Approved Disposition during 2010 | M20: Adjustments during 2010 - other 2 | N20: Closing Interest Amounts as of Dec-31-10 | O20: Opening Principal Amounts as of Jan-1-11 | P20: Transactions Debit / (Credit) during 2011 excluding interest and adjustments 2 | Q20: Board-Approved Disposition during 2011 | R20: Adjustments during 2011 - other 1 | S20: Closing Principal Balance as of Dec-31-11 | T20: Opening Interest Amounts as of Jan-1-11 | U20: Interest Jan-1 to Dec-31-11 | V20: Board-Approved Disposition during 2011 | W20: Adjustments during 2011 - other 2 | X20: Closing Interest Amounts as of Dec-31-11 | Y20: Opening Principal Amounts as of Jan-1-12 | Z20: Transactions Debit / (Credit) during 2012 excluding interest and adjustments 2 | AA20: Board-Approved Disposition during 2012 | AB20: Other 1 Adjustments during Q1 2012 | AC20: Other 1 Adjustments during Q2 2012 | AD20: Other 1 Adjustments during Q3 2012 | AE20: Other 1 Adjustments during Q4 2012 | AF20: Closing Principal Balance as of Dec-31-12 | AG20: Opening Interest Amounts as of Jan-1-12 | AH20: Interest Jan-1 to Dec-31-12 | AI20: Board-Approved Disposition during 2012 | AJ20: Adjustments during 2012 - other 1 | AK20: Closing Interest Amounts as of Dec-31-12 | AL20: Opening Principal Amounts as of Jan-1-13 | AM20: Transactions Debit / (Credit) during 2013 excluding interest and adjustments 2 | AN20: Board-Approved Disposition during 2013 | AO20: Other 1 Adjustments during Q1 2013 | AP20: Other 1 Adjustments during Q2 2013 | AQ20: Other 1 Adjustments during Q3 2013 | AR20: Other 1 Adjustments during Q4 2013 | AS20: Closing Principal Balance as of Dec-31-13 | AT20: Opening Interest Amounts as of Jan-1-13 | AU20: Interest Jan-1 to Dec-31-13 | AV20: Board-Approved Disposition during 2013 | AW20: Adjustments during 2013 - other 1 | AX20: Closing Interest Amounts as of Dec-31-13 | AY20: Principal Disposition during 2014 - instructed by Board | AZ20: Interest Disposition during 2014 - instructed by Board | BA20: Closing Principal Balances as of Dec 31-13 Adjusted for Dispositions during 2014 | BB20: Closing Interest Balances as of Dec 31-13 Adjusted for Dispositions during 2014 | BC20: Projected Interest from Jan 1, 2014 to December 31, 2014 on Dec 31 -13 balance adjusted for disposition during 2014 3 | BD20: Projected Interest from January 1, 2015 to April 30, 2015 on Dec 31 -13 balance adjusted for disposition during 2014 3 | BE20: Total Claim | BF20: As of Dec 31-13 | BG20: Variance RRR vs. 2013 Balance (Principal + Interest)
BE22: Claim before Forecasted Transactions
C23: Group 1 Accounts
A24: 1 | C24: LV Variance Account | D24: 1550 | I24: =E24+F24-G24+H24 -> 0 | N24: =J24+K24-L24+M24 -> 0 | O24: =I24 -> 0 | S24: =O24+P24-Q24+R24 -> 0 | T24: =N24 -> 0 | X24: =T24+U24-V24+W24 -> 0 | Y24: =S24 -> 0 | Z24: 671663.36 | AF24: =Y24+Z24-AA24+SUM(AB24:AE24) -> 671663.36 | AG24: =X24 -> 0 | AH24: 8130.05 | AK24: =AG24+AH24-AI24+AJ24 -> 8130.05 | AL24: =AF24 -> 671663.36 | AM24: 258029.03 | AN24: 460427 | AS24: =AL24+AM24-AN24+SUM(AO24:AR24) -> 469265.39 | AT24: =AK24 -> 8130.05 | AU24: 15253.58 | AV24: 17289 | AX24: =AT24+AU24-AV24+AW24 -> 6094.63 | AY24: 214341.5295 | AZ24: 141.106498 | BA24: =AS24-AY24 -> 254923.8605 | BB24: =AX24-AZ24 -> 5953.523502 | BC24: =+BA24*1.47% -> 3747.380749 | BE24: =SUM(BA24:BD24) -> 264624.7648 | BF24: 475360.02 | BG24: =BF24-SUM(AS24,AX24) -> 0
C25: Smart Metering Entity Charge Variance | D25: 1551 | AK25: 0 | AL25: =AK25 -> 0 | AM25: 129523.05 | AS25: =AL25+AM25-AN25+SUM(AO25:AR25) -> 129523.05 | AT25: =AK25 -> 0 | AU25: 563.11 | AX25: 563.11 | BA25: =AS25-AY25 -> 129523.05 | BB25: =AX25-AZ25 -> 563.11 | BC25: =+BA25*1.47% -> 1903.988835 | BE25: =SUM(BA25:BD25) -> 131990.1488 | BF25: 130086.16 | BG25: =BF25-SUM(AS25,AX25) -> 0
A26: 2 | C26: RSVA - Wholesale Market Service Charge | D26: 1580 | I26: =E26+F26-G26+SUM(H26:H26) -> 0 | N26: =J26+K26-L26+M26 -> 0 | O26: =I26 -> 0 | S26: =O26+P26-Q26+SUM(R26:R26) -> 0 | T26: 0 | X26: =T26+U26-V26+W26 -> 0 | Y26: =S26 -> 0 | Z26: -4605724.51 | AF26: -4605724.51 | AG26: =X26 -> 0 | AH26: -52493.63 | AK26: -52493.63 | AL26: =AF26 -> -4605724.51 | AM26: -920326.47 | AN26: -2665112 | AS26: -2860938.98 | AT26: =AK26 -> -52493.63 | AU26: -461869.12 | AV26: -462793 | AX26: -51569.75 | AY26: -1969139.513 | AZ26: -9766.630858 | BA26: -891799.4674 | BB26: -41803.11914 | BC26: =+BA26*1.47% -> -13109.45217 | BE26: =SUM(BA26:BD26) -> -946712.0387 | BF26: -2912508.73 | BG26: 0
A27: 3 | C27: RSVA - Retail Transmission Network Charge | D27: 1584 | I27: 0 | N27: 0 | O27: 0 | S27: 0 | T27: 0 | X27: 0 | Y27: 0 | Z27: 3310622.58 | AF27: 3310622.58 | AG27: 0 | AH27: 48292.07 | AK27: 48292.07 | AL27: 3310622.58 | AM27: 342706.83 | AN27: 2988244 | AS27: 665085.41 | AT27: 48292.07 | AU27: -182022.21 | AV27: -145523 | AX27: 11792.86 | AY27: 327117.5509 | AZ27: -8697.273047 | BA27: 337967.8591 | BB27: 20490.13305 | BC27: 4968.127529 | BE27: 363426.1197 | BF27: 676878.27 | BG27: 0
A28: 4 | C28: RSVA - Retail Transmission Connection Charge | D28: 1586 | I28: 0 | N28: 0 | O28: 0 | S28: 0 | T28: 0 | X28: 0 | Y28: 0 | Z28: 2073926.52 | AF28: 2073926.52 | AG28: 0 | AH28: 29652.57 | AK28: 29652.57 | AL28: 2073926.52 | AM28: 43137.65 | AN28: 1815352 | AS28: 301712.17 | AT28: 29652.57 | AU28: 97708.12 | AV28: 120439 | AX28: 6921.69 | AY28: 262375.5722 | AZ28: -4661.412598 | BA28: 39336.59779 | BB28: 11583.1026 | BC28: 578.2479876 | BE28: 51497.94838 | BF28: 308633.86 | BG28: 0
A29: 5 | C29: RSVA - Power (excluding Global Adjustment) | D29: 1588 | I29: 0 | N29: 0 | O29: 0 | S29: 0 | T29: 0 | X29: 0 | Y29: 0 | Z29: -325024.82 | AF29: -325024.82 | AG29: 0 | AH29: -17577.08 | AK29: -17577.08 | AL29: -325024.82 | AM29: -1100075.59 | AN29: -1061333 | AS29: -363767.41 | AT29: -17577.08 | AU29: -668551.86 | AV29: -668762 | AX29: -17366.94 | AY29: 747131.9111 | AZ29: 6832.830376 | BA29: -1110899.321 | BB29: -24199.77038 | BC29: -16330.22002 | BE29: -1151429.312 | BF29: -381134.35 | BG29: 0
A30: 6 | C30: RSVA - Global Adjustment | D30: 1589 | I30: 0 | N30: 0 | O30: 0 | S30: 0 | T30: 0 | X30: 0 | Y30: 0 | Z30: 689969.21 | AF30: 689969.21 | AG30: 0 | AH30: 15477.12 | AK30: 15477.12 | AL30: 689969.21 | AM30: 1308996.5 | AN30: 1822396 | AS30: 176569.71 | AT30: 15477.12 | AU30: 495257.55 | AV30: 530089 | AX30: -19354.33 | AY30: -1149073.457 | AZ30: -25790.76897 | BA30: 1325643.167 | BB30: 6436.438968 | BC30: 19486.95455 | BE30: 1351566.56 | BF30: 157215.38 | BG30: 0
A31: 7 | C31: Recovery of Regulatory Asset Balances | D31: 1590 | I31: 0 | N31: 0 | O31: 0 | S31: 0 | T31: 0 | X31: 0 | Y31: 0 | AF31: 0 | AG31: 0 | AK31: 0 | AL31: 0 | AS31: 0 | AT31: 0 | AX31: 0 | BA31: 0 | BB31: 0 | BE31: 0 | BG31: 0
A32: 8 | C32: Disposition and Recovery/Refund of Regulatory Balances (2008)4 | D32: 1595 | I32: 0 | N32: 0 | O32: =I32 -> 0 | S32: 0 | T32: 0 | X32: 0 | Y32: 0 | AF32: 0 | AG32: 0 | AK32: 0 | AL32: 0 | AS32: 0 | AT32: 0 | AX32: 0 | BA32: 0 | BB32: 0 | BE32: 0 | BG32: 0
A33: 9 | C33: Disposition and Recovery/Refund of Regulatory Balances (2009)4 | D33: 1595 | I33: 0 | N33: 0 | O33: =I33 -> 0 | S33: 0 | T33: 0 | X33: 0 | Y33: 0 | AF33: 0 | AG33: 0 | AK33: 0 | AL33: 0 | AS33: 0 | AT33: 0 | AX33: 0 | BA33: 0 | BB33: 0 | BE33: 0 | BG33: 0
A34: 9 | C34: Disposition and Recovery/Refund of Regulatory Balances (2010)4 | D34: 1595 | I34: 0 | N34: 0 | O34: =I34 -> 0 | S34: 0 | T34: 0 | X34: 0 | Y34: 0 | Z34: -1863227.02 | AF34: -1863227.02 | AG34: 0 | AH34: 844351.44 | AK34: 844351.44 | AL34: -1863227.02 | AM34: 1089077.87 | AS34: -774149.15 | AT34: 844351.44 | AU34: -15540.07 | AX34: 828811.37 | BA34: -774149.15 | BB34: 828811.37 | BE34: 54662.22 | BF34: 54662.22 | BG34: -1.164153218e-10
A35: 9 | C35: Disposition and Recovery/Refund of Regulatory Balances (2011)4 | D35: 1595 | I35: 0 | N35: 0 | O35: =I35 -> 0 | S35: 0 | T35: 0 | X35: 0 | Y35: 0 | Z35: -1534672.22 | AF35: -1534672.22 | AG35: 0 | AH35: -51188.18 | AK35: -51188.18 | AL35: -1534672.22 | AM35: 3958.35 | AS35: -1530713.87 | AT35: -51188.18 | AU35: 588183.03 | AX35: 536994.85 | AY35: -1557231.902 | AZ35: 551982.1261 | BA35: 26518.03163 | BB35: -14987.27612 | BC35: =+BA35*1.47% -> 389.815065 | BE35: =SUM(BA35:BD35) -> 11920.57058 | BF35: -993719.02 | BG35: 0
A36: 9 | C36: Disposition and Recovery/Refund of Regulatory Balances (2012)4 | D36: 1595 | I36: 0 | N36: 0 | O36: =I36 -> 0 | S36: 0 | T36: =N36 -> 0 | X36: 0 | Y36: =S36 -> 0 | AF36: =Y36+Z36-AA36+SUM(AB36:AE36) -> 0 | AG36: =X36 -> 0 | AK36: =AG36+AH36-AI36+AJ36 -> 0 | AL36: =AF36 -> 0 | AM36: 129773.09 | AS36: =AL36+AM36-AN36+SUM(AO36:AR36) -> 129773.09 | AT36: =AK36 -> 0 | AU36: -22463.75 | AX36: =AT36+AU36-AV36+AW36 -> -22463.75 | BA36: 129773.09 | BB36: -22463.75 | BC36: =+BA36*1.47% -> 1907.664423 | BE36: =SUM(BA36:BD36) -> 109217.0044 | BF36: 107309.34 | BG36: 0
C38: RSVA - Global Adjustment | D38: 1589 | E38: =E30 -> 0 | F38: =F30 -> 0 | G38: 0 | H38: 0 | I38: 0 | J38: 0 | K38: 0 | L38: 0 | M38: 0 | N38: 0 | O38: =O30 -> 0 | P38: =P30 -> 0 | Q38: 0 | R38: 0 | S38: 0 | T38: 0 | U38: 0 | V38: 0 | W38: 0 | X38: 0 | Y38: =Y30 -> 0 | Z38: =Z30 -> 689969.21 | AA38: 0 | AB38: 0 | AC38: 0 | AD38: 0 | AE38: 0 | AF38: =AF30 -> 689969.21 | AG38: 0 | AH38: 15477.12 | AI38: 0 | AJ38: =AJ30 -> 0 | AK38: 15477.12 | AL38: =AL30 -> 689969.21 | AM38: =AM30 -> 1308996.5 | AN38: 1822396 | AO38: 0 | AP38: 0 | AQ38: 0 | AR38: 0 | AS38: 176569.71 | AT38: 15477.12 | AU38: 495257.55 | AV38: 530089 | AW38: 0 | AX38: -19354.33 | AY38: -1149073.457 | AZ38: =AZ30 -> -25790.76897 | BA38: 1325643.167 | BB38: 6436.438968 | BC38: 19486.95455 | BD38: 0 | BE38: 1351566.56 | BF38: 157215.38 | BG38: 0
C39: Total Group 1 Balance excluding Account 1589 - Global Adjustment | E39: =SUM(E24:E29,E31:E36) -> 0 | F39: =SUM(F24:F29,F31:F36) -> 0 | G39: 0 | H39: 0 | I39: 0 | J39: 0 | K39: 0 | L39: 0 | M39: 0 | N39: 0 | O39: =SUM(O24:O29,O31:O36) -> 0 | P39: =SUM(P24:P29,P31:P36) -> 0 | Q39: 0 | R39: 0 | S39: 0 | T39: 0 | U39: 0 | V39: 0 | W39: 0 | X39: 0 | Y39: =SUM(Y24:Y29,Y31:Y36) -> 0 | Z39: =SUM(Z24:Z29,Z31:Z36) -> -2272436.11 | AA39: 0 | AB39: 0 | AC39: 0 | AD39: 0 | AE39: 0 | AF39: =SUM(AF24:AF29,AF31:AF36) -> -2272436.11 | AG39: 0 | AH39: 809167.24 | AI39: 0 | AJ39: =SUM(AJ24:AJ29,AJ31:AJ36) -> 0 | AK39: 809167.24 | AL39: =SUM(AL24:AL29,AL31:AL36) -> -2272436.11 | AM39: =SUM(AM24:AM29,AM31:AM36) -> -24196.19 | AN39: 1537578 | AO39: 0 | AP39: 0 | AQ39: 0 | AR39: 0 | AS39: -3834210.3 | AT39: 809167.24 | AU39: -648739.17 | AV39: -1139350 | AW39: 0 | AX39: 1299778.07 | AY39: -1975404.851 | AZ39: =SUM(AZ24:AZ29,AZ31:AZ36) -> 535830.7465 | BA39: -1858805.449 | BB39: 763947.3235 | BC39: -15944.4476 | BD39: 0 | BE39: -1110802.574 | BF39: -2534432.23 | BG39: -1.164153218e-10
C40: Total Group 1 Balance | E40: =SUM(E24:E36) -> 0 | F40: =SUM(F24:F36) -> 0 | G40: 0 | H40: 0 | I40: 0 | J40: 0 | K40: 0 | L40: 0 | M40: 0 | N40: 0 | O40: =SUM(O24:O36) -> 0 | P40: =SUM(P24:P36) -> 0 | Q40: 0 | R40: 0 | S40: 0 | T40: 0 | U40: 0 | V40: 0 | W40: 0 | X40: 0 | Y40: =SUM(Y24:Y36) -> 0 | Z40: =SUM(Z24:Z36) -> -1582466.9 | AA40: 0 | AB40: 0 | AC40: 0 | AD40: 0 | AE40: 0 | AF40: =SUM(AF24:AF36) -> -1582466.9 | AG40: 0 | AH40: 824644.36 | AI40: 0 | AJ40: =SUM(AJ24:AJ36) -> 0 | AK40: 824644.36 | AL40: =SUM(AL24:AL36) -> -1582466.9 | AM40: =SUM(AM24:AM36) -> 1284800.31 | AN40: 3359974 | AO40: 0 | AP40: 0 | AQ40: 0 | AR40: 0 | AS40: -3657640.59 | AT40: 824644.36 | AU40: -153481.62 | AV40: -609261 | AW40: 0 | AX40: 1280423.74 | AY40: -3124478.307 | AZ40: =SUM(AZ24:AZ36) -> 510039.9775 | BA40: -533162.2826 | BB40: 770383.7625 | BC40: 3542.506951 | BD40: 0 | BE40: 240763.9869 | BF40: -2377216.85 | BG40: -1.164153218e-10
C42: LRAM Variance Account | D42: 1568 | I42: =E42+F42-G42+SUM(H42:H42) -> 0 | N42: =J42+K42-L42+M42 -> 0 | S42: =O42+P42-Q42+SUM(R42:R42) -> 0 | X42: =T42+U42-V42+W42 -> 0 | Y42: =S42 -> 0 | Z42: 82944.87 | AF42: =Y42+Z42-AA42+SUM(AB42:AE42) -> 82944.87 | AG42: =X42 -> 0 | AH42: 1831 | AK42: =AG42+AH42-AI42+AJ42 -> 1831 | AL42: =AF42 -> 82944.87 | AM42: 21884.13 | AS42: =AL42+AM42-AN42+SUM(AO42:AR42) -> 104829 | AT42: =AK42 -> 1831 | AU42: 2616.89 | AX42: =AT42+AU42-AV42+AW42 -> 4447.89 | AY42: 100798 | AZ42: 4031 | BA42: =AS42-AY42 -> 4031 | BB42: =AX42-AZ42 -> 416.89 | BC42: =+BA42*1.47% -> 59.2557 | BE42: =SUM(BA42:BD42) -> 4507.1457 | BF42: 109276.89 | BG42: =BF42-SUM(AS42,AX42) -> 0
C44: Total including Account 1568 | E44: =E42+E40 -> 0 | F44: =F42+F40 -> 0 | G44: 0 | H44: 0 | I44: 0 | J44: 0 | K44: 0 | L44: 0 | M44: 0 | N44: 0 | O44: 0 | P44: 0 | Q44: 0 | R44: 0 | S44: 0 | T44: 0 | U44: 0 | V44: 0 | W44: 0 | X44: 0 | Y44: 0 | Z44: -1499522.03 | AA44: 0 | AB44: 0 | AC44: 0 | AD44: 0 | AE44: 0 | AF44: -1499522.03 | AG44: 0 | AH44: 826475.36 | AI44: 0 | AJ44: 0 | AK44: 826475.36 | AL44: -1499522.03 | AM44: 1306684.44 | AN44: 3359974 | AO44: 0 | AP44: 0 | AQ44: 0 | AR44: 0 | AS44: -3552811.59 | AT44: 826475.36 | AU44: -150864.73 | AV44: -609261 | AW44: 0 | AX44: 1284871.63 | AY44: -3023680.307 | AZ44: 514070.9775 | BA44: -529131.2826 | BB44: 770800.6525 | BC44: 3601.762651 | BD44: 0 | BE44: 245271.1326 | BF44: -2267939.96 | BG44: -1.164153218e-10
C47: For all Board-Approved dispositions, please ensure that the disposition amount has the same sign (e.g: debit balances are to have a positive figure and credit balance are to have a negative figure) as per the related Board decision.
B50: 1 | C50: Please provide explanations for the nature of the adjustments. If the adjustment relates to previously Board Approved disposed balances, please provide amounts for adjustments and include supporting documentations.
B51: 2 | C51: For RSVA accounts only, report the net variance to the account during the year. For all other accounts, record the transactions during the year.
B52: 3 | C52: If the LDC’s rate year begins on January 1, 2015, the projected interest is recorded from January 1, 2014 to December 31, 2014 on the December 31, 2013 balances adjusted for the disposed balances approved by the Board in the 2014 rate decision. If the LDC’s rate year begins on May 1, 2015, the projected interest is recorded from January 1, 2014 to April 30, 2015 on the December 31, 2013 balances adjusted for the disposed interest balances approved by the Board in the 2014 rate decision.
B53: 4 | C53: Include Account 1595 as part of Group 1 accounts (lines 31, 32, 33 and 34) for review and disposition if the recovery (or refund) period has been completed. If the recovery (or refund) period has not been completed, do not include the respective balance in Account 1595 for disposition at this time.

Sheet 6. Billing Det. for Def-Var
AS1: As per Section 3.2.3 of the 2015 Filing Requirements for Electricity Distribution Rate Applications, an applicant may elect to dispose of the Group 1 account balances below the threshold. If doing so, please select YES from the adjacent drop-down cell and also indicate so in the Manager's Summary. If not, please select NO.
A13: In the green shaded cells, enter the most recent Board Approved volumetric forecast. If there is a material difference between the latest Board-approved volumetric forecast and the most recent 12-month actual volumetric data, use the most recent 12-month actual data. Do not enter data for the MicroFit class.
E15: Billed kWh for Non-RPP Customers | F15: Estimated kW for Non-RPP Customers | H15: 1590 Recovery Share Proportion* | I15: 1595 Recovery Share Proportion (2008) 1 | J15: 1595 Recovery Share Proportion (2009) 1 | K15: 1595 Recovery Share Proportion (2010) 1 | L15: 1595 Recovery Share Proportion (2011) 1 | M15: 1595 Recovery Share Proportion (2012) 1 | N15: 1568 LRAM Variance Account Class Allocation ($ amounts) | O15: Number of Customers for Residential and GS<50 classes3
A16: Rate Class | B16: Unit | C16: Metered kWh | D16: Metered kW
A17: RESIDENTIAL | B17: $/kWh | C17: 595449114 | E17: 29621965.11 | F17: =IF(ISERROR(D17/C17*E17), 0, D17/C17*E17) -> 0 | K17: 0.376 | L17: 0.373 | M17: 0.3743 | N17: 4191 | O17: 59565
A18: GENERAL SERVICE LESS THAN 50 KW | B18: $/kWh | C18: 158508292 | E18: 24887399.77 | F18: 0 | K18: 0.124 | L18: 0.117 | M18: 0.1165 | N18: 312.49 | O18: 4926
A19: GENERAL SERVICE 50 TO 1,000 KW | B19: $/kW | C19: 606291782 | D19: 1589641 | E19: 520256503.5 | F19: 1364064.454 | K19: 0.41 | L19: 0.4 | M19: 0.3997
A20: GENERAL SERVICE GREATER THAN 1,000 KW | B20: $/kW | C20: 147386488 | D20: 329822 | E20: 147386488 | F20: 329822.0001 | K20: 0.078 | L20: 0.099 | M20: 0.0989 | N20: 3.59
A21: UNMETERED SCATTERED LOAD | B21: $/kWh | C21: 3504020 | E21: 25058.78951 | F21: 0
A22: SENTINEL LIGHTING | B22: $/kW | C22: 116788 | D22: 324 | F22: 0 | K22: 0.003 | L22: 0.003 | M22: 0.0026
A23: STREET LIGHTING | B23: $/kW | C23: 8943095 | D23: 24961 | E23: 8943094.641 | F23: 24960.999 | M23: 0.0001
A24: EMBEDDED DISTRIBUTOR | B24: $/kW | C24: 33729600 | D24: 72000 | E24: 30697160.76 | F24: 65526.88364 | K24: 0.009 | L24: 0.008 | M24: 0.0079
A25: microFIT
B27: Total | C27: =SUM(C17:C25) -> 1553929179 | D27: =SUM(D17:D25) -> 2016748 | E27: 761817670.6 | F27: 1784374.337 | H27: 0 | I27: 0 | J27: 0 | K27: 1 | L27: 1 | M27: 1 | N27: 4507.08 | O27: 64491
M28: Balance as per Sheet 5 | N28: =ROUND('5. 2014 Continuity Schedule'!BE42, 0) -> 4507
M29: Variance | N29: =N27-N28 -> 0.08
A31: Threshold Test
A32: Total Claim (including Account 1568) | B32: ='5. 2014 Continuity Schedule'!BE44 -> 245271.1326
A33: Total Claim for Threshold Test (All Group 1 Accounts) | B33: ='5. 2014 Continuity Schedule'!BE40 -> 240763.9869
A34: Threshold Test (Total claim per kWh) 2 | B34: =IF(ISERROR(B33/C27), 0, B33/C27) -> 0.0001549388416 | D34: =IF(AND(B34>-0.001,B34<0.001),"Claim does not meet the threshold test.","") -> Claim does not meet the threshold test.
A36: =IF(AND(B34>-0.001, B34<0.001), AS1, "") -> As per Section 3.2.3 of the 2015 Filing Requirements for Electricity Distribution Rate Applications, an applicant may elect to dispose of the Group 1 account balances below the threshold. If doing so, please select YES from the adjacent drop-down cell and also indicate so in the Manager's Summary. If not, please select NO. | C36: NO
A40: 1 Residual Account balance to be allocated to rate classes in proportion to the recovery share as established when rate riders were implemented.
A41: 2 The Threshold Test does not include the amount in 1568.
A42: 3 The proportion of customers for the Residential and GS<50 Classes will be used to allocate Account 1551.

Sheet 6. hidden (hidden)
E1: Billed kWh for Non-RPP Customers | F1: Estimated kW for Non-RPP Customers | G1: Distribution Revenue 1 | H1: 1590 Recovery Share Proportion* | I1: 1595 Recovery Share Proportion (2008) 2 | J1: 1595 Recovery Share Proportion (2009) 2 | K1: 1595 Recovery Share Proportion (2010) 2 | L1: 1595 Recovery Share Proportion (2011) 2 | M1: 1568 LRAM Variance Account Class Allocation | AC1: NO
A2: Rate Class | B2: Unit | C2: Metered kWh | D2: Metered kW
A3: RESIDENTIAL | B3: $/kWh | C3: 595449114 | D3: 0 | E3: 29621965.11 | G3: 0 | H3: 0 | I3: 0 | J3: 0 | K3: 0.376 | L3: 0.373 | M3: 0.3743 | N3: 4191 | O3: 59565
A4: GENERAL SERVICE LESS THAN 50 KW | B4: $/kWh | C4: 158508292 | D4: 0 | E4: 24887399.77 | G4: 0 | H4: 0 | I4: 0 | J4: 0 | K4: 0.124 | L4: 0.117 | M4: 0.1165 | N4: 312.49 | O4: 4926
A5: GENERAL SERVICE 50 TO 1,000 KW | B5: $/kW | C5: 606291782 | D5: 1589641 | E5: 520256503.5 | G5: 0 | H5: 0 | I5: 0 | J5: 0 | K5: 0.41 | L5: 0.4 | M5: 0.3997 | N5: 0 | O5: 0
A6: GENERAL SERVICE GREATER THAN 1,000 KW | B6: $/kW | C6: 147386488 | D6: 329822 | E6: 147386488 | G6: 0 | H6: 0 | I6: 0 | J6: 0 | K6: 0.078 | L6: 0.099 | M6: 0.0989 | N6: 3.59 | O6: 0
A7: UNMETERED SCATTERED LOAD | B7: $/kWh | C7: 3504020 | D7: 0 | E7: 25058.78951 | G7: 0 | H7: 0 | I7: 0 | J7: 0 | K7: 0 | L7: 0 | M7: 0 | N7: 0 | O7: 0
A8: SENTINEL LIGHTING | B8: $/kW | C8: 116788 | D8: 324 | E8: 0 | G8: 0 | H8: 0 | I8: 0 | J8: 0 | K8: 0.003 | L8: 0.003 | M8: 0.0026 | N8: 0 | O8: 0
A9: STREET LIGHTING | B9: $/kW | C9: 8943095 | D9: 24961 | E9: 8943094.641 | G9: 0 | H9: 0 | I9: 0 | J9: 0 | K9: 0 | L9: 0 | M9: 0.0001 | N9: 0 | O9: 0
A10: EMBEDDED DISTRIBUTOR | B10: $/kW | C10: 33729600 | D10: 72000 | E10: 30697160.76 | G10: 0 | H10: 0 | I10: 0 | J10: 0 | K10: 0.009 | L10: 0.008 | M10: 0.0079 | N10: 0 | O10: 0
A11: microFIT | B11: 0 | C11: 0 | D11: 0 | E11: 0 | G11: 0 | H11: 0 | I11: 0 | J11: 0 | K11: 0 | L11: 0 | M11: 0 | N11: 0 | O11: 0

Sheet 7. Allocating Def-Var Balances
A13: No input required. This workshseet allocates the deferral/variance account balances (Group 1, 1589, and 1568) to the appropriate classes as per the EDDVAR Report dated July 31, 2009
A15: Allocation of Group 1 Accounts (including Account 1568)
C16: % of Total kWh | D16: % of Total non-RPP kWh | E16: % of Customer Numbers ** | N16: 1595 (2008) | O16: 1595 (2009) | P16: 1595 (2010) | Q16: 1595 (2011) | R16: 1595 (2012) | S16: 1568
A17: Rate Class | F17: 1550 | G17: 1551 | H17: 1580 | I17: 1584 | J17: 1586 | K17: 1588 | L17: 1589 | M17: 1590
A19: RESIDENTIAL | C19: =VLOOKUP(A19, '6. Billing Det. for Def-Var'!A17:D25, 3,0)/'6. Billing Det. for Def-Var'!C27 -> 0.3831893513 | D19: =VLOOKUP(A19, '6. Billing Det. for Def-Var'!A17:E25, 5,0)/'6. Billing Det. for Def-Var'!E27 -> 0.03888327385 | E19: =VLOOKUP(A19, '6. Billing Det. for Def-Var'!A17:O25, 15,0)/'6. Billing Det. for Def-Var'!O27 -> 0.9236172489 | F19: 0 | G19: 0 | H19: 0 | I19: 0 | J19: 0 | K19: 0 | L19: 0 | M19: 0 | N19: 0 | O19: 0 | P19: 0 | Q19: 0 | R19: 0 | S19: ='6. Billing Det. for Def-Var'!N17 -> 4191
A20: GENERAL SERVICE LESS THAN 50 KW | C20: =VLOOKUP(A20, '6. Billing Det. for Def-Var'!A17:D25, 3,0)/'6. Billing Det. for Def-Var'!C27 -> 0.1020048366 | D20: =VLOOKUP(A20, '6. Billing Det. for Def-Var'!A17:E25, 5,0)/'6. Billing Det. for Def-Var'!E27 -> 0.03266844644 | E20: =VLOOKUP(A20, '6. Billing Det. for Def-Var'!A17:O25, 15,0)/'6. Billing Det. for Def-Var'!O27 -> 0.07638275108 | F20: 0 | G20: 0 | H20: 0 | I20: 0 | J20: 0 | K20: 0 | L20: 0 | M20: 0 | N20: 0 | O20: 0 | P20: 0 | Q20: 0 | R20: 0 | S20: ='6. Billing Det. for Def-Var'!N18 -> 312.49
A21: GENERAL SERVICE 50 TO 1,000 KW | C21: =VLOOKUP(A21, '6. Billing Det. for Def-Var'!A17:D25, 3,0)/'6. Billing Det. for Def-Var'!C27 -> 0.3901669331 | D21: =VLOOKUP(A21, '6. Billing Det. for Def-Var'!A17:E25, 5,0)/'6. Billing Det. for Def-Var'!E27 -> 0.682914723 | F21: 0 | G21: 0 | H21: 0 | I21: 0 | J21: 0 | K21: 0 | L21: 0 | M21: 0 | N21: 0 | O21: 0 | P21: 0 | Q21: 0 | R21: 0 | S21: ='6. Billing Det. for Def-Var'!N19 -> 0
A22: GENERAL SERVICE GREATER THAN 1,000 KW | C22: =VLOOKUP(A22, '6. Billing Det. for Def-Var'!A17:D25, 3,0)/'6. Billing Det. for Def-Var'!C27 -> 0.0948476224 | D22: =VLOOKUP(A22, '6. Billing Det. for Def-Var'!A17:E25, 5,0)/'6. Billing Det. for Def-Var'!E27 -> 0.1934668803 | F22: 0 | G22: 0 | H22: 0 | I22: 0 | J22: 0 | K22: 0 | L22: 0 | M22: 0 | N22: 0 | O22: 0 | P22: 0 | Q22: 0 | R22: 0 | S22: ='6. Billing Det. for Def-Var'!N20 -> 3.59
A23: UNMETERED SCATTERED LOAD | C23: =VLOOKUP(A23, '6. Billing Det. for Def-Var'!A17:D25, 3,0)/'6. Billing Det. for Def-Var'!C27 -> 0.00225494189 | D23: =VLOOKUP(A23, '6. Billing Det. for Def-Var'!A17:E25, 5,0)/'6. Billing Det. for Def-Var'!E27 -> 3.28934212e-05 | F23: 0 | G23: 0 | H23: 0 | I23: 0 | J23: 0 | K23: 0 | L23: 0 | M23: 0 | N23: 0 | O23: 0 | P23: 0 | Q23: 0 | R23: 0 | S23: ='6. Billing Det. for Def-Var'!N21 -> 0
A24: SENTINEL LIGHTING | C24: =VLOOKUP(A24, '6. Billing Det. for Def-Var'!A17:D25, 3,0)/'6. Billing Det. for Def-Var'!C27 -> 7.515657829e-05 | D24: =VLOOKUP(A24, '6. Billing Det. for Def-Var'!A17:E25, 5,0)/'6. Billing Det. for Def-Var'!E27 -> 0 | F24: 0 | G24: 0 | H24: 0 | I24: 0 | J24: 0 | K24: 0 | L24: 0 | M24: 0 | N24: 0 | O24: 0 | P24: 0 | Q24: 0 | R24: 0 | S24: ='6. Billing Det. for Def-Var'!N22 -> 0
A25: STREET LIGHTING | C25: =VLOOKUP(A25, '6. Billing Det. for Def-Var'!A17:D25, 3,0)/'6. Billing Det. for Def-Var'!C27 -> 0.005755149669 | D25: =VLOOKUP(A25, '6. Billing Det. for Def-Var'!A17:E25, 5,0)/'6. Billing Det. for Def-Var'!E27 -> 0.01173915359 | F25: 0 | G25: 0 | H25: 0 | I25: 0 | J25: 0 | K25: 0 | L25: 0 | M25: 0 | N25: 0 | O25: 0 | P25: 0 | Q25: 0 | R25: 0 | S25: ='6. Billing Det. for Def-Var'!N23 -> 0
A26: EMBEDDED DISTRIBUTOR | C26: =VLOOKUP(A26, '6. Billing Det. for Def-Var'!A17:D25, 3,0)/'6. Billing Det. for Def-Var'!C27 -> 0.02170600852 | D26: =VLOOKUP(A26, '6. Billing Det. for Def-Var'!A17:E25, 5,0)/'6. Billing Det. for Def-Var'!E27 -> 0.04029462946 | F26: 0 | G26: 0 | H26: 0 | I26: 0 | J26: 0 | K26: 0 | L26: 0 | M26: 0 | N26: 0 | O26: 0 | P26: 0 | Q26: 0 | R26: 0 | S26: ='6. Billing Det. for Def-Var'!N24 -> 0
A27: microFIT | C27: 0 | D27: 0 | E27: 0 | F27: 0 | G27: 0 | H27: 0 | I27: 0 | J27: 0 | K27: 0 | L27: 0 | M27: 0 | N27: 0 | O27: 0 | P27: 0 | Q27: 0 | R27: 0 | S27: ='6. Billing Det. for Def-Var'!N25 -> 0
A29: Total | C29: =SUM(C19:C27) -> 1 | D29: 1 | E29: 1 | F29: 0 | G29: 0 | H29: 0 | I29: 0 | J29: 0 | K29: 0 | L29: 0 | M29: 0 | N29: 0 | O29: 0 | P29: 0 | Q29: 0 | R29: 0 | S29: 4507.08
A32: * RSVA - Power (Excluding Global Adjustment)
A33: ** Used to allocate Account 1551 as this account records the variances arising from the Smart Metering Entity Charges to Residential and GS<50 customers.

Sheet 8. Calculation of Def-Var RR
A12: Input required at cell C15 only. This workshseet calculates rate riders related to the Deferral/Variance Account Disposition (if applicable), associated rate riders for the global adjustment account (1589) and Account 1568. Rate Riders will not be generated for the microFIT class.
A15: Please indicate the Rate Rider Recovery Period (in years) | C15: 1
E17: Balance of Accounts Allocated by kWh/kW (RPP) or Distribution Revenue | F17: Deferral/Variance Account Rate Rider | G17: Allocation of Balance in Account 1589 | H17: Billed kWh or Estimated kW for Non-RPP Customers | I17: Global Adjustment Rate Rider | J17: Allocation of Account 1568 | K17: Account 1568 Rate Rider
A18: Rate Class | B18: Unit | C18: Billed kWh | D18: Billed kW or kVA
A20: RESIDENTIAL | B20: $/kWh | C20: 595449114 | E20: =SUM('7. Allocating Def-Var Balances'!F19:K19)+SUM('7. Allocating Def-Var Balances'!M19:R19) -> 0 | F20: 0 | G20: 0 | H20: 29621965.11 | I20: 0 | J20: 4191 | K20: 0
A21: GENERAL SERVICE LESS THAN 50 KW | B21: $/kWh | C21: 158508292 | E21: =SUM('7. Allocating Def-Var Balances'!F20:K20)+SUM('7. Allocating Def-Var Balances'!M20:R20) -> 0 | F21: 0 | G21: 0 | H21: 24887399.77 | I21: 0 | J21: 312.49 | K21: 0
A22: GENERAL SERVICE 50 TO 1,000 KW | B22: $/kW | C22: 606291782 | D22: 1589641 | E22: =SUM('7. Allocating Def-Var Balances'!F21:K21)+SUM('7. Allocating Def-Var Balances'!M21:R21) -> 0 | F22: 0 | G22: 0 | H22: 1364064.454 | I22: 0 | K22: 0
A23: GENERAL SERVICE GREATER THAN 1,000 KW | B23: $/kW | C23: 147386488 | D23: 329822 | E23: =SUM('7. Allocating Def-Var Balances'!F22:K22)+SUM('7. Allocating Def-Var Balances'!M22:R22) -> 0 | F23: 0 | G23: 0 | H23: 329822.0001 | I23: 0 | J23: 3.59 | K23: 0
A24: UNMETERED SCATTERED LOAD | B24: $/kWh | C24: 3504020 | E24: =SUM('7. Allocating Def-Var Balances'!F23:K23)+SUM('7. Allocating Def-Var Balances'!M23:R23) -> 0 | F24: 0 | G24: 0 | H24: 25058.78951 | I24: 0 | K24: 0
A25: SENTINEL LIGHTING | B25: $/kW | C25: 116788 | D25: 324 | E25: =SUM('7. Allocating Def-Var Balances'!F24:K24)+SUM('7. Allocating Def-Var Balances'!M24:R24) -> 0 | F25: 0 | G25: 0 | H25: 0 | I25: 0 | K25: 0
A26: STREET LIGHTING | B26: $/kW | C26: 8943095 | D26: 24961 | E26: =SUM('7. Allocating Def-Var Balances'!F25:K25)+SUM('7. Allocating Def-Var Balances'!M25:R25) -> 0 | F26: 0 | G26: 0 | H26: 24960.999 | I26: 0 | K26: 0
A27: EMBEDDED DISTRIBUTOR | B27: $/kW | C27: 33729600 | D27: 72000 | E27: =SUM('7. Allocating Def-Var Balances'!F26:K26)+SUM('7. Allocating Def-Var Balances'!M26:R26) -> 0 | F27: 0 | G27: 0 | H27: 65526.88364 | I27: 0 | K27: 0
A28: microFIT
A29: Total | C29: =SUM(C20:C28) -> 1553929179 | D29: =SUM(D20:D28) -> 2016748 | E29: =SUM(E20:E28) -> 0 | G29: =SUM(G20:G28) -> 0 | H29: =SUM(H20:H28) -> 56318798.01 | J29: =SUM(J20:J28) -> 4507.08
A33: One or more rate classes appear to have negligible rate riders in column K. As per Appendix B of the Filing Requirements, please provide details of the Applicant's proposal in the Manager's Summary.

Sheet 9. STS - Billing Det & Rates
A11: Shared Tax Savings
A13: ="Enter your " & '1. Information Sheet'!F32 & " Board-Approved Billing Determinents into columns B, C and D." -> Enter your 2014 Board-Approved Billing Determinents into columns B, C and D.
A14: ="Enter your " & '1. Information Sheet'!F32 & " Board-Approved Base monthly service and volumetric charges into columns G, H and I." -> Enter your 2014 Board-Approved Base monthly service and volumetric charges into columns G, H and I.
A16: Rate Class | B16: Units | C16: Re-based Billed Customers or Connections | D16: Re-based Billed kWh | E16: Re-based Billed kW (if applicable) | G16: ='1. Information Sheet'!F32 &" Base Monthly Service Charge" -> 2014 Base Monthly Service Charge | H16: ='1. Information Sheet'!F32 &" Base Distribution Volumetric Rate kWh" -> 2014 Base Distribution Volumetric Rate kWh | I16: ='1. Information Sheet'!F32 &" Base Distribution Volumetric Rate kW" -> 2014 Base Distribution Volumetric Rate kW
A17: RESIDENTIAL | B17: $/kWh | C17: 59565 | D17: 595449114 | E17: 0 | G17: 14.42 | H17: 0.0157 | I17: 0
A18: GENERAL SERVICE LESS THAN 50 KW | B18: $/kWh | C18: 4926 | D18: 158508292 | E18: 0 | G18: 34.71 | H18: 0.0153 | I18: 0
A19: GENERAL SERVICE 50 TO 1,000 KW | B19: $/kW | C19: 920 | D19: 606291782 | E19: 1589641 | G19: 118.45 | H19: 0 | I19: 4.632
A20: GENERAL SERVICE GREATER THAN 1,000 KW | B20: $/kW | C20: 16 | D20: 147386488 | E20: 329822 | G20: 3399.83 | H20: 0 | I20: 2.6884
A21: UNMETERED SCATTERED LOAD | B21: $/kWh | C21: 674 | D21: 3504020 | E21: 0 | G21: 9.83 | H21: 0.0092 | I21: 0
A22: SENTINEL LIGHTING | B22: $/kW | C22: 157 | D22: 116788 | E22: 324 | G22: 2.69 | H22: 0 | I22: 45.5762
A23: STREET LIGHTING | B23: $/kW | C23: 10404 | D23: 8943095 | E23: 24961 | G23: 3.69 | H23: 0 | I23: 22.6392
A24: EMBEDDED DISTRIBUTOR | B24: $/kW | C24: 1 | D24: 33729600 | E24: 72000 | G24: 5072.12 | H24: 0 | I24: 2.7703
A25: microFIT

Sheet 10. STS - Rebased Rev
A12: Calculation of Rebased Revenue Requirement. No input required.
A15: Rate Class | C15: Re-based Billed Customers or Connections | D15: Re-based Billed kWh | E15: Re-based Billed kW | G15: Rate ReBal Base Service Charge | H15: Rate ReBal Base Distribution Volumetric Rate kWh | I15: Rate ReBal Base Distribution Volumetric Rate kW | K15: Service Charge Revenue | L15: Distribution Volumetric Rate Revenue kWh | M15: Distribution Volumetric Rate Revenue kW | N15: Revenue Requirement from Rates | P15: Service Charge % Revenue | Q15: Distribution Volumetric Rate % Revenue kWh | R15: Distribution Volumetric Rate % Revenue kW | S15: Total % Revenue
C16: A | D16: B | E16: C | G16: D | H16: E | I16: F | K16: G = A * D *12 | L16: H = B * E | M16: I = C * F | N16: J = G + H + I | P16: K = G / J | Q16: L = H / J | R16: M = I / J | S16: N = J / R
A17: RESIDENTIAL | C17: 59565 | D17: 595449114 | E17: 0 | G17: 14.42 | H17: 0.0157 | I17: 0 | K17: =G17*C17*12 -> 10307127.6 | L17: =H17*D17 -> 9348551.09 | M17: 0 | N17: =SUM(K17,L17,M17) -> 19655678.69 | P17: =IF(ISERROR(K17/N17),0,K17/N17) -> 0.524384213 | Q17: =IF(ISERROR(L17/N17),0,L17/N17) -> 0.475615787 | R17: =IF(ISERROR(M17/N17),0,M17/N17) -> 0 | S17: =N17/N26 -> 0.5496448554
A18: GENERAL SERVICE LESS THAN 50 KW | C18: 4926 | D18: 158508292 | E18: 0 | G18: 34.71 | H18: 0.0153 | I18: 0 | K18: 2051777.52 | L18: =H18*D18 -> 2425176.868 | M18: 0 | N18: 4476954.388 | P18: 0.4582976154 | Q18: 0.5417023846 | R18: 0 | S18: =N18/N26 -> 0.1251920621
A19: GENERAL SERVICE 50 TO 1,000 KW | C19: 920 | D19: 606291782 | E19: 1589641 | G19: 118.45 | H19: 0 | I19: 4.632 | K19: 1307688 | L19: 0 | M19: =I19*E19 -> 7363217.112 | N19: 8670905.112 | P19: 0.1508133215 | Q19: 0 | R19: 0.8491866785 | S19: =N19/N26 -> 0.242470304
A20: GENERAL SERVICE GREATER THAN 1,000 KW | C20: 16 | D20: 147386488 | E20: 329822 | G20: 3399.83 | H20: 0 | I20: 2.6884 | K20: 652767.36 | L20: 0 | M20: =I20*E20 -> 886693.4648 | N20: 1539460.825 | P20: 0.4240233655 | Q20: 0 | R20: 0.5759766345 | S20: =N20/N26 -> 0.04304897001
A21: UNMETERED SCATTERED LOAD | C21: 674 | D21: 3504020 | E21: 0 | G21: 9.83 | H21: 0.0092 | I21: 0 | K21: 79505.04 | L21: =H21*D21 -> 32236.984 | M21: 0 | N21: 111742.024 | P21: 0.7115052793 | Q21: 0.2884947207 | R21: 0 | S21: =N21/N26 -> 0.00312471676
A22: SENTINEL LIGHTING | C22: 157 | D22: 116788 | E22: 324 | G22: 2.69 | H22: 0 | I22: 45.5762 | K22: 5067.96 | L22: 0 | M22: =I22*E22 -> 14766.6888 | N22: 19834.6488 | P22: 0.255510448 | Q22: 0 | R22: 0.744489552 | S22: =N22/N26 -> 0.000554649516
A23: STREET LIGHTING | C23: 10404 | D23: 8943095 | E23: 24961 | G23: 3.69 | H23: 0 | I23: 22.6392 | K23: 460689.12 | L23: 0 | M23: =I23*E23 -> 565097.0712 | N23: 1025786.191 | P23: 0.4491083268 | Q23: 0 | R23: 0.5508916732 | S23: =N23/N26 -> 0.02868474356
A24: EMBEDDED DISTRIBUTOR | C24: 1 | D24: 33729600 | E24: 72000 | G24: 5072.12 | H24: 0 | I24: 2.7703 | K24: 60865.44 | L24: 0 | M24: =I24*E24 -> 199461.6 | N24: 260327.04 | P24: 0.233803757 | Q24: 0 | R24: 0.766196243 | S24: =N24/N26 -> 0.007279698682
A25: microFIT | K25: 0 | L25: 0 | M25: 0 | N25: 0 | P25: 0 | Q25: 0 | R25: 0 | S25: =N25/N26 -> 0
A26: Total | C26: =SUM(C17:C25) -> 76663 | D26: =SUM(D17:D25) -> 1553929179 | E26: =SUM(E17:E25) -> 2016748 | K26: =SUM(K17:K25) -> 14925488.04 | L26: =SUM(L17:L25) -> 11805964.94 | M26: =SUM(M17:M25) -> 9029235.937 | N26: =SUM(N17:N25) -> 35760688.92 | S26: =SUM(S17:S25) -> 1

Sheet 9. STS - Billing Det & Rate HID (hidden)
A11: Shared Tax Savings
A12: ="Enter your " & '1. Information Sheet'!F32 & " Board-Approved Billing Determinents into columns B, C and D." -> Enter your 2014 Board-Approved Billing Determinents into columns B, C and D.
A16: Rate Class | B16: Units | C16: Re-based Billed Customers or Connections | D16: Re-based Billed kWh | E16: Re-based Billed kW (if applicable) | G16: ='1. Information Sheet'!F32 &" Base Monthly Service Charge" -> 2014 Base Monthly Service Charge | H16: ='1. Information Sheet'!F32 &" Base Distribution Volumetric Rate kWh" -> 2014 Base Distribution Volumetric Rate kWh | I16: ='1. Information Sheet'!F32 &" Base Distribution Volumetric Rate kW" -> 2014 Base Distribution Volumetric Rate kW
A17: RESIDENTIAL | B17: $/kWh | C17: 59565 | D17: 595449114 | E17: 0 | G17: 14.42 | H17: 0.0157 | I17: 0
A18: GENERAL SERVICE LESS THAN 50 KW | B18: $/kWh | C18: 4926 | D18: 158508292 | E18: 0 | G18: 34.71 | H18: 0.0153 | I18: 0
A19: GENERAL SERVICE 50 TO 1,000 KW | B19: $/kW | C19: 920 | D19: 606291782 | E19: 1589641 | G19: 118.45 | H19: 0 | I19: 4.632
A20: GENERAL SERVICE GREATER THAN 1,000 KW | B20: $/kW | C20: 16 | D20: 147386488 | E20: 329822 | G20: 3399.83 | H20: 0 | I20: 2.6884
A21: UNMETERED SCATTERED LOAD | B21: $/kWh | C21: 674 | D21: 3504020 | E21: 0 | G21: 9.83 | H21: 0.0092 | I21: 0
A22: SENTINEL LIGHTING | B22: $/kW | C22: 157 | D22: 116788 | E22: 324 | G22: 2.69 | H22: 0 | I22: 45.5762
A23: STREET LIGHTING | B23: $/kW | C23: 10404 | D23: 8943095 | E23: 24961 | G23: 3.69 | H23: 0 | I23: 22.6392
A24: EMBEDDED DISTRIBUTOR | B24: $/kW | C24: 1 | D24: 33729600 | E24: 72000 | G24: 5072.12 | H24: 0 | I24: 2.7703
A25: microFIT | B25: 0 | C25: 0 | D25: 0 | E25: 0 | G25: 0 | H25: 0 | I25: 0

Sheet 11. STS - Tax Change
T1: Rate Base | U1: Federal Tax Rate
T2: 500000 | U2: 0.11
T3: 10000000 | U3: 0.11
T4: =T3+100000 -> 10100000 | U4: 0.11
T5: =T4+100000 -> 10200000 | U5: 0.11
T6: 10300000 | U6: 0.11
T7: 10400000 | U7: 0.11
T8: 10500000 | U8: 0.11
T9: 10600000 | U9: 0.11
T10: 10700000 | U10: 0.11
T11: 10800000 | U11: 0.11
T12: 10900000 | U12: 0.11
A13: Summary - Sharing of Tax Change Forecast Amounts | T13: 11000000 | U13: 0.11
T14: 11100000 | U14: 0.111
A15: ="For the " & '1. Information Sheet'!F32 & " year, enter any Tax Credits from the Cost of Service Tax Calculation (Positive #)" -> For the 2014 year, enter any Tax Credits from the Cost of Service Tax Calculation (Positive #) | L15: 30248 | T15: 11200000 | U15: =U14+0.13% -> 0.1123 | V15: =U15-U14 -> 0.0013
T16: 11300000 | U16: =U15+0.13% -> 0.1136 | V16: =U16-U15 -> 0.0013
T17: 11400000 | U17: 0.1149 | V17: 0.0013
A18: 1. Tax Related Amounts Forecast from Capital Tax Rate Changes | L18: ='1. Information Sheet'!F32 -> 2014 | N18: 2015 | T18: 11500000 | U18: 0.1162 | V18: 0.0013
A19: Taxable Capital (if you are not claiming capital tax, please enter your Board-Approved Rate Base) | L19: 183042019 | N19: =L19 -> 183042019 | T19: 11600000 | U19: =U18+0.12% -> 0.1174 | V19: 0.0012
T20: 11700000 | U20: =U19+0.12% -> 0.1186 | V20: 0.0012
A21: Deduction from taxable capital up to $15,000,000 | N21: =L21 -> 0 | T21: 11800000 | U21: 0.1198 | V21: 0.0012
T22: 11900000 | U22: 0.121 | V22: 0.0012
A23: Net Taxable Capital | L23: =L19-L21 -> 183042019 | N23: =N19-N21 -> 183042019 | T23: 12000000 | U23: =U22+0.112% -> 0.12212 | V23: 0.00112
T24: 12100000 | U24: =U23+0.112% -> 0.12324 | V24: 0.00112
A25: Rate | L25: 0 | N25: 0 | T25: 12200000 | U25: 0.12436 | V25: 0.00112
T26: 12300000 | U26: 0.12548 | V26: 0.00112
A27: Ontario Capital Tax (Deductible, not grossed-up) | L27: =IF(L23>0, L23*L25, 0)*181/365 -> 0 | N27: 0 | T27: 12400000 | U27: 0.1266 | V27: 0.00112
T28: 12500000 | U28: 0.12772 | V28: 0.00112
A29: 2. Tax Related Amounts Forecast from lncome Tax Rate Changes | T29: 12600000 | U29: =U28+0.102% -> 0.12874 | V29: 0.00102
A30: Regulatory Taxable Income | L30: 195149 | N30: =L30 -> 195149 | T30: 12700000 | U30: =U29+0.102% -> 0.12976 | V30: 0.00102
T31: 12800000 | U31: 0.13078 | V31: 0.00102
A32: Corporate Tax Rate | L32: 0.155 | N32: =IF(N30=0,0,IF(N30<=500000,4.5%+11%,IF(N30>500000,(11.5%*N30-35000)/N30+VLOOKUP(N19,T:U,2,TRUE),""))) -> 0.155 | T32: 12900000 | U32: 0.1318 | V32: 0.00102
T33: 13000000 | U33: 0.13282 | V33: 0.00102
A34: Tax Impact | L34: 0 | N34: =N30*N32-L15 -> 0.095 | T34: 13100000 | U34: =U33+0.096% -> 0.13378 | V34: 0.00096
T35: 13200000 | U35: =U34+0.096% -> 0.13474 | V35: 0.00096
A36: Grossed-up Tax Amount | L36: 0 | N36: =N34/(1-N32) -> 0.1124260355 | T36: 13300000 | U36: 0.1357 | V36: 0.00096
T37: 13400000 | U37: 0.13666 | V37: 0.00096
A38: Tax Related Amounts Forecast from Capital Tax Rate Changes | L38: =L27 -> 0 | N38: =N27 -> 0 | T38: 13500000 | U38: 0.13762 | V38: 0.00096
T39: 13600000 | U39: =U38+0.088% -> 0.1385 | V39: 0.00088
A40: Tax Related Amounts Forecast from lncome Tax Rate Changes | L40: =L36 -> 0 | N40: =N36 -> 0.1124260355 | T40: 13700000 | U40: =U39+0.088% -> 0.13938 | V40: 0.00088
T41: 13800000 | U41: 0.14026 | V41: 0.00088
A42: Total Tax Related Amounts | L42: =SUM(L40,L38) -> 0 | N42: =SUM(N40,N38) -> 0.1124260355 | T42: 13900000 | U42: 0.14114 | V42: 0.00088
T43: 14000000 | U43: 0.14202 | V43: 0.00088
A44: Incremental Tax Savings | N44: =N42-L42 -> 0.1124260355 | T44: 14100000 | U44: =U43+0.082% -> 0.14284 | V44: 0.00082
T45: 14200000 | U45: =U44+0.082% -> 0.14366 | V45: 0.00082
A46: Sharing of Tax Savings (50%) | N46: =0.5*N44 -> 0.05621301775 | T46: 14300000 | U46: 0.14448 | V46: 0.00082
T47: 14400000 | U47: 0.1453 | V47: 0.00082
T48: 14500000 | U48: 0.14612 | V48: 0.00082
T49: 14600000 | U49: =U48+0.076% -> 0.14688 | V49: 0.00076
T50: 14700000 | U50: =U49+0.076% -> 0.14764 | V50: 0.00076
T51: 14800000 | U51: 0.1484 | V51: 0.00076
T52: 14900000 | U52: 0.14916 | V52: 0.00076
T53: 15000000 | U53: 0.15 | V53: 0.00084

Sheet 12. STS - Tax Change Rate Rider
A11: This worksheet calculates a tax change volumetric rate rider. If the rate riders are material (round to 4 decimal places), then the outputs in columns M and O will appear on Sheet 27 - Final Tariff Schedule.
A15: Rate Class | C15: Total Revenue $ by Rate Class | E15: Total Revenue % by Rate Class | G15: Allocation of Tax Savings by Rate Class | I15: Billed kWh | K15: Billed kW | M15: Distribution Volumetric Rate kWh Rate Rider | O15: Distribution Volumetric Rate kW Rate Rider
A17: RESIDENTIAL | C17: 19655678.69 | E17: =C17/C26 -> 0.5496448554 | G17: =E17*G26 -> 0.03297869132 | I17: 595449114 | K17: 0 | M17: =ROUND(G17/I17,4) -> 0
A18: GENERAL SERVICE LESS THAN 50 KW | C18: 4476954.388 | E18: =C18/C26 -> 0.1251920621 | G18: =E18*G26 -> 0.007511523726 | I18: 158508292 | K18: 0 | M18: =ROUND(G18/I18,4) -> 0
A19: GENERAL SERVICE 50 TO 1,000 KW | C19: 8670905.112 | E19: =C19/C26 -> 0.242470304 | G19: =E19*G26 -> 0.01454821824 | I19: 606291782 | K19: 1589641 | O19: =ROUND(G19/K19,4) -> 0
A20: GENERAL SERVICE GREATER THAN 1,000 KW | C20: 1539460.825 | E20: =C20/C26 -> 0.04304897001 | G20: =E20*G26 -> 0.002582938201 | I20: 147386488 | K20: 329822 | O20: =ROUND(G20/K20,4) -> 0
A21: UNMETERED SCATTERED LOAD | C21: 111742.024 | E21: =C21/C26 -> 0.00312471676 | G21: =E21*G26 -> 0.0001874830056 | I21: 3504020 | K21: 0 | M21: =ROUND(G21/I21,4) -> 0
A22: SENTINEL LIGHTING | C22: 19834.6488 | E22: =C22/C26 -> 0.000554649516 | G22: =E22*G26 -> 3.327897096e-05 | I22: 116788 | K22: 324 | O22: =ROUND(G22/K22,4) -> 0
A23: STREET LIGHTING | C23: 1025786.191 | E23: =C23/C26 -> 0.02868474356 | G23: =E23*G26 -> 0.001721084614 | I23: 8943095 | K23: 24961 | O23: =ROUND(G23/K23,4) -> 0
A24: EMBEDDED DISTRIBUTOR | C24: 260327.04 | E24: =C24/C26 -> 0.007279698682 | G24: =E24*G26 -> 0.0004367819209 | I24: 33729600 | K24: 72000 | O24: =ROUND(G24/K24,4) -> 0
A25: microFIT | C25: 0 | E25: =C25/C26 -> 0 | G25: =E25*G26 -> 0
A26: Total | C26: =SUM(C17:C25) -> 35760688.92 | E26: =SUM(E17:E25) -> 1 | G26: 0.06 | I26: =SUM(I17:I25) -> 1553929179 | K26: =SUM(K17:K25) -> 2016748
A28: One or more rate classes appear to have negligible rate riders in columns M and/or O. As per Appendix B of the Filing Requirements, please provide details of the Applicant's proposal in the Manager's Summary.

Sheet 13. RTSR Rate Sheet
A13: No input required. This sheet consolidates all Current Retail Transmission Rates entered on Sheet 4.
A15: Rate Class | B15: Rate Description | C15: Unit | D15: RTSR-Network | E15: RTSR-Connection
A17: RESIDENTIAL | B17: Retail Transmission Rate - Network Service Rate | C17: $/kWh | D17: 0.0079
A18: RESIDENTIAL | B18: Retail Transmission Rate - Line and Transformation Connection Service Rate | C18: $/kWh | E18: 0.0053
A19: GENERAL SERVICE LESS THAN 50 KW | B19: Retail Transmission Rate - Network Service Rate | C19: $/kWh | D19: 0.0073
A20: GENERAL SERVICE LESS THAN 50 KW | B20: Retail Transmission Rate - Line and Transformation Connection Service Rate | C20: $/kWh | E20: 0.0048
A21: GENERAL SERVICE 50 TO 1,000 KW | B21: Retail Transmission Rate - Network Service Rate | C21: $/kW | D21: 2.7441
A22: GENERAL SERVICE 50 TO 1,000 KW | B22: Retail Transmission Rate - Network Service Rate - Interval Metered | C22: $/kW | D22: 2.8328
A23: GENERAL SERVICE 50 TO 1,000 KW | B23: Retail Transmission Rate - Line and Transformation Connection Service Rate | C23: $/kW | E23: 1.8182
A24: GENERAL SERVICE 50 TO 1,000 KW | B24: Retail Transmission Rate - Line and Transformation Connection Service Rate - Interval Metered | C24: $/kW | E24: 1.8771
A25: GENERAL SERVICE GREATER THAN 1,000 KW | B25: Retail Transmission Rate - Network Service Rate - Interval Metered | C25: $/kW | D25: 2.8328
A26: GENERAL SERVICE GREATER THAN 1,000 KW | B26: Retail Transmission Rate - Line and Transformation Connection Service Rate - Interval Metered | C26: $/kW | E26: 1.8771
A27: UNMETERED SCATTERED LOAD | B27: Retail Transmission Rate - Network Service Rate | C27: $/kWh | D27: 0.0073
A28: UNMETERED SCATTERED LOAD | B28: Retail Transmission Rate - Line and Transformation Connection Service Rate | C28: $/kWh | E28: 0.0048
A29: SENTINEL LIGHTING | B29: Retail Transmission Rate - Network Service Rate | C29: $/kW | D29: 0.5501
A30: SENTINEL LIGHTING | B30: Retail Transmission Rate - Line and Transformation Connection Service Rate | C30: $/kW | E30: 0.3644
A31: STREET LIGHTING | B31: Retail Transmission Rate - Network Service Rate | C31: $/kW | D31: 2.2892
A32: STREET LIGHTING | B32: Retail Transmission Rate - Line and Transformation Connection Service Rate | C32: $/kW | E32: 1.5169
A33: EMBEDDED DISTRIBUTOR | B33: Retail Transmission Rate - Network Service Rate | C33: $/kW | D33: 2.8328
A34: EMBEDDED DISTRIBUTOR | B34: Retail Transmission Rate - Line and Transformation Connection Service Rate | C34: $/kW | E34: 1.8771

Sheet 14. RTSR RRR Data
A12: In the green shaded cells, enter the most recent reported RRR billing determinants. Please ensure that billing determinants are non-loss adjusted.
A14: Rate Class | B14: Rate Description | C14: Unit | D14: Non-Loss Adjusted Metered kWh | E14: Non-Loss Adjusted Metered kW | F14: Applicable Loss Factor | H14: Load Factor | I14: Loss Adjusted Billed kWh | J14: Billed kW
A15: RESIDENTIAL | B15: Retail Transmission Rate - Network Service Rate | C15: $/kWh | D15: 572236944.9 | E15: 0 | F15: 1.0377 | H15: =IF(C15="$/kW", D15/(E15* 30.4 * 24), "" ) ->  | I15: =IF(OR(F15=0, OR(ISBLANK(F15), TRIM(F15)="")), F15, F15 * D15) -> 593810277.7 | J15: =IF(OR(F15=0, OR(ISBLANK(F15), TRIM(F15)="")), E15, E15) -> 0
A16: RESIDENTIAL | B16: Retail Transmission Rate - Line and Transformation Connection Service Rate | C16: $/kWh | D16: 572236944.9 | E16: 0 | F16: 1.0377 | H16: =IF(C16="$/kW", D16/(E16* 30.4 * 24), "" ) ->  | I16: 593810277.7 | J16: 0
A17: GENERAL SERVICE LESS THAN 50 KW | B17: Retail Transmission Rate - Network Service Rate | C17: $/kWh | D17: 172953883 | E17: 0 | F17: 1.0377 | H17: =IF(C17="$/kW", D17/(E17* 30.4 * 24), "" ) ->  | I17: 179474244.4 | J17: 0
A18: GENERAL SERVICE LESS THAN 50 KW | B18: Retail Transmission Rate - Line and Transformation Connection Service Rate | C18: $/kWh | D18: 172953883 | E18: 0 | F18: 1.0377 | H18: =IF(C18="$/kW", D18/(E18* 30.4 * 24), "" ) ->  | I18: 179474244.4 | J18: 0
A19: GENERAL SERVICE 50 TO 1,000 KW | B19: Retail Transmission Rate - Network Service Rate | C19: $/kW | D19: 206043284 | E19: 605497.6 | F19: 0 | H19: 0 | I19: 0 | J19: 605497.6
A20: GENERAL SERVICE 50 TO 1,000 KW | B20: Retail Transmission Rate - Network Service Rate - Interval Metered | C20: $/kW | D20: 403693690.8 | E20: 1053437.1 | F20: 0 | H20: 0 | I20: 0 | J20: 1053437.1
A21: GENERAL SERVICE 50 TO 1,000 KW | B21: Retail Transmission Rate - Line and Transformation Connection Service Rate | C21: $/kW | D21: 206043284 | E21: 605497.6 | F21: 0 | H21: 0 | I21: 0 | J21: 605497.6
A22: GENERAL SERVICE 50 TO 1,000 KW | B22: Retail Transmission Rate - Line and Transformation Connection Service Rate - Interval Metered | C22: $/kW | D22: 403693690.8 | E22: 1053437.1 | F22: 0 | H22: 0 | I22: 0 | J22: 1053437.1
A23: GENERAL SERVICE GREATER THAN 1,000 KW | B23: Retail Transmission Rate - Network Service Rate - Interval Metered | C23: $/kW | D23: 155250395 | E23: 362505 | F23: 0 | H23: 0 | I23: 0 | J23: 362505
A24: GENERAL SERVICE GREATER THAN 1,000 KW | B24: Retail Transmission Rate - Line and Transformation Connection Service Rate - Interval Metered | C24: $/kW | D24: 155250395 | E24: 362505 | F24: 0 | H24: 0 | I24: 0 | J24: 362505
A25: UNMETERED SCATTERED LOAD | B25: Retail Transmission Rate - Network Service Rate | C25: $/kWh | D25: 52920 | E25: 0 | F25: 1.0377 | H25: =IF(C25="$/kW", D25/(E25* 30.4 * 24), "" ) ->  | I25: 54915.084 | J25: 0
A26: UNMETERED SCATTERED LOAD | B26: Retail Transmission Rate - Line and Transformation Connection Service Rate | C26: $/kWh | D26: 52920 | E26: 0 | F26: 1.0377 | H26: =IF(C26="$/kW", D26/(E26* 30.4 * 24), "" ) ->  | I26: 54915.084 | J26: 0
A27: SENTINEL LIGHTING | B27: Retail Transmission Rate - Network Service Rate | C27: $/kW | D27: 110368 | E27: 306.58 | F27: 0 | H27: 0 | I27: 0 | J27: 306.58
A28: SENTINEL LIGHTING | B28: Retail Transmission Rate - Line and Transformation Connection Service Rate | C28: $/kW | D28: 110368 | E28: 306.58 | F28: 0 | H28: 0 | I28: 0 | J28: 306.58
A29: STREET LIGHTING | B29: Retail Transmission Rate - Network Service Rate | C29: $/kW | D29: 11905955 | E29: 33116 | F29: 0 | H29: 0 | I29: 0 | J29: 33116
A30: STREET LIGHTING | B30: Retail Transmission Rate - Line and Transformation Connection Service Rate | C30: $/kW | D30: 11905955 | E30: 33116 | F30: 0 | H30: 0 | I30: 0 | J30: 33116
A31: EMBEDDED DISTRIBUTOR | B31: Retail Transmission Rate - Network Service Rate | C31: $/kW | D31: 17153684 | E31: 62339 | F31: 0 | H31: 0 | I31: 0 | J31: 62339
A32: EMBEDDED DISTRIBUTOR | B32: Retail Transmission Rate - Line and Transformation Connection Service Rate | C32: $/kW | D32: 17153684 | E32: 62339 | F32: 0 | H32: 0 | I32: 0 | J32: 62339

Sheet 14. RTSR RRR Data Copy (hidden)
A12: In the green shaded cells, enter the most recent reported RRR billing determinants. Please ensure that billing determinants are non-loss adjusted.
A14: Rate Class | B14: Rate Description | C14: Unit | D14: Non-Loss Adjusted Metered kWh | E14: Non-Loss Adjusted Metered kW | F14: Applicable Loss Factor | H14: Load Factor | I14: Loss Adjusted Billed kWh | J14: Billed kW
A15: RESIDENTIAL | B15: Retail Transmission Rate - Network Service Rate | C15: $/kWh | D15: 572236944.9 | E15: 0 | F15: 1.0377
A16: RESIDENTIAL | B16: Retail Transmission Rate - Line and Transformation Connection Service Rate | C16: $/kWh | D16: 572236944.9 | E16: 0 | F16: 1.0377
A17: GENERAL SERVICE LESS THAN 50 KW | B17: Retail Transmission Rate - Network Service Rate | C17: $/kWh | D17: 172953883 | E17: 0 | F17: 1.0377
A18: GENERAL SERVICE LESS THAN 50 KW | B18: Retail Transmission Rate - Line and Transformation Connection Service Rate | C18: $/kWh | D18: 172953883 | E18: 0 | F18: 1.0377
A19: GENERAL SERVICE 50 TO 1,000 KW | B19: Retail Transmission Rate - Network Service Rate | C19: $/kW | D19: 206043284 | E19: 605497.6 | F19: 0
A20: GENERAL SERVICE 50 TO 1,000 KW | B20: Retail Transmission Rate - Network Service Rate - Interval Metered | C20: $/kW | D20: 403693690.8 | E20: 1053437.1 | F20: 0
A21: GENERAL SERVICE 50 TO 1,000 KW | B21: Retail Transmission Rate - Line and Transformation Connection Service Rate | C21: $/kW | D21: 206043284 | E21: 605497.6 | F21: 0
A22: GENERAL SERVICE 50 TO 1,000 KW | B22: Retail Transmission Rate - Line and Transformation Connection Service Rate - Interval Metered | C22: $/kW | D22: 403693690.8 | E22: 1053437.1 | F22: 0
A23: GENERAL SERVICE GREATER THAN 1,000 KW | B23: Retail Transmission Rate - Network Service Rate - Interval Metered | C23: $/kW | D23: 155250395 | E23: 362505 | F23: 0
A24: GENERAL SERVICE GREATER THAN 1,000 KW | B24: Retail Transmission Rate - Line and Transformation Connection Service Rate - Interval Metered | C24: $/kW | D24: 155250395 | E24: 362505 | F24: 0
A25: UNMETERED SCATTERED LOAD | B25: Retail Transmission Rate - Network Service Rate | C25: $/kWh | D25: 52920 | E25: 0 | F25: 1.0377
A26: UNMETERED SCATTERED LOAD | B26: Retail Transmission Rate - Line and Transformation Connection Service Rate | C26: $/kWh | D26: 52920 | E26: 0 | F26: 1.0377
A27: SENTINEL LIGHTING | B27: Retail Transmission Rate - Network Service Rate | C27: $/kW | D27: 110368 | E27: 306.58 | F27: 0
A28: SENTINEL LIGHTING | B28: Retail Transmission Rate - Line and Transformation Connection Service Rate | C28: $/kW | D28: 110368 | E28: 306.58 | F28: 0
A29: STREET LIGHTING | B29: Retail Transmission Rate - Network Service Rate | C29: $/kW | D29: 11905955 | E29: 33116 | F29: 0
A30: STREET LIGHTING | B30: Retail Transmission Rate - Line and Transformation Connection Service Rate | C30: $/kW | D30: 11905955 | E30: 33116 | F30: 0
A31: EMBEDDED DISTRIBUTOR | B31: Retail Transmission Rate - Network Service Rate | C31: $/kW | D31: 17153684 | E31: 62339 | F31: 0
A32: EMBEDDED DISTRIBUTOR | B32: Retail Transmission Rate - Line and Transformation Connection Service Rate | C32: $/kW | D32: 17153684 | E32: 62339 | F32: 0

Sheet 15. RTSR - UTRs & Sub-Tx
B18: Uniform Transmission Rates | C18: Unit | E18: Effective January 1, 2013 | G18: Effective January 1, 2014 | I18: Effective January 1, 2015
B20: Rate Description | E20: Rate | G20: Rate | I20: Rate
B22: Network Service Rate | C22: kW | E22: 3.63 | G22: 3.82 | I22: 3.82
B24: Line Connection Service Rate | C24: kW | E24: 0.75 | G24: 0.82 | I24: 0.82
B26: Transformation Connection Service Rate | C26: kW | E26: 1.85 | G26: 1.98 | I26: 1.98
B29: Hydro One Sub-Transmission Rates | C29: Unit | E29: Effective January 1, 2013 | G29: Effective January 1, 2014 | I29: Effective January 1, 2015
B33: Rate Description | E33: Rate | G33: Rate | I33: Rate
B35: Network Service Rate | C35: kW | E35: 3.18 | G35: 3.23 | I35: 3.23
B37: Line Connection Service Rate | C37: kW | E37: 0.7 | G37: 0.65 | I37: 0.65
B39: Transformation Connection Service Rate | C39: kW | E39: 1.63 | G39: 1.62 | I39: 1.62
B41: Both Line and Transformation Connection Service Rate | C41: kW | E41: =E39+E37 -> 2.33 | G41: =G39+G37 -> 2.27 | I41: =I39+I37 -> 2.27
B44: If needed , add extra host here (I) | C44: Unit | E44: Effective January 1, 2013 | G44: Effective January 1, 2014 | I44: Effective January 1, 2015
B48: Rate Description | E48: Rate | G48: Rate | I48: Rate
B50: Network Service Rate | C50: kW
B52: Line Connection Service Rate | C52: kW
B54: Transformation Connection Service Rate | C54: kW
B56: Both Line and Transformation Connection Service Rate | C56: kW | E56: =E54+E52 -> 0 | G56: =G54+G52 -> 0 | I56: =I54+I52 -> 0
B59: If needed , add extra host here (II) | C59: Unit | E59: Effective January 1, 2013 | G59: Effective January 1, 2014 | I59: Effective January 1, 2015
B63: Rate Description | E63: Rate | G63: Rate | I63: Rate
B65: Network Service Rate | C65: kW
B67: Line Connection Service Rate | C67: kW
B69: Transformation Connection Service Rate | C69: kW
B71: Both Line and Transformation Connection Service Rate | C71: kW | E71: =E69+E67 -> 0 | G71: =G69+G67 -> 0 | I71: =I69+I67 -> 0
B75: Hydro One Sub-Transmission Rate Rider 9A | C75: Unit | E75: Effective January 1, 2013 | G75: Effective January 1, 2014 | I75: Effective January 1, 2015
B77: Rate Description | E77: Rate | G77: Rate | I77: Rate
B79: RSVA Transmission network – 4714 – which affects 1584 | C79: kW | E79: 0 | G79: 0.1465
B81: RSVA Transmission connection – 4716 – which affects 1586 | C81: kW | E81: 0 | G81: 0.0667
B83: RSVA LV – 4750 – which affects 1550 | C83: kW | E83: 0 | G83: 0.0475
B85: RARA 1 – 2252 – which affects 1590 | C85: kW | E85: 0 | G85: 0.0419
B87: RARA 1 – 2252 – which affects 1590 (2008) | C87: kW | E87: 0 | G87: -0.027
B89: RARA 1 – 2252 – which affects 1590 (2009) | C89: kW | E89: 0 | G89: -0.0006
B91: Hydro One Sub-Transmission Rate Rider 9A | C91: kW | E91: =SUM(E79:E89) -> 0 | G91: =SUM(G79:G89) -> 0.275 | I91: =SUM(I79:I89) -> 0
E94: Historical 2013 | G94: Current 2014 | I94: Forecast 2015
B95: Low Voltage Switchgear Credit (if applicable, enter as a negative value) | C95: $

Sheet 16. RTSR - Historical Wholesale
B13: In the green shaded cells, enter billing detail for wholesale transmission for the same reporting period as the billing determinants on Sheet "14. RTSR RRR Data". For Hydro One Sub-transmission Rates, if you are charged a combined Line and Transformer connection rate, please ensure that both the line connection and transformer connection columns are completed.
B16: IESO | D16: Network | H16: Line Connection | L16: Transformation Connection | P16: Total Line
B17: Month | D17: Units Billed | E17: Rate | F17: Amount | H17: Units Billed | I17: Rate | J17: Amount | L17: Units Billed | M17: Rate | N17: Amount | P17: Amount
B19: January | D19: 193126 | E19: =IF(D19<>0,F19/D19,0) -> 3.63 | F19: 701047.38 | H19: 206262 | I19: =IF(H19<>0,J19/H19,0) -> 0.75 | J19: 154696.5 | L19: 185633 | M19: =IF(L19<>0,N19/L19,0) -> 1.85 | N19: 343421.05 | P19: =J19+N19 -> 498117.55
B20: February | D20: 181677 | E20: 3.63 | F20: 659487.51 | H20: 190291 | I20: 0.75 | J20: 142718.25 | L20: 169762 | M20: 1.85 | N20: 314059.7 | P20: 456777.95
B21: March | D21: 177788 | E21: 3.63 | F21: 645370.44 | H21: 187220 | I21: 0.75 | J21: 140415 | L21: 160734 | M21: 1.85 | N21: 297357.9 | P21: 437772.9
B22: April | D22: 163660 | E22: 3.63 | F22: 594085.8 | H22: 170743 | I22: 0.75 | J22: 128057.25 | L22: 152898 | M22: 1.85 | N22: 282861.3 | P22: 410918.55
B23: May | D23: 220622 | E23: 3.63 | F23: 800857.86 | H23: 228108 | I23: 0.75 | J23: 171081 | L23: 203023 | M23: 1.85 | N23: 375592.55 | P23: 546673.55
B24: June | D24: 265507 | E24: 3.63 | F24: 963790.41 | H24: 267003 | I24: 0.75 | J24: 200252.25 | L24: 237799 | M24: 1.85 | N24: 439928.15 | P24: 640180.4
B25: July | D25: 305005 | E25: 3.63 | F25: 1107168.15 | H25: 340184 | I25: 0.75 | J25: 255138 | L25: 309105 | M25: 1.85 | N25: 571844.25 | P25: 826982.25
B26: August | D26: 247273 | E26: 3.63 | F26: 897600.99 | H26: 258855 | I26: 0.75 | J26: 194141.25 | L26: 220108 | M26: 1.85 | N26: 407199.8 | P26: 601341.05
B27: September | D27: 260081 | E27: 3.63 | F27: 944094.03 | H27: 267544 | I27: 0.75 | J27: 200658 | L27: 239248 | M27: 1.85 | N27: 442608.8 | P27: 643266.8
B28: October | D28: 175491 | E28: 3.63 | F28: 637032.33 | H28: 189954 | I28: 0.75 | J28: 142465.5 | L28: 168247 | M28: 1.85 | N28: 311256.95 | P28: 453722.45
B29: November | D29: 218000 | E29: 3.63 | F29: 791340 | H29: 244099 | I29: 0.75 | J29: 183074.25 | L29: 186966 | M29: 1.85 | N29: 345887.1 | P29: 528961.35
B30: December | D30: 219128 | E30: 3.63 | F30: 795434.64 | H30: 247826 | I30: 0.75 | J30: 185869.5 | L30: 192087 | M30: 1.85 | N30: 355360.95 | P30: 541230.45
B32: Total | D32: =SUM(D19:D30) -> 2627358 | E32: =IF(D32<>0,F32/D32,0) -> 3.63 | F32: =SUM(F19:F30) -> 9537309.54 | H32: =SUM(H19:H30) -> 2798089 | I32: =IF(H32<>0,J32/H32,0) -> 0.75 | J32: =SUM(J19:J30) -> 2098566.75 | L32: =SUM(L19:L30) -> 2425610 | M32: =IF(L32<>0,N32/L32,0) -> 1.85 | N32: =SUM(N19:N30) -> 4487378.5 | P32: =SUM(P19:P30) -> 6585945.25
B34: Hydro One | D34: Network | H34: Line Connection | L34: Transformation Connection | P34: Total Line
B36: Month | D36: Units Billed | E36: Rate | F36: Amount | H36: Units Billed | I36: Rate | J36: Amount | L36: Units Billed | M36: Rate | N36: Amount | P36: Amount
B38: January | D38: 57364 | E38: =IF(D38<>0,F38/D38,0) -> 3.18 | F38: 182417.52 | I38: =IF(H38<>0,J38/H38,0) -> 0 | L38: 57364 | M38: =IF(L38<>0,N38/L38,0) -> 1.63 | N38: 93503.32 | P38: =J38+N38 -> 93503.32
B39: February | D39: 52940 | E39: 3.18 | F39: 168349.2 | I39: 0 | L39: 54373 | M39: 1.63 | N39: 88627.99 | P39: 88627.99
B40: March | D40: 55131 | E40: 3.18 | F40: 175316.58 | I40: 0 | L40: 57712 | M40: 1.63 | N40: 94070.56 | P40: 94070.56
B41: April | D41: 47760.30629 | E41: 3.18 | F41: 151877.774 | I41: 0 | L41: 47968.43613 | M41: 1.63 | N41: 78188.5509 | P41: 78188.5509
B42: May | D42: 79354.11686 | E42: 3.18 | F42: 252346.0916 | I42: 0 | L42: 79354.12613 | M42: 1.63 | N42: 129347.2256 | P42: 129347.2256
B43: June | D43: 76472.61 | E43: 3.18 | F43: 243182.8998 | I43: 0 | L43: 76848.44 | M43: 1.63 | N43: 125262.9572 | P43: 125262.9572
B44: July | D44: 87231.53686 | E44: 3.18 | F44: 277396.2872 | I44: 0 | L44: 87231.54 | M44: 1.63 | N44: 142187.4102 | P44: 142187.4102
B45: August | D45: 75374.47314 | E45: 3.18 | F45: 239690.8246 | I45: 0 | L45: 75374.47 | M45: 1.63 | N45: 122860.3861 | P45: 122860.3861
B46: September | D46: 84773.88 | E46: 3.18 | F46: 269580.9384 | I46: 0 | L46: 84773.88613 | M46: 1.63 | N46: 138181.4344 | P46: 138181.4344
B47: October | D47: 49660.91686 | E47: 3.18 | F47: 157921.7156 | I47: 0 | L47: 49660.92 | M47: 1.63 | N47: 80947.2996 | P47: 80947.2996
B48: November | D48: 51615.46686 | E48: 3.18 | F48: 164137.1846 | I48: 0 | L48: 51615.46387 | M48: 1.63 | N48: 84133.2061 | P48: 84133.2061
B49: December | D49: 75302.53 | E49: 3.193235327 | F49: 240458.699 | I49: 0 | L49: 75302.53 | M49: 1.627353025 | N49: 122543.8 | P49: 122543.8
B51: Total | D51: =SUM(D38:D49) -> 792980.8369 | E51: =IF(D51<>0,F51/D51,0) -> 3.181256845 | F51: =SUM(F38:F49) -> 2522675.715 | H51: =SUM(H38:H49) -> 0 | I51: =IF(H51<>0,J51/H51,0) -> 0 | J51: =SUM(J38:J49) -> 0 | L51: =SUM(L38:L49) -> 797578.8123 | M51: =IF(L51<>0,N51/L51,0) -> 1.629750089 | N51: =SUM(N38:N49) -> 1299854.14 | P51: =SUM(P38:P49) -> 1299854.14
B53: Add Extra Host Here (I) | D53: Network | H53: Line Connection | L53: Transformation Connection | P53: Total Line
B54: (if needed)
B55: Month | D55: Units Billed | E55: Rate | F55: Amount | H55: Units Billed | I55: Rate | J55: Amount | L55: Units Billed | M55: Rate | N55: Amount | P55: Amount
B57: January | E57: =IF(D57<>0,F57/D57,0) -> 0 | I57: =IF(H57<>0,J57/H57,0) -> 0 | M57: =IF(L57<>0,N57/L57,0) -> 0 | P57: =J57+N57 -> 0
B58: February | E58: 0 | I58: 0 | M58: 0 | P58: 0
B59: March | E59: 0 | I59: 0 | M59: 0 | P59: 0
B60: April | E60: 0 | I60: 0 | M60: 0 | P60: 0
B61: May | E61: 0 | I61: 0 | M61: 0 | P61: 0
B62: June | E62: 0 | I62: 0 | M62: 0 | P62: 0
B63: July | E63: 0 | I63: 0 | M63: 0 | P63: 0
B64: August | E64: 0 | I64: 0 | M64: 0 | P64: 0
B65: September | E65: 0 | I65: 0 | M65: 0 | P65: 0
B66: October | E66: 0 | I66: 0 | M66: 0 | P66: 0
B67: November | E67: 0 | I67: 0 | M67: 0 | P67: 0
B68: December | E68: 0 | I68: 0 | M68: 0 | P68: 0
B70: Total | D70: =SUM(D57:D68) -> 0 | E70: =IF(D70<>0,F70/D70,0) -> 0 | F70: =SUM(F57:F68) -> 0 | H70: =SUM(H57:H68) -> 0 | I70: =IF(H70<>0,J70/H70,0) -> 0 | J70: =SUM(J57:J68) -> 0 | L70: =SUM(L57:L68) -> 0 | M70: =IF(L70<>0,N70/L70,0) -> 0 | N70: =SUM(N57:N68) -> 0 | P70: =SUM(P57:P68) -> 0
B72: Add Extra Host Here (II) | D72: Network | H72: Line Connection | L72: Transformation Connection | P72: Total Line
B73: (if needed)
B74: Month | D74: Units Billed | E74: Rate | F74: Amount | H74: Units Billed | I74: Rate | J74: Amount | L74: Units Billed | M74: Rate | N74: Amount | P74: Amount
B76: January | E76: =IF(D76<>0,F76/D76,0) -> 0 | I76: =IF(H76<>0,J76/H76,0) -> 0 | M76: =IF(L76<>0,N76/L76,0) -> 0 | P76: =J76+N76 -> 0
B77: February | E77: 0 | I77: 0 | M77: 0 | P77: 0
B78: March | E78: 0 | I78: 0 | M78: 0 | P78: 0
B79: April | E79: 0 | I79: 0 | M79: 0 | P79: 0
B80: May | E80: 0 | I80: 0 | M80: 0 | P80: 0
B81: June | E81: 0 | I81: 0 | M81: 0 | P81: 0
B82: July | E82: 0 | I82: 0 | M82: 0 | P82: 0
B83: August | E83: 0 | I83: 0 | M83: 0 | P83: 0
B84: September | E84: 0 | I84: 0 | M84: 0 | P84: 0
B85: October | E85: 0 | I85: 0 | M85: 0 | P85: 0
B86: November | E86: 0 | I86: 0 | M86: 0 | P86: 0
B87: December | E87: 0 | I87: 0 | M87: 0 | P87: 0
B89: Total | D89: =SUM(D76:D87) -> 0 | E89: =IF(D89<>0,F89/D89,0) -> 0 | F89: =SUM(F76:F87) -> 0 | H89: =SUM(H76:H87) -> 0 | I89: =IF(H89<>0,J89/H89,0) -> 0 | J89: =SUM(J76:J87) -> 0 | L89: =SUM(L76:L87) -> 0 | M89: =IF(L89<>0,N89/L89,0) -> 0 | N89: =SUM(N76:N87) -> 0 | P89: =SUM(P76:P87) -> 0
B91: Total | D91: Network | H91: Line Connection | L91: Transformation Connection | P91: Total Line
B93: Month | D93: Units Billed | E93: Rate | F93: Amount | H93: Units Billed | I93: Rate | J93: Amount | L93: Units Billed | M93: Rate | N93: Amount | P93: Amount
B95: January | D95: =D19+D38+D57+D76 -> 250490 | E95: =IF(D95<>0,F95/D95,0) -> 3.526946784 | F95: =F19+F38+F57+F76 -> 883464.9 | H95: =H19+H38+H57+H76 -> 206262 | I95: =IF(H95<>0,J95/H95,0) -> 0.75 | J95: =J19+J38+J57+J76 -> 154696.5 | L95: =L19+L38+L57+L76 -> 242997 | M95: =IF(L95<>0,N95/L95,0) -> 1.798064873 | N95: =N19+N38+N57+N76 -> 436924.37 | P95: =J95+N95 -> 591620.87
B96: February | D96: =D20+D39+D58+D77 -> 234617 | E96: 3.528460043 | F96: =F20+F39+F58+F77 -> 827836.71 | H96: =H20+H39+H58+H77 -> 190291 | I96: 0.75 | J96: =J20+J39+J58+J77 -> 142718.25 | L96: =L20+L39+L58+L77 -> 224135 | M96: 1.796630111 | N96: =N20+N39+N58+N77 -> 402687.69 | P96: 545405.94
B97: March | D97: 232919 | E97: 3.523486792 | F97: 820687.02 | H97: 187220 | I97: 0.75 | J97: 140415 | L97: 218446 | M97: 1.791877443 | N97: 391428.46 | P97: 531843.46
B98: April | D98: 211420.3063 | E98: 3.528344023 | F98: 745963.574 | H98: 170743 | I98: 0.75 | J98: 128057.25 | L98: 200866.4361 | M98: 1.797462323 | N98: 361049.8509 | P98: 489107.1009
B99: May | D99: 299976.1169 | E99: 3.510959348 | F99: 1053203.952 | H99: 228108 | I99: 0.75 | J99: 171081 | L99: 282377.1261 | M99: 1.788175206 | N99: 504939.7756 | P99: 676020.7756
B100: June | D100: 341979.61 | E100: 3.529372145 | F100: 1206973.31 | H100: 267003 | I100: 0.75 | J100: 200252.25 | L100: 314647.44 | M100: 1.796267935 | N100: 565191.1072 | P100: 765443.3572
B101: July | D101: 392236.5369 | E101: 3.529922144 | F101: 1384564.437 | H101: 340184 | I101: 0.75 | J101: 255138 | L101: 396336.54 | M101: 1.801579184 | N101: 714031.6602 | P101: 969169.6602
B102: August | D102: 322647.4731 | E102: 3.524874388 | F102: 1137291.815 | H102: 258855 | I102: 0.75 | J102: 194141.25 | L102: 295482.47 | M102: 1.793880314 | N102: 530060.1861 | P102: 724201.4361
B103: September | D103: 344854.88 | E103: 3.519378842 | F103: 1213674.968 | H103: 267544 | I103: 0.75 | J103: 200658 | L103: 324021.8861 | M103: 1.792441373 | N103: 580790.2344 | P103: 781448.2344
B104: October | D104: 225151.9169 | E104: 3.530745182 | F104: 794954.0456 | H104: 189954 | I104: 0.75 | J104: 142465.5 | L104: 217907.92 | M104: 1.799862298 | N104: 392204.2496 | P104: 534669.7496
B105: November | D105: 269615.4669 | E105: 3.54385153 | F105: 955477.1846 | H105: 244099 | I105: 0.75 | J105: 183074.25 | L105: 238581.4639 | M105: 1.802404508 | N105: 430020.3061 | P105: 613094.5561
B106: December | D106: 294430.53 | E106: 3.518294584 | F106: 1035893.339 | H106: 247826 | I106: 0.75 | J106: 185869.5 | L106: 267389.53 | M106: 1.787297917 | N106: 477904.75 | P106: 663774.25
B108: Total | D108: =SUM(D95:D106) -> 3420338.837 | E108: =IF(D108<>0,F108/D108,0) -> 3.525962143 | F108: =SUM(F95:F106) -> 12059985.25 | H108: =SUM(H95:H106) -> 2798089 | I108: =IF(H108<>0,J108/H108,0) -> 0.75 | J108: =SUM(J95:J106) -> 2098566.75 | L108: =SUM(L95:L106) -> 3223188.812 | M108: =IF(L108<>0,N108/L108,0) -> 1.795499109 | N108: =SUM(N95:N106) -> 5787232.64 | P108: =SUM(P95:P106) -> 7885799.39
N110: Transformer Allowance Credit (if applicable) | P110: ='15. RTSR - UTRs & Sub-Tx'!E95 -> 0
N112: Total including deduction for Transformer Allowance Credit | P112: =P108+P110 -> 7885799.39

Sheet 17. RTSR - Current Wholesale
B13: The purpose of this sheet is to calculate the expected billing when current 2014 Uniform Transmission Rates are applied against historical 2013 transmission units.
B16: IESO | D16: Network | H16: Line Connection | L16: Transformation Connection | P16: Total Line
B18: Month | D18: Units Billed | E18: Rate | F18: Amount | H18: Units Billed | I18: Rate | J18: Amount | L18: Units Billed | M18: Rate | N18: Amount | P18: Amount
B20: January | D20: ='16. RTSR - Historical Wholesale'!D19 -> 193126 | E20: ='15. RTSR - UTRs & Sub-Tx'!G22 -> 3.82 | F20: =D20*E20 -> 737741.32 | H20: ='16. RTSR - Historical Wholesale'!H19 -> 206262 | I20: ='15. RTSR - UTRs & Sub-Tx'!G24 -> 0.82 | J20: =H20*I20 -> 169134.84 | L20: ='16. RTSR - Historical Wholesale'!L19 -> 185633 | M20: ='15. RTSR - UTRs & Sub-Tx'!G26 -> 1.98 | N20: =L20*M20 -> 367553.34 | P20: =J20+N20 -> 536688.18
B21: February | D21: ='16. RTSR - Historical Wholesale'!D20 -> 181677 | E21: =E20 -> 3.82 | F21: =D21*E21 -> 694006.14 | H21: ='16. RTSR - Historical Wholesale'!H20 -> 190291 | I21: =I20 -> 0.82 | J21: =H21*I21 -> 156038.62 | L21: ='16. RTSR - Historical Wholesale'!L20 -> 169762 | M21: =M20 -> 1.98 | N21: =L21*M21 -> 336128.76 | P21: 492167.38
B22: March | D22: ='16. RTSR - Historical Wholesale'!D21 -> 177788 | E22: =E21 -> 3.82 | F22: 679150.16 | H22: ='16. RTSR - Historical Wholesale'!H21 -> 187220 | I22: =I21 -> 0.82 | J22: 153520.4 | L22: ='16. RTSR - Historical Wholesale'!L21 -> 160734 | M22: =M21 -> 1.98 | N22: 318253.32 | P22: 471773.72
B23: April | D23: ='16. RTSR - Historical Wholesale'!D22 -> 163660 | E23: 3.82 | F23: 625181.2 | H23: ='16. RTSR - Historical Wholesale'!H22 -> 170743 | I23: 0.82 | J23: 140009.26 | L23: ='16. RTSR - Historical Wholesale'!L22 -> 152898 | M23: 1.98 | N23: 302738.04 | P23: 442747.3
B24: May | D24: ='16. RTSR - Historical Wholesale'!D23 -> 220622 | E24: 3.82 | F24: 842776.04 | H24: ='16. RTSR - Historical Wholesale'!H23 -> 228108 | I24: 0.82 | J24: 187048.56 | L24: ='16. RTSR - Historical Wholesale'!L23 -> 203023 | M24: 1.98 | N24: 401985.54 | P24: 589034.1
B25: June | D25: ='16. RTSR - Historical Wholesale'!D24 -> 265507 | E25: 3.82 | F25: 1014236.74 | H25: ='16. RTSR - Historical Wholesale'!H24 -> 267003 | I25: 0.82 | J25: 218942.46 | L25: ='16. RTSR - Historical Wholesale'!L24 -> 237799 | M25: 1.98 | N25: 470842.02 | P25: 689784.48
B26: July | D26: ='16. RTSR - Historical Wholesale'!D25 -> 305005 | E26: 3.82 | F26: 1165119.1 | H26: ='16. RTSR - Historical Wholesale'!H25 -> 340184 | I26: 0.82 | J26: 278950.88 | L26: ='16. RTSR - Historical Wholesale'!L25 -> 309105 | M26: 1.98 | N26: 612027.9 | P26: 890978.78
B27: August | D27: ='16. RTSR - Historical Wholesale'!D26 -> 247273 | E27: 3.82 | F27: 944582.86 | H27: ='16. RTSR - Historical Wholesale'!H26 -> 258855 | I27: 0.82 | J27: 212261.1 | L27: ='16. RTSR - Historical Wholesale'!L26 -> 220108 | M27: 1.98 | N27: 435813.84 | P27: 648074.94
B28: September | D28: ='16. RTSR - Historical Wholesale'!D27 -> 260081 | E28: 3.82 | F28: 993509.42 | H28: ='16. RTSR - Historical Wholesale'!H27 -> 267544 | I28: 0.82 | J28: 219386.08 | L28: ='16. RTSR - Historical Wholesale'!L27 -> 239248 | M28: 1.98 | N28: 473711.04 | P28: 693097.12
B29: October | D29: ='16. RTSR - Historical Wholesale'!D28 -> 175491 | E29: 3.82 | F29: 670375.62 | H29: ='16. RTSR - Historical Wholesale'!H28 -> 189954 | I29: 0.82 | J29: 155762.28 | L29: ='16. RTSR - Historical Wholesale'!L28 -> 168247 | M29: 1.98 | N29: 333129.06 | P29: 488891.34
B30: November | D30: ='16. RTSR - Historical Wholesale'!D29 -> 218000 | E30: 3.82 | F30: 832760 | H30: ='16. RTSR - Historical Wholesale'!H29 -> 244099 | I30: 0.82 | J30: 200161.18 | L30: ='16. RTSR - Historical Wholesale'!L29 -> 186966 | M30: 1.98 | N30: 370192.68 | P30: 570353.86
B31: December | D31: ='16. RTSR - Historical Wholesale'!D30 -> 219128 | E31: 3.82 | F31: 837068.96 | H31: ='16. RTSR - Historical Wholesale'!H30 -> 247826 | I31: 0.82 | J31: 203217.32 | L31: ='16. RTSR - Historical Wholesale'!L30 -> 192087 | M31: 1.98 | N31: 380332.26 | P31: 583549.58
B33: Total | D33: =SUM(D20:D31) -> 2627358 | E33: =IF(D33<>0,F33/D33,0) -> 3.82 | F33: =SUM(F20:F31) -> 10036507.56 | H33: =SUM(H20:H31) -> 2798089 | I33: =IF(H33<>0,J33/H33,0) -> 0.82 | J33: =SUM(J20:J31) -> 2294432.98 | L33: =SUM(L20:L31) -> 2425610 | M33: =IF(L33<>0,N33/L33,0) -> 1.98 | N33: =SUM(N20:N31) -> 4802707.8 | P33: =SUM(P20:P31) -> 7097140.78
B35: Hydro One | D35: Network | H35: Line Connection | L35: Transformation Connection | P35: Total Line
B37: Month | D37: Units Billed | E37: Rate | F37: Amount | H37: Units Billed | I37: Rate | J37: Amount | L37: Units Billed | M37: Rate | N37: Amount | P37: Amount
B39: January | D39: ='16. RTSR - Historical Wholesale'!D38 -> 57364 | E39: ='15. RTSR - UTRs & Sub-Tx'!G35+'15. RTSR - UTRs & Sub-Tx'!G79 -> 3.3765 | F39: =D39*E39 -> 193689.546 | H39: ='16. RTSR - Historical Wholesale'!H38 -> 0 | I39: ='15. RTSR - UTRs & Sub-Tx'!G37+'15. RTSR - UTRs & Sub-Tx'!G81 -> 0.7167 | J39: =H39*I39 -> 0 | L39: ='16. RTSR - Historical Wholesale'!L38 -> 57364 | M39: ='15. RTSR - UTRs & Sub-Tx'!G39 -> 1.62 | N39: =L39*M39 -> 92929.68 | P39: =J39+N39 -> 92929.68
B40: February | D40: ='16. RTSR - Historical Wholesale'!D39 -> 52940 | E40: =E39 -> 3.3765 | F40: =D40*E40 -> 178751.91 | H40: ='16. RTSR - Historical Wholesale'!H39 -> 0 | I40: =I39 -> 0.7167 | J40: =H40*I40 -> 0 | L40: ='16. RTSR - Historical Wholesale'!L39 -> 54373 | M40: =M39 -> 1.62 | N40: =L40*M40 -> 88084.26 | P40: 88084.26
B41: March | D41: ='16. RTSR - Historical Wholesale'!D40 -> 55131 | E41: =E40 -> 3.3765 | F41: 186149.8215 | H41: ='16. RTSR - Historical Wholesale'!H40 -> 0 | I41: =I40 -> 0.7167 | J41: 0 | L41: ='16. RTSR - Historical Wholesale'!L40 -> 57712 | M41: =M40 -> 1.62 | N41: 93493.44 | P41: 93493.44
B42: April | D42: ='16. RTSR - Historical Wholesale'!D41 -> 47760.30629 | E42: 3.3765 | F42: 161262.6742 | H42: ='16. RTSR - Historical Wholesale'!H41 -> 0 | I42: 0.7167 | J42: 0 | L42: ='16. RTSR - Historical Wholesale'!L41 -> 47968.43613 | M42: =M41 -> 1.62 | N42: 77708.86654 | P42: 77708.86654
B43: May | D43: ='16. RTSR - Historical Wholesale'!D42 -> 79354.11686 | E43: 3.3765 | F43: 267939.1756 | H43: ='16. RTSR - Historical Wholesale'!H42 -> 0 | I43: 0.7167 | J43: 0 | L43: ='16. RTSR - Historical Wholesale'!L42 -> 79354.12613 | M43: 1.62 | N43: 128553.6843 | P43: 128553.6843
B44: June | D44: ='16. RTSR - Historical Wholesale'!D43 -> 76472.61 | E44: 3.3765 | F44: 258209.7677 | H44: ='16. RTSR - Historical Wholesale'!H43 -> 0 | I44: 0.7167 | J44: 0 | L44: ='16. RTSR - Historical Wholesale'!L43 -> 76848.44 | M44: 1.62 | N44: 124494.4728 | P44: 124494.4728
B45: July | D45: ='16. RTSR - Historical Wholesale'!D44 -> 87231.53686 | E45: 3.3765 | F45: 294537.2842 | H45: ='16. RTSR - Historical Wholesale'!H44 -> 0 | I45: 0.7167 | J45: 0 | L45: ='16. RTSR - Historical Wholesale'!L44 -> 87231.54 | M45: 1.62 | N45: 141315.0948 | P45: 141315.0948
B46: August | D46: ='16. RTSR - Historical Wholesale'!D45 -> 75374.47314 | E46: 3.3765 | F46: 254501.9086 | H46: ='16. RTSR - Historical Wholesale'!H45 -> 0 | I46: 0.7167 | J46: 0 | L46: ='16. RTSR - Historical Wholesale'!L45 -> 75374.47 | M46: 1.62 | N46: 122106.6414 | P46: 122106.6414
B47: September | D47: ='16. RTSR - Historical Wholesale'!D46 -> 84773.88 | E47: 3.3765 | F47: 286239.0058 | H47: ='16. RTSR - Historical Wholesale'!H46 -> 0 | I47: 0.7167 | J47: 0 | L47: ='16. RTSR - Historical Wholesale'!L46 -> 84773.88613 | M47: 1.62 | N47: 137333.6955 | P47: 137333.6955
B48: October | D48: ='16. RTSR - Historical Wholesale'!D47 -> 49660.91686 | E48: 3.3765 | F48: 167680.0858 | H48: ='16. RTSR - Historical Wholesale'!H47 -> 0 | I48: 0.7167 | J48: 0 | L48: ='16. RTSR - Historical Wholesale'!L47 -> 49660.92 | M48: 1.62 | N48: 80450.6904 | P48: 80450.6904
B49: November | D49: ='16. RTSR - Historical Wholesale'!D48 -> 51615.46686 | E49: 3.3765 | F49: 174279.6238 | H49: ='16. RTSR - Historical Wholesale'!H48 -> 0 | I49: 0.7167 | J49: 0 | L49: ='16. RTSR - Historical Wholesale'!L48 -> 51615.46387 | M49: 1.62 | N49: 83617.05146 | P49: 83617.05146
B50: December | D50: ='16. RTSR - Historical Wholesale'!D49 -> 75302.53 | E50: 3.3765 | F50: 254258.9925 | H50: ='16. RTSR - Historical Wholesale'!H49 -> 0 | I50: 0.7167 | J50: 0 | L50: ='16. RTSR - Historical Wholesale'!L49 -> 75302.53 | M50: 1.62 | N50: 121990.0986 | P50: 121990.0986
B52: Total | D52: =SUM(D39:D50) -> 792980.8369 | E52: =IF(D52<>0,F52/D52,0) -> 3.3765 | F52: =SUM(F39:F50) -> 2677499.796 | H52: =SUM(H39:H50) -> 0 | I52: =IF(H52<>0,J52/H52,0) -> 0 | J52: =SUM(J39:J50) -> 0 | L52: =SUM(L39:L50) -> 797578.8123 | M52: =IF(L52<>0,N52/L52,0) -> 1.62 | N52: =SUM(N39:N50) -> 1292077.676 | P52: =SUM(P39:P50) -> 1292077.676
B54: ='16. RTSR - Historical Wholesale'!B53 -> Add Extra Host Here (I) | D54: Network | H54: Line Connection | L54: Transformation Connection | P54: Total Line
B56: Month | D56: Units Billed | E56: Rate | F56: Amount | H56: Units Billed | I56: Rate | J56: Amount | L56: Units Billed | M56: Rate | N56: Amount | P56: Amount
B58: January | D58: ='16. RTSR - Historical Wholesale'!D57 -> 0 | E58: ='15. RTSR - UTRs & Sub-Tx'!G50 -> 0 | F58: =D58*E58 -> 0 | H58: ='16. RTSR - Historical Wholesale'!H57 -> 0 | I58: ='15. RTSR - UTRs & Sub-Tx'!G52 -> 0 | J58: =H58*I58 -> 0 | L58: ='16. RTSR - Historical Wholesale'!L57 -> 0 | M58: ='15. RTSR - UTRs & Sub-Tx'!G54 -> 0 | N58: =L58*M58 -> 0 | P58: =J58+N58 -> 0
B59: February | D59: ='16. RTSR - Historical Wholesale'!D58 -> 0 | E59: =E58 -> 0 | F59: =D59*E59 -> 0 | H59: ='16. RTSR - Historical Wholesale'!H58 -> 0 | I59: =I58 -> 0 | J59: =H59*I59 -> 0 | L59: ='16. RTSR - Historical Wholesale'!L58 -> 0 | M59: =M58 -> 0 | N59: =L59*M59 -> 0 | P59: 0
B60: March | D60: ='16. RTSR - Historical Wholesale'!D59 -> 0 | E60: =E59 -> 0 | F60: 0 | H60: ='16. RTSR - Historical Wholesale'!H59 -> 0 | I60: =I59 -> 0 | J60: 0 | L60: ='16. RTSR - Historical Wholesale'!L59 -> 0 | M60: =M59 -> 0 | N60: 0 | P60: 0
B61: April | D61: ='16. RTSR - Historical Wholesale'!D60 -> 0 | E61: 0 | F61: 0 | H61: ='16. RTSR - Historical Wholesale'!H60 -> 0 | I61: 0 | J61: 0 | L61: ='16. RTSR - Historical Wholesale'!L60 -> 0 | M61: =M60 -> 0 | N61: 0 | P61: 0
B62: May | D62: ='16. RTSR - Historical Wholesale'!D61 -> 0 | E62: 0 | F62: 0 | H62: ='16. RTSR - Historical Wholesale'!H61 -> 0 | I62: 0 | J62: 0 | L62: ='16. RTSR - Historical Wholesale'!L61 -> 0 | M62: 0 | N62: 0 | P62: 0
B63: June | D63: ='16. RTSR - Historical Wholesale'!D62 -> 0 | E63: 0 | F63: 0 | H63: ='16. RTSR - Historical Wholesale'!H62 -> 0 | I63: 0 | J63: 0 | L63: ='16. RTSR - Historical Wholesale'!L62 -> 0 | M63: 0 | N63: 0 | P63: 0
B64: July | D64: ='16. RTSR - Historical Wholesale'!D63 -> 0 | E64: 0 | F64: 0 | H64: ='16. RTSR - Historical Wholesale'!H63 -> 0 | I64: 0 | J64: 0 | L64: ='16. RTSR - Historical Wholesale'!L63 -> 0 | M64: 0 | N64: 0 | P64: 0
B65: August | D65: ='16. RTSR - Historical Wholesale'!D64 -> 0 | E65: 0 | F65: 0 | H65: ='16. RTSR - Historical Wholesale'!H64 -> 0 | I65: 0 | J65: 0 | L65: ='16. RTSR - Historical Wholesale'!L64 -> 0 | M65: 0 | N65: 0 | P65: 0
B66: September | D66: ='16. RTSR - Historical Wholesale'!D65 -> 0 | E66: 0 | F66: 0 | H66: ='16. RTSR - Historical Wholesale'!H65 -> 0 | I66: 0 | J66: 0 | L66: ='16. RTSR - Historical Wholesale'!L65 -> 0 | M66: 0 | N66: 0 | P66: 0
B67: October | D67: ='16. RTSR - Historical Wholesale'!D66 -> 0 | E67: 0 | F67: 0 | H67: ='16. RTSR - Historical Wholesale'!H66 -> 0 | I67: 0 | J67: 0 | L67: ='16. RTSR - Historical Wholesale'!L66 -> 0 | M67: 0 | N67: 0 | P67: 0
B68: November | D68: ='16. RTSR - Historical Wholesale'!D67 -> 0 | E68: 0 | F68: 0 | H68: ='16. RTSR - Historical Wholesale'!H67 -> 0 | I68: 0 | J68: 0 | L68: ='16. RTSR - Historical Wholesale'!L67 -> 0 | M68: 0 | N68: 0 | P68: 0
B69: December | D69: ='16. RTSR - Historical Wholesale'!D68 -> 0 | E69: 0 | F69: 0 | H69: ='16. RTSR - Historical Wholesale'!H68 -> 0 | I69: 0 | J69: 0 | L69: ='16. RTSR - Historical Wholesale'!L68 -> 0 | M69: 0 | N69: 0 | P69: 0
B71: Total | D71: =SUM(D58:D69) -> 0 | E71: =IF(D71<>0,F71/D71,0) -> 0 | F71: =SUM(F58:F69) -> 0 | H71: =SUM(H58:H69) -> 0 | I71: =IF(H71<>0,J71/H71,0) -> 0 | J71: =SUM(J58:J69) -> 0 | L71: =SUM(L58:L69) -> 0 | M71: =IF(L71<>0,N71/L71,0) -> 0 | N71: =SUM(N58:N69) -> 0 | P71: =SUM(P58:P69) -> 0
B73: ='16. RTSR - Historical Wholesale'!B72 -> Add Extra Host Here (II) | D73: Network | H73: Line Connection | L73: Transformation Connection | P73: Total Line
B75: Month | D75: Units Billed | E75: Rate | F75: Amount | H75: Units Billed | I75: Rate | J75: Amount | L75: Units Billed | M75: Rate | N75: Amount | P75: Amount
B77: January | D77: ='16. RTSR - Historical Wholesale'!D76 -> 0 | E77: ='15. RTSR - UTRs & Sub-Tx'!G65 -> 0 | F77: =D77*E77 -> 0 | H77: ='16. RTSR - Historical Wholesale'!H76 -> 0 | I77: ='15. RTSR - UTRs & Sub-Tx'!G67 -> 0 | J77: =H77*I77 -> 0 | L77: ='16. RTSR - Historical Wholesale'!L76 -> 0 | M77: ='15. RTSR - UTRs & Sub-Tx'!G69 -> 0 | N77: =L77*M77 -> 0 | P77: =J77+N77 -> 0
B78: February | D78: ='16. RTSR - Historical Wholesale'!D77 -> 0 | E78: =E77 -> 0 | F78: =D78*E78 -> 0 | H78: ='16. RTSR - Historical Wholesale'!H77 -> 0 | I78: =I77 -> 0 | J78: =H78*I78 -> 0 | L78: ='16. RTSR - Historical Wholesale'!L77 -> 0 | M78: =M77 -> 0 | N78: =L78*M78 -> 0 | P78: 0
B79: March | D79: ='16. RTSR - Historical Wholesale'!D78 -> 0 | E79: =E78 -> 0 | F79: 0 | H79: ='16. RTSR - Historical Wholesale'!H78 -> 0 | I79: =I78 -> 0 | J79: 0 | L79: ='16. RTSR - Historical Wholesale'!L78 -> 0 | M79: =M78 -> 0 | N79: 0 | P79: 0
B80: April | D80: ='16. RTSR - Historical Wholesale'!D79 -> 0 | E80: 0 | F80: 0 | H80: ='16. RTSR - Historical Wholesale'!H79 -> 0 | I80: 0 | J80: 0 | L80: ='16. RTSR - Historical Wholesale'!L79 -> 0 | M80: =M79 -> 0 | N80: 0 | P80: 0
B81: May | D81: ='16. RTSR - Historical Wholesale'!D80 -> 0 | E81: 0 | F81: 0 | H81: ='16. RTSR - Historical Wholesale'!H80 -> 0 | I81: 0 | J81: 0 | L81: ='16. RTSR - Historical Wholesale'!L80 -> 0 | M81: 0 | N81: 0 | P81: 0
B82: June | D82: ='16. RTSR - Historical Wholesale'!D81 -> 0 | E82: 0 | F82: 0 | H82: ='16. RTSR - Historical Wholesale'!H81 -> 0 | I82: 0 | J82: 0 | L82: ='16. RTSR - Historical Wholesale'!L81 -> 0 | M82: 0 | N82: 0 | P82: 0
B83: July | D83: ='16. RTSR - Historical Wholesale'!D82 -> 0 | E83: 0 | F83: 0 | H83: ='16. RTSR - Historical Wholesale'!H82 -> 0 | I83: 0 | J83: 0 | L83: ='16. RTSR - Historical Wholesale'!L82 -> 0 | M83: 0 | N83: 0 | P83: 0
B84: August | D84: ='16. RTSR - Historical Wholesale'!D83 -> 0 | E84: 0 | F84: 0 | H84: ='16. RTSR - Historical Wholesale'!H83 -> 0 | I84: 0 | J84: 0 | L84: ='16. RTSR - Historical Wholesale'!L83 -> 0 | M84: 0 | N84: 0 | P84: 0
B85: September | D85: ='16. RTSR - Historical Wholesale'!D84 -> 0 | E85: 0 | F85: 0 | H85: ='16. RTSR - Historical Wholesale'!H84 -> 0 | I85: 0 | J85: 0 | L85: ='16. RTSR - Historical Wholesale'!L84 -> 0 | M85: 0 | N85: 0 | P85: 0
B86: October | D86: ='16. RTSR - Historical Wholesale'!D85 -> 0 | E86: 0 | F86: 0 | H86: ='16. RTSR - Historical Wholesale'!H85 -> 0 | I86: 0 | J86: 0 | L86: ='16. RTSR - Historical Wholesale'!L85 -> 0 | M86: 0 | N86: 0 | P86: 0
B87: November | D87: ='16. RTSR - Historical Wholesale'!D86 -> 0 | E87: 0 | F87: 0 | H87: ='16. RTSR - Historical Wholesale'!H86 -> 0 | I87: 0 | J87: 0 | L87: ='16. RTSR - Historical Wholesale'!L86 -> 0 | M87: 0 | N87: 0 | P87: 0
B88: December | D88: ='16. RTSR - Historical Wholesale'!D87 -> 0 | E88: 0 | F88: 0 | H88: ='16. RTSR - Historical Wholesale'!H87 -> 0 | I88: 0 | J88: 0 | L88: ='16. RTSR - Historical Wholesale'!L87 -> 0 | M88: 0 | N88: 0 | P88: 0
B90: Total | D90: =SUM(D77:D88) -> 0 | E90: =IF(D90<>0,F90/D90,0) -> 0 | F90: =SUM(F77:F88) -> 0 | H90: =SUM(H77:H88) -> 0 | I90: =IF(H90<>0,J90/H90,0) -> 0 | J90: =SUM(J77:J88) -> 0 | L90: =SUM(L77:L88) -> 0 | M90: =IF(L90<>0,N90/L90,0) -> 0 | N90: =SUM(N77:N88) -> 0 | P90: =SUM(P77:P88) -> 0
B92: Total | D92: Network | H92: Line Connection | L92: Transformation Connection | P92: Total Line
B94: Month | D94: Units Billed | E94: Rate | F94: Amount | H94: Units Billed | I94: Rate | J94: Amount | L94: Units Billed | M94: Rate | N94: Amount | P94: Amount
B96: January | D96: =D20+D39+D58+D77 -> 250490 | E96: =IF(D96<>0,F96/D96,0) -> 3.718435331 | F96: =F20+F39+F58+F77 -> 931430.866 | H96: =H20+H39+H58+H77 -> 206262 | I96: =IF(H96<>0,J96/H96,0) -> 0.82 | J96: =J20+J39+J58+J77 -> 169134.84 | L96: =L20+L39+L58+L77 -> 242997 | M96: =IF(L96<>0,N96/L96,0) -> 1.895015247 | N96: =N20+N39+N58+N77 -> 460483.02 | P96: =J96+N96 -> 629617.86
B97: February | D97: =D21+D40+D59+D78 -> 234617 | E97: 3.719926732 | F97: =F21+F40+F59+F78 -> 872758.05 | H97: =H21+H40+H59+H78 -> 190291 | I97: 0.82 | J97: =J21+J40+J59+J78 -> 156038.62 | L97: =L21+L40+L59+L78 -> 224135 | M97: 1.892667455 | N97: =N21+N40+N59+N78 -> 424213.02 | P97: 580251.64
B98: March | D98: 232919 | E98: 3.715025316 | F98: 865299.9815 | H98: 187220 | I98: 0.82 | J98: 153520.4 | L98: 218446 | M98: 1.884890362 | N98: 411746.76 | P98: 565267.16
B99: April | D99: 211420.3063 | E99: 3.719812387 | F99: 786443.8742 | H99: 170743 | I99: 0.82 | J99: 140009.26 | L99: 200866.4361 | M99: 1.894029256 | N99: 380446.9065 | P99: 520456.1665
B100: May | D100: 299976.1169 | E100: 3.702678824 | F100: 1110715.216 | H100: 228108 | I100: 0.82 | J100: 187048.56 | L100: 282377.1261 | M100: 1.878832155 | N100: 530539.2243 | P100: 717587.7843
B101: June | D101: 341979.61 | E101: 3.720825659 | F101: 1272446.508 | H101: 267003 | I101: 0.82 | J101: 218942.46 | L101: 314647.44 | M101: 1.892074802 | N101: 595336.4928 | P101: 814278.9528
B102: July | D102: 392236.5369 | E102: 3.721367713 | F102: 1459656.384 | H102: 340184 | I102: 0.82 | J102: 278950.88 | L102: 396336.54 | M102: 1.900765937 | N102: 753342.9948 | P102: 1032293.875
B103: August | D103: 322647.4731 | E103: 3.71639287 | F103: 1199084.769 | H103: 258855 | I103: 0.82 | J103: 212261.1 | L103: 295482.47 | M103: 1.888167787 | N103: 557920.4814 | P103: 770181.5814
B104: September | D104: 344854.88 | E104: 3.710976704 | F104: 1279748.426 | H104: 267544 | I104: 0.82 | J104: 219386.08 | L104: 324021.8861 | M104: 1.885813155 | N104: 611044.7355 | P104: 830430.8155
B105: October | D105: 225151.9169 | E105: 3.722178862 | F105: 838055.7058 | H105: 189954 | I105: 0.82 | J105: 155762.28 | L105: 217907.92 | M105: 1.897956487 | N105: 413579.7504 | P105: 569342.0304
B106: November | D106: 269615.4669 | E106: 3.735095896 | F106: 1007039.624 | H106: 244099 | I106: 0.82 | J106: 200161.18 | L106: 238581.4639 | M106: 1.902116468 | N106: 453809.7315 | P106: 653970.9115
B107: December | D107: 294430.53 | E107: 3.70657198 | F107: 1091327.953 | H107: 247826 | I107: 0.82 | J107: 203217.32 | L107: 267389.53 | M107: 1.878616409 | N107: 502322.3586 | P107: 705539.6786
B109: Total | D109: =SUM(D96:D107) -> 3420338.837 | E109: =IF(D109<>0,F109/D109,0) -> 3.717177731 | F109: =SUM(F96:F107) -> 12714007.36 | H109: =SUM(H96:H107) -> 2798089 | I109: =IF(H109<>0,J109/H109,0) -> 0.82 | J109: =SUM(J96:J107) -> 2294432.98 | L109: =SUM(L96:L107) -> 3223188.812 | M109: =IF(L109<>0,N109/L109,0) -> 1.890917917 | N109: =SUM(N96:N107) -> 6094785.476 | P109: =SUM(P96:P107) -> 8389218.456
N111: Transformer Allowance Credit (if applicable) | P111: ='15. RTSR - UTRs & Sub-Tx'!G95 -> 0
N113: Total including deduction for Transformer Allowance Credit | P113: =P109+P111 -> 8389218.456

Sheet 18. RTSR - Forecast Wholesale
B13: The purpose of this sheet is to calculate the expected billing when forecasted 2015 Uniform Transmission Rates are applied against historical 2013 transmission units.
B16: IESO | D16: Network | H16: Line Connection | L16: Transformation Connection | P16: Total Line
B18: Month | D18: Units Billed | E18: Rate | F18: Amount | H18: Units Billed | I18: Rate | J18: Amount | L18: Units Billed | M18: Rate | N18: Amount | P18: Amount
B20: January | D20: ='16. RTSR - Historical Wholesale'!D19 -> 193126 | E20: ='15. RTSR - UTRs & Sub-Tx'!I22 -> 3.82 | F20: =D20*E20 -> 737741.32 | H20: ='16. RTSR - Historical Wholesale'!H19 -> 206262 | I20: ='15. RTSR - UTRs & Sub-Tx'!I24 -> 0.82 | J20: =H20*I20 -> 169134.84 | L20: ='16. RTSR - Historical Wholesale'!L19 -> 185633 | M20: ='15. RTSR - UTRs & Sub-Tx'!I26 -> 1.98 | N20: =L20*M20 -> 367553.34 | P20: =J20+N20 -> 536688.18
B21: February | D21: ='16. RTSR - Historical Wholesale'!D20 -> 181677 | E21: =E20 -> 3.82 | F21: 694006.14 | H21: ='16. RTSR - Historical Wholesale'!H20 -> 190291 | I21: =I20 -> 0.82 | J21: 156038.62 | L21: ='16. RTSR - Historical Wholesale'!L20 -> 169762 | M21: =M20 -> 1.98 | N21: 336128.76 | P21: 492167.38
B22: March | D22: ='16. RTSR - Historical Wholesale'!D21 -> 177788 | E22: 3.82 | F22: 679150.16 | H22: ='16. RTSR - Historical Wholesale'!H21 -> 187220 | I22: 0.82 | J22: 153520.4 | L22: ='16. RTSR - Historical Wholesale'!L21 -> 160734 | M22: 1.98 | N22: 318253.32 | P22: 471773.72
B23: April | D23: ='16. RTSR - Historical Wholesale'!D22 -> 163660 | E23: 3.82 | F23: 625181.2 | H23: ='16. RTSR - Historical Wholesale'!H22 -> 170743 | I23: 0.82 | J23: 140009.26 | L23: ='16. RTSR - Historical Wholesale'!L22 -> 152898 | M23: 1.98 | N23: 302738.04 | P23: 442747.3
B24: May | D24: ='16. RTSR - Historical Wholesale'!D23 -> 220622 | E24: 3.82 | F24: 842776.04 | H24: ='16. RTSR - Historical Wholesale'!H23 -> 228108 | I24: 0.82 | J24: 187048.56 | L24: ='16. RTSR - Historical Wholesale'!L23 -> 203023 | M24: 1.98 | N24: 401985.54 | P24: 589034.1
B25: June | D25: ='16. RTSR - Historical Wholesale'!D24 -> 265507 | E25: 3.82 | F25: 1014236.74 | H25: ='16. RTSR - Historical Wholesale'!H24 -> 267003 | I25: 0.82 | J25: 218942.46 | L25: ='16. RTSR - Historical Wholesale'!L24 -> 237799 | M25: 1.98 | N25: 470842.02 | P25: 689784.48
B26: July | D26: ='16. RTSR - Historical Wholesale'!D25 -> 305005 | E26: 3.82 | F26: 1165119.1 | H26: ='16. RTSR - Historical Wholesale'!H25 -> 340184 | I26: 0.82 | J26: 278950.88 | L26: ='16. RTSR - Historical Wholesale'!L25 -> 309105 | M26: 1.98 | N26: 612027.9 | P26: 890978.78
B27: August | D27: ='16. RTSR - Historical Wholesale'!D26 -> 247273 | E27: 3.82 | F27: 944582.86 | H27: ='16. RTSR - Historical Wholesale'!H26 -> 258855 | I27: 0.82 | J27: 212261.1 | L27: ='16. RTSR - Historical Wholesale'!L26 -> 220108 | M27: 1.98 | N27: 435813.84 | P27: 648074.94
B28: September | D28: ='16. RTSR - Historical Wholesale'!D27 -> 260081 | E28: 3.82 | F28: 993509.42 | H28: ='16. RTSR - Historical Wholesale'!H27 -> 267544 | I28: 0.82 | J28: 219386.08 | L28: ='16. RTSR - Historical Wholesale'!L27 -> 239248 | M28: 1.98 | N28: 473711.04 | P28: 693097.12
B29: October | D29: ='16. RTSR - Historical Wholesale'!D28 -> 175491 | E29: 3.82 | F29: 670375.62 | H29: ='16. RTSR - Historical Wholesale'!H28 -> 189954 | I29: 0.82 | J29: 155762.28 | L29: ='16. RTSR - Historical Wholesale'!L28 -> 168247 | M29: 1.98 | N29: 333129.06 | P29: 488891.34
B30: November | D30: ='16. RTSR - Historical Wholesale'!D29 -> 218000 | E30: 3.82 | F30: 832760 | H30: ='16. RTSR - Historical Wholesale'!H29 -> 244099 | I30: 0.82 | J30: 200161.18 | L30: ='16. RTSR - Historical Wholesale'!L29 -> 186966 | M30: 1.98 | N30: 370192.68 | P30: 570353.86
B31: December | D31: ='16. RTSR - Historical Wholesale'!D30 -> 219128 | E31: 3.82 | F31: 837068.96 | H31: ='16. RTSR - Historical Wholesale'!H30 -> 247826 | I31: 0.82 | J31: 203217.32 | L31: ='16. RTSR - Historical Wholesale'!L30 -> 192087 | M31: 1.98 | N31: 380332.26 | P31: 583549.58
B33: Total | D33: =SUM(D20:D31) -> 2627358 | E33: =IF(D33<>0,F33/D33,0) -> 3.82 | F33: =SUM(F20:F31) -> 10036507.56 | H33: =SUM(H20:H31) -> 2798089 | I33: =IF(H33<>0,J33/H33,0) -> 0.82 | J33: =SUM(J20:J31) -> 2294432.98 | L33: =SUM(L20:L31) -> 2425610 | M33: =IF(L33<>0,N33/L33,0) -> 1.98 | N33: =SUM(N20:N31) -> 4802707.8 | P33: =SUM(P20:P31) -> 7097140.78
B35: Hydro One | D35: Network | H35: Line Connection | L35: Transformation Connection | P35: Total Line
B37: Month | D37: Units Billed | E37: Rate | F37: Amount | H37: Units Billed | I37: Rate | J37: Amount | L37: Units Billed | M37: Rate | N37: Amount | P37: Amount
B39: January | D39: ='16. RTSR - Historical Wholesale'!D38 -> 57364 | E39: ='15. RTSR - UTRs & Sub-Tx'!I35+'15. RTSR - UTRs & Sub-Tx'!I79 -> 3.23 | F39: =D39*E39 -> 185285.72 | H39: ='16. RTSR - Historical Wholesale'!H38 -> 0 | I39: ='15. RTSR - UTRs & Sub-Tx'!I37+'15. RTSR - UTRs & Sub-Tx'!I81 -> 0.65 | J39: =H39*I39 -> 0 | L39: ='16. RTSR - Historical Wholesale'!L38 -> 57364 | M39: ='15. RTSR - UTRs & Sub-Tx'!I39 -> 1.62 | N39: =L39*M39 -> 92929.68 | P39: =J39+N39 -> 92929.68
B40: February | D40: ='16. RTSR - Historical Wholesale'!D39 -> 52940 | E40: =E39 -> 3.23 | F40: 170996.2 | H40: ='16. RTSR - Historical Wholesale'!H39 -> 0 | I40: =I39 -> 0.65 | J40: 0 | L40: ='16. RTSR - Historical Wholesale'!L39 -> 54373 | M40: =M39 -> 1.62 | N40: 88084.26 | P40: 88084.26
B41: March | D41: ='16. RTSR - Historical Wholesale'!D40 -> 55131 | E41: 3.23 | F41: 178073.13 | H41: ='16. RTSR - Historical Wholesale'!H40 -> 0 | I41: 0.65 | J41: 0 | L41: ='16. RTSR - Historical Wholesale'!L40 -> 57712 | M41: 1.62 | N41: 93493.44 | P41: 93493.44
B42: April | D42: ='16. RTSR - Historical Wholesale'!D41 -> 47760.30629 | E42: 3.23 | F42: 154265.7893 | H42: ='16. RTSR - Historical Wholesale'!H41 -> 0 | I42: 0.65 | J42: 0 | L42: ='16. RTSR - Historical Wholesale'!L41 -> 47968.43613 | M42: 1.62 | N42: 77708.86654 | P42: 77708.86654
B43: May | D43: ='16. RTSR - Historical Wholesale'!D42 -> 79354.11686 | E43: 3.23 | F43: 256313.7974 | H43: ='16. RTSR - Historical Wholesale'!H42 -> 0 | I43: 0.65 | J43: 0 | L43: ='16. RTSR - Historical Wholesale'!L42 -> 79354.12613 | M43: 1.62 | N43: 128553.6843 | P43: 128553.6843
B44: June | D44: ='16. RTSR - Historical Wholesale'!D43 -> 76472.61 | E44: 3.23 | F44: 247006.5303 | H44: ='16. RTSR - Historical Wholesale'!H43 -> 0 | I44: 0.65 | J44: 0 | L44: ='16. RTSR - Historical Wholesale'!L43 -> 76848.44 | M44: 1.62 | N44: 124494.4728 | P44: 124494.4728
B45: July | D45: ='16. RTSR - Historical Wholesale'!D44 -> 87231.53686 | E45: 3.23 | F45: 281757.864 | H45: ='16. RTSR - Historical Wholesale'!H44 -> 0 | I45: 0.65 | J45: 0 | L45: ='16. RTSR - Historical Wholesale'!L44 -> 87231.54 | M45: 1.62 | N45: 141315.0948 | P45: 141315.0948
B46: August | D46: ='16. RTSR - Historical Wholesale'!D45 -> 75374.47314 | E46: 3.23 | F46: 243459.5483 | H46: ='16. RTSR - Historical Wholesale'!H45 -> 0 | I46: 0.65 | J46: 0 | L46: ='16. RTSR - Historical Wholesale'!L45 -> 75374.47 | M46: 1.62 | N46: 122106.6414 | P46: 122106.6414
B47: September | D47: ='16. RTSR - Historical Wholesale'!D46 -> 84773.88 | E47: 3.23 | F47: 273819.6324 | H47: ='16. RTSR - Historical Wholesale'!H46 -> 0 | I47: 0.65 | J47: 0 | L47: ='16. RTSR - Historical Wholesale'!L46 -> 84773.88613 | M47: 1.62 | N47: 137333.6955 | P47: 137333.6955
B48: October | D48: ='16. RTSR - Historical Wholesale'!D47 -> 49660.91686 | E48: 3.23 | F48: 160404.7614 | H48: ='16. RTSR - Historical Wholesale'!H47 -> 0 | I48: 0.65 | J48: 0 | L48: ='16. RTSR - Historical Wholesale'!L47 -> 49660.92 | M48: 1.62 | N48: 80450.6904 | P48: 80450.6904
B49: November | D49: ='16. RTSR - Historical Wholesale'!D48 -> 51615.46686 | E49: 3.23 | F49: 166717.9579 | H49: ='16. RTSR - Historical Wholesale'!H48 -> 0 | I49: 0.65 | J49: 0 | L49: ='16. RTSR - Historical Wholesale'!L48 -> 51615.46387 | M49: 1.62 | N49: 83617.05146 | P49: 83617.05146
B50: December | D50: ='16. RTSR - Historical Wholesale'!D49 -> 75302.53 | E50: 3.23 | F50: 243227.1719 | H50: ='16. RTSR - Historical Wholesale'!H49 -> 0 | I50: 0.65 | J50: 0 | L50: ='16. RTSR - Historical Wholesale'!L49 -> 75302.53 | M50: 1.62 | N50: 121990.0986 | P50: 121990.0986
B52: Total | D52: =SUM(D39:D50) -> 792980.8369 | E52: =IF(D52<>0,F52/D52,0) -> 3.23 | F52: =SUM(F39:F50) -> 2561328.103 | H52: =SUM(H39:H50) -> 0 | I52: =IF(H52<>0,J52/H52,0) -> 0 | J52: =SUM(J39:J50) -> 0 | L52: =SUM(L39:L50) -> 797578.8123 | M52: =IF(L52<>0,N52/L52,0) -> 1.62 | N52: =SUM(N39:N50) -> 1292077.676 | P52: =SUM(P39:P50) -> 1292077.676
B54: ='16. RTSR - Historical Wholesale'!B53 -> Add Extra Host Here (I) | D54: Network | H54: Line Connection | L54: Transformation Connection | P54: Total Line
B56: Month | D56: Units Billed | E56: Rate | F56: Amount | H56: Units Billed | I56: Rate | J56: Amount | L56: Units Billed | M56: Rate | N56: Amount | P56: Amount
B58: January | D58: ='16. RTSR - Historical Wholesale'!D57 -> 0 | E58: ='15. RTSR - UTRs & Sub-Tx'!I50 -> 0 | F58: =D58*E58 -> 0 | H58: ='16. RTSR - Historical Wholesale'!H57 -> 0 | I58: ='15. RTSR - UTRs & Sub-Tx'!I52 -> 0 | J58: =H58*I58 -> 0 | L58: ='16. RTSR - Historical Wholesale'!L57 -> 0 | M58: ='15. RTSR - UTRs & Sub-Tx'!I54 -> 0 | N58: =L58*M58 -> 0 | P58: =J58+N58 -> 0
B59: February | D59: ='16. RTSR - Historical Wholesale'!D58 -> 0 | E59: =E58 -> 0 | F59: 0 | H59: ='16. RTSR - Historical Wholesale'!H58 -> 0 | I59: =I58 -> 0 | J59: 0 | L59: ='16. RTSR - Historical Wholesale'!L58 -> 0 | M59: =M58 -> 0 | N59: 0 | P59: 0
B60: March | D60: ='16. RTSR - Historical Wholesale'!D59 -> 0 | E60: 0 | F60: 0 | H60: ='16. RTSR - Historical Wholesale'!H59 -> 0 | I60: 0 | J60: 0 | L60: ='16. RTSR - Historical Wholesale'!L59 -> 0 | M60: 0 | N60: 0 | P60: 0
B61: April | D61: ='16. RTSR - Historical Wholesale'!D60 -> 0 | E61: 0 | F61: 0 | H61: ='16. RTSR - Historical Wholesale'!H60 -> 0 | I61: 0 | J61: 0 | L61: ='16. RTSR - Historical Wholesale'!L60 -> 0 | M61: 0 | N61: 0 | P61: 0
B62: May | D62: ='16. RTSR - Historical Wholesale'!D61 -> 0 | E62: 0 | F62: 0 | H62: ='16. RTSR - Historical Wholesale'!H61 -> 0 | I62: 0 | J62: 0 | L62: ='16. RTSR - Historical Wholesale'!L61 -> 0 | M62: 0 | N62: 0 | P62: 0
B63: June | D63: ='16. RTSR - Historical Wholesale'!D62 -> 0 | E63: 0 | F63: 0 | H63: ='16. RTSR - Historical Wholesale'!H62 -> 0 | I63: 0 | J63: 0 | L63: ='16. RTSR - Historical Wholesale'!L62 -> 0 | M63: 0 | N63: 0 | P63: 0
B64: July | D64: ='16. RTSR - Historical Wholesale'!D63 -> 0 | E64: 0 | F64: 0 | H64: ='16. RTSR - Historical Wholesale'!H63 -> 0 | I64: 0 | J64: 0 | L64: ='16. RTSR - Historical Wholesale'!L63 -> 0 | M64: 0 | N64: 0 | P64: 0
B65: August | D65: ='16. RTSR - Historical Wholesale'!D64 -> 0 | E65: 0 | F65: 0 | H65: ='16. RTSR - Historical Wholesale'!H64 -> 0 | I65: 0 | J65: 0 | L65: ='16. RTSR - Historical Wholesale'!L64 -> 0 | M65: 0 | N65: 0 | P65: 0
B66: September | D66: ='16. RTSR - Historical Wholesale'!D65 -> 0 | E66: 0 | F66: 0 | H66: ='16. RTSR - Historical Wholesale'!H65 -> 0 | I66: 0 | J66: 0 | L66: ='16. RTSR - Historical Wholesale'!L65 -> 0 | M66: 0 | N66: 0 | P66: 0
B67: October | D67: ='16. RTSR - Historical Wholesale'!D66 -> 0 | E67: 0 | F67: 0 | H67: ='16. RTSR - Historical Wholesale'!H66 -> 0 | I67: 0 | J67: 0 | L67: ='16. RTSR - Historical Wholesale'!L66 -> 0 | M67: 0 | N67: 0 | P67: 0
B68: November | D68: ='16. RTSR - Historical Wholesale'!D67 -> 0 | E68: 0 | F68: 0 | H68: ='16. RTSR - Historical Wholesale'!H67 -> 0 | I68: 0 | J68: 0 | L68: ='16. RTSR - Historical Wholesale'!L67 -> 0 | M68: 0 | N68: 0 | P68: 0
B69: December | D69: ='16. RTSR - Historical Wholesale'!D68 -> 0 | E69: 0 | F69: 0 | H69: ='16. RTSR - Historical Wholesale'!H68 -> 0 | I69: 0 | J69: 0 | L69: ='16. RTSR - Historical Wholesale'!L68 -> 0 | M69: 0 | N69: 0 | P69: 0
B71: Total | D71: =SUM(D58:D69) -> 0 | E71: =IF(D71<>0,F71/D71,0) -> 0 | F71: =SUM(F58:F69) -> 0 | H71: =SUM(H58:H69) -> 0 | I71: =IF(H71<>0,J71/H71,0) -> 0 | J71: =SUM(J58:J69) -> 0 | L71: =SUM(L58:L69) -> 0 | M71: =IF(L71<>0,N71/L71,0) -> 0 | N71: =SUM(N58:N69) -> 0 | P71: =SUM(P58:P69) -> 0
B73: ='16. RTSR - Historical Wholesale'!B72 -> Add Extra Host Here (II) | D73: Network | H73: Line Connection | L73: Transformation Connection | P73: Total Line
B75: Month | D75: Units Billed | E75: Rate | F75: Amount | H75: Units Billed | I75: Rate | J75: Amount | L75: Units Billed | M75: Rate | N75: Amount | P75: Amount
B77: January | D77: ='16. RTSR - Historical Wholesale'!D76 -> 0 | E77: ='15. RTSR - UTRs & Sub-Tx'!I65 -> 0 | F77: =D77*E77 -> 0 | H77: ='16. RTSR - Historical Wholesale'!H76 -> 0 | I77: ='15. RTSR - UTRs & Sub-Tx'!I67 -> 0 | J77: =H77*I77 -> 0 | L77: ='16. RTSR - Historical Wholesale'!L76 -> 0 | M77: ='15. RTSR - UTRs & Sub-Tx'!I69 -> 0 | N77: =L77*M77 -> 0 | P77: =J77+N77 -> 0
B78: February | D78: ='16. RTSR - Historical Wholesale'!D77 -> 0 | E78: =E77 -> 0 | F78: 0 | H78: ='16. RTSR - Historical Wholesale'!H77 -> 0 | I78: =I77 -> 0 | J78: 0 | L78: ='16. RTSR - Historical Wholesale'!L77 -> 0 | M78: =M77 -> 0 | N78: 0 | P78: 0
B79: March | D79: ='16. RTSR - Historical Wholesale'!D78 -> 0 | E79: 0 | F79: 0 | H79: ='16. RTSR - Historical Wholesale'!H78 -> 0 | I79: 0 | J79: 0 | L79: ='16. RTSR - Historical Wholesale'!L78 -> 0 | M79: 0 | N79: 0 | P79: 0
B80: April | D80: ='16. RTSR - Historical Wholesale'!D79 -> 0 | E80: 0 | F80: 0 | H80: ='16. RTSR - Historical Wholesale'!H79 -> 0 | I80: 0 | J80: 0 | L80: ='16. RTSR - Historical Wholesale'!L79 -> 0 | M80: 0 | N80: 0 | P80: 0
B81: May | D81: ='16. RTSR - Historical Wholesale'!D80 -> 0 | E81: 0 | F81: 0 | H81: ='16. RTSR - Historical Wholesale'!H80 -> 0 | I81: 0 | J81: 0 | L81: ='16. RTSR - Historical Wholesale'!L80 -> 0 | M81: 0 | N81: 0 | P81: 0
B82: June | D82: ='16. RTSR - Historical Wholesale'!D81 -> 0 | E82: 0 | F82: 0 | H82: ='16. RTSR - Historical Wholesale'!H81 -> 0 | I82: 0 | J82: 0 | L82: ='16. RTSR - Historical Wholesale'!L81 -> 0 | M82: 0 | N82: 0 | P82: 0
B83: July | D83: ='16. RTSR - Historical Wholesale'!D82 -> 0 | E83: 0 | F83: 0 | H83: ='16. RTSR - Historical Wholesale'!H82 -> 0 | I83: 0 | J83: 0 | L83: ='16. RTSR - Historical Wholesale'!L82 -> 0 | M83: 0 | N83: 0 | P83: 0
B84: August | D84: ='16. RTSR - Historical Wholesale'!D83 -> 0 | E84: 0 | F84: 0 | H84: ='16. RTSR - Historical Wholesale'!H83 -> 0 | I84: 0 | J84: 0 | L84: ='16. RTSR - Historical Wholesale'!L83 -> 0 | M84: 0 | N84: 0 | P84: 0
B85: September | D85: ='16. RTSR - Historical Wholesale'!D84 -> 0 | E85: 0 | F85: 0 | H85: ='16. RTSR - Historical Wholesale'!H84 -> 0 | I85: 0 | J85: 0 | L85: ='16. RTSR - Historical Wholesale'!L84 -> 0 | M85: 0 | N85: 0 | P85: 0
B86: October | D86: ='16. RTSR - Historical Wholesale'!D85 -> 0 | E86: 0 | F86: 0 | H86: ='16. RTSR - Historical Wholesale'!H85 -> 0 | I86: 0 | J86: 0 | L86: ='16. RTSR - Historical Wholesale'!L85 -> 0 | M86: 0 | N86: 0 | P86: 0
B87: November | D87: ='16. RTSR - Historical Wholesale'!D86 -> 0 | E87: 0 | F87: 0 | H87: ='16. RTSR - Historical Wholesale'!H86 -> 0 | I87: 0 | J87: 0 | L87: ='16. RTSR - Historical Wholesale'!L86 -> 0 | M87: 0 | N87: 0 | P87: 0
B88: December | D88: ='16. RTSR - Historical Wholesale'!D87 -> 0 | E88: 0 | F88: 0 | H88: ='16. RTSR - Historical Wholesale'!H87 -> 0 | I88: 0 | J88: 0 | L88: ='16. RTSR - Historical Wholesale'!L87 -> 0 | M88: 0 | N88: 0 | P88: 0
B90: Total | D90: =SUM(D77:D88) -> 0 | E90: =IF(D90<>0,F90/D90,0) -> 0 | F90: =SUM(F77:F88) -> 0 | H90: =SUM(H77:H88) -> 0 | I90: =IF(H90<>0,J90/H90,0) -> 0 | J90: =SUM(J77:J88) -> 0 | L90: =SUM(L77:L88) -> 0 | M90: =IF(L90<>0,N90/L90,0) -> 0 | N90: =SUM(N77:N88) -> 0 | P90: =SUM(P77:P88) -> 0
B92: Total | D92: Network | H92: Line Connection | L92: Transformation Connection | P92: Total Line
B94: Month | D94: Units Billed | E94: Rate | F94: Amount | H94: Units Billed | I94: Rate | J94: Amount | L94: Units Billed | M94: Rate | N94: Amount | P94: Amount
B96: January | D96: =D20+D39 -> 250490 | E96: =IF(D96<>0,F96/D96,0) -> 3.684885784 | F96: =F20+F39 -> 923027.04 | H96: =H20+H39 -> 206262 | I96: =IF(H96<>0,J96/H96,0) -> 0.82 | J96: =J20+J39 -> 169134.84 | L96: =L20+L39 -> 242997 | M96: =IF(L96<>0,N96/L96,0) -> 1.895015247 | N96: =N20+N39 -> 460483.02 | P96: =J96+N96 -> 629617.86
B97: February | D97: 234617 | E97: 3.686869835 | F97: 865002.34 | H97: 190291 | I97: 0.82 | J97: 156038.62 | L97: 224135 | M97: 1.892667455 | N97: 424213.02 | P97: 580251.64
B98: March | D98: 232919 | E98: 3.680349349 | F98: 857223.29 | H98: 187220 | I98: 0.82 | J98: 153520.4 | L98: 218446 | M98: 1.884890362 | N98: 411746.76 | P98: 565267.16
B99: April | D99: 211420.3063 | E99: 3.686717719 | F99: 779446.9893 | H99: 170743 | I99: 0.82 | J99: 140009.26 | L99: 200866.4361 | M99: 1.894029256 | N99: 380446.9065 | P99: 520456.1665
B100: May | D100: 299976.1169 | E100: 3.663924478 | F100: 1099089.837 | H100: 228108 | I100: 0.82 | J100: 187048.56 | L100: 282377.1261 | M100: 1.878832155 | N100: 530539.2243 | P100: 717587.7843
B101: June | D101: 341979.61 | E101: 3.688065702 | F101: 1261243.27 | H101: 267003 | I101: 0.82 | J101: 218942.46 | L101: 314647.44 | M101: 1.892074802 | N101: 595336.4928 | P101: 814278.9528
B102: July | D102: 392236.5369 | E102: 3.688786811 | F102: 1446876.964 | H102: 340184 | I102: 0.82 | J102: 278950.88 | L102: 396336.54 | M102: 1.900765937 | N102: 753342.9948 | P102: 1032293.875
B103: August | D103: 322647.4731 | E103: 3.682168643 | F103: 1188042.408 | H103: 258855 | I103: 0.82 | J103: 212261.1 | L103: 295482.47 | M103: 1.888167787 | N103: 557920.4814 | P103: 770181.5814
B104: September | D104: 344854.88 | E104: 3.674963371 | F104: 1267329.052 | H104: 267544 | I104: 0.82 | J104: 219386.08 | L104: 324021.8861 | M104: 1.885813155 | N104: 611044.7355 | P104: 830430.8155
B105: October | D105: 225151.9169 | E105: 3.689865905 | F105: 830780.3814 | H105: 189954 | I105: 0.82 | J105: 155762.28 | L105: 217907.92 | M105: 1.897956487 | N105: 413579.7504 | P105: 569342.0304
B106: November | D106: 269615.4669 | E106: 3.707049783 | F106: 999477.9579 | H106: 244099 | I106: 0.82 | J106: 200161.18 | L106: 238581.4639 | M106: 1.902116468 | N106: 453809.7315 | P106: 653970.9115
B107: December | D107: 294430.53 | E107: 3.669103649 | F107: 1080296.132 | H107: 247826 | I107: 0.82 | J107: 203217.32 | L107: 267389.53 | M107: 1.878616409 | N107: 502322.3586 | P107: 705539.6786
B109: Total | D109: =SUM(D96:D107) -> 3420338.837 | E109: =IF(D109<>0,F109/D109,0) -> 3.683212765 | F109: =SUM(F96:F107) -> 12597835.66 | H109: =SUM(H96:H107) -> 2798089 | I109: =IF(H109<>0,J109/H109,0) -> 0.82 | J109: =SUM(J96:J107) -> 2294432.98 | L109: =SUM(L96:L107) -> 3223188.812 | M109: =IF(L109<>0,N109/L109,0) -> 1.890917917 | N109: =SUM(N96:N107) -> 6094785.476 | P109: =SUM(P96:P107) -> 8389218.456
N111: Transformer Allowance Credit (if applicable) | P111: ='15. RTSR - UTRs & Sub-Tx'!I95 -> 0
N113: Total including deduction for Transformer Allowance Credit | P113: =P109+P111 -> 8389218.456

Sheet 19. RTSR Ntwrk to Curren WS
A13: The purpose of this sheet is to re-align the current RTS Network Rates to recover current wholesale network costs.
A16: Rate Class | B16: Rate Description | C16: Unit | E16: Current RTSR-Network | G16: Loss Adjusted Billed kWh | I16: Loss Adjusted Billed kW | K16: Billed Amount | M16: Billed Amount % | O16: Current Wholesale Billing | Q16: Proposed RTSR Network
A19: RESIDENTIAL | B19: Retail Transmission Rate - Network Service Rate | C19: $/kWh | E19: 0.0079 | G19: 593810277.7 | I19: 0 | K19: =IF(E19="", "", IF(C19="$/kWh", E19*G19, E19*I19)) -> 4691101.194 | M19: =IF(ISERROR(K19/SUM(K19:K100)),"",K19/SUM(K19:K100)) -> 0.3933223164 | O19: =IF(ISERROR('17. RTSR - Current Wholesale'!$F$109*M19), "", '17. RTSR - Current Wholesale'!$F$109*M19) -> 5000702.824 | Q19: =IF(C19="","",IF(C19="$/kWh",IF(G19<>0,O19/G19,),IF(I19<>0,O19/I19,0))) -> 0.008421381394
A20: GENERAL SERVICE LESS THAN 50 KW | B20: Retail Transmission Rate - Network Service Rate | C20: $/kWh | E20: 0.0073 | G20: 179474244.4 | I20: 0 | K20: 1310161.984 | M20: =IF(ISERROR(K20/SUM(K19:K100)),"",K20/SUM(K19:K100)) -> 0.109849676 | O20: =IF(ISERROR('17. RTSR - Current Wholesale'!$F$109*M20), "", '17. RTSR - Current Wholesale'!$F$109*M20) -> 1396629.589 | Q20: 0.007781782807
A21: GENERAL SERVICE 50 TO 1,000 KW | B21: Retail Transmission Rate - Network Service Rate | C21: $/kW | E21: 2.7441 | G21: 0 | I21: 605497.6 | K21: 1661545.964 | M21: =IF(ISERROR(K21/SUM(K19:K100)),"",K21/SUM(K19:K100)) -> 0.1393112364 | O21: =IF(ISERROR('17. RTSR - Current Wholesale'!$F$109*M21), "", '17. RTSR - Current Wholesale'!$F$109*M21) -> 1771204.085 | Q21: 2.925204137
A22: GENERAL SERVICE 50 TO 1,000 KW | B22: Retail Transmission Rate - Network Service Rate - Interval Metered | C22: $/kW | E22: 2.8328 | G22: 0 | I22: 1053437.1 | K22: 2984176.617 | M22: =IF(ISERROR(K22/SUM(K19:K100)),"",K22/SUM(K19:K100)) -> 0.2502063399 | O22: =IF(ISERROR('17. RTSR - Current Wholesale'!$F$109*M22), "", '17. RTSR - Current Wholesale'!$F$109*M22) -> 3181125.245 | Q22: 3.019758128
A23: GENERAL SERVICE GREATER THAN 1,000 KW | B23: Retail Transmission Rate - Network Service Rate - Interval Metered | C23: $/kW | E23: 2.8328 | G23: 0 | I23: 362505 | K23: 1026904.164 | M23: =IF(ISERROR(K23/SUM(K19:K100)),"",K23/SUM(K19:K100)) -> 0.08610010909 | O23: =IF(ISERROR('17. RTSR - Current Wholesale'!$F$109*M23), "", '17. RTSR - Current Wholesale'!$F$109*M23) -> 1094677.42 | Q23: 3.019758128
A24: UNMETERED SCATTERED LOAD | B24: Retail Transmission Rate - Network Service Rate | C24: $/kWh | E24: 0.0073 | G24: 54915.084 | I24: 0 | K24: 400.8801132 | M24: =IF(ISERROR(K24/SUM(K19:K100)),"",K24/SUM(K19:K100)) -> 3.361153133e-05 | O24: =IF(ISERROR('17. RTSR - Current Wholesale'!$F$109*M24), "", '17. RTSR - Current Wholesale'!$F$109*M24) -> 427.3372565 | Q24: 0.007781782807
A25: SENTINEL LIGHTING | B25: Retail Transmission Rate - Network Service Rate | C25: $/kW | E25: 0.5501 | G25: 0 | I25: 306.58 | K25: 168.649658 | M25: =IF(ISERROR(K25/SUM(K19:K100)),"",K25/SUM(K19:K100)) -> 1.414032045e-05 | O25: =IF(ISERROR('17. RTSR - Current Wholesale'!$F$109*M25), "", '17. RTSR - Current Wholesale'!$F$109*M25) -> 179.7801382 | Q25: 0.5864053044
A26: STREET LIGHTING | B26: Retail Transmission Rate - Network Service Rate | C26: $/kW | E26: 2.2892 | G26: 0 | I26: 33116 | K26: 75809.1472 | M26: =IF(ISERROR(K26/SUM(K19:K100)),"",K26/SUM(K19:K100)) -> 0.006356168446 | O26: =IF(ISERROR('17. RTSR - Current Wholesale'!$F$109*M26), "", '17. RTSR - Current Wholesale'!$F$109*M26) -> 80812.37237 | Q26: 2.440281809
A27: EMBEDDED DISTRIBUTOR | B27: Retail Transmission Rate - Network Service Rate | C27: $/kW | E27: 2.8328 | G27: 0 | I27: 62339 | K27: 176593.9192 | M27: =IF(ISERROR(K27/SUM(K19:K100)),"",K27/SUM(K19:K100)) -> 0.01480640184 | O27: =IF(ISERROR('17. RTSR - Current Wholesale'!$F$109*M27), "", '17. RTSR - Current Wholesale'!$F$109*M27) -> 188248.702 | Q27: 3.019758128

Sheet 20. RTSR Adj Conn to Current WS
A13: The purpose of this sheet is to re-align the current RTS Connection Rates to recover current wholesale connection costs.
A16: Rate Class | B16: Rate Description | C16: Unit | E16: Current RTSR-Connection | G16: Loss Adjusted Billed kWh | I16: Loss Adjusted Billed kW | K16: Billed Amount | M16: Billed Amount % | O16: Current Wholesale Billing | Q16: Proposed RTSR Connection
A19: RESIDENTIAL | B19: Retail Transmission Rate - Line and Transformation Connection Service Rate | C19: $/kWh | E19: 0.0053 | G19: 593810277.7 | I19: 0 | K19: =IF(E19="", "", IF(C19="$/kWh", E19*G19, E19*I19)) -> 3147194.472 | M19: =IF(ISERROR(K19/SUM(K19:K100)),"",K19/SUM(K19:K100)) -> 0.3966180127 | O19: =IF(ISERROR('17. RTSR - Current Wholesale'!$P$113*M19), "", '17. RTSR - Current Wholesale'!$P$113*M19) -> 3327315.152 | Q19: =IF(C19="","",IF(C19="$/kWh",IF(G19<>0,O19/G19,),IF(I19<>0,O19/I19,0))) -> 0.005603330351
A20: GENERAL SERVICE LESS THAN 50 KW | B20: Retail Transmission Rate - Line and Transformation Connection Service Rate | C20: $/kWh | E20: 0.0048 | G20: 179474244.4 | I20: 0 | K20: 861476.3729 | M20: =IF(ISERROR(K20/SUM(K19:K100)),"",K20/SUM(K19:K100)) -> 0.1085655971 | O20: =IF(ISERROR('17. RTSR - Current Wholesale'!$P$113*M20), "", '17. RTSR - Current Wholesale'!$P$113*M20) -> 910780.5108 | Q20: 0.00507471428
A21: GENERAL SERVICE 50 TO 1,000 KW | B21: Retail Transmission Rate - Line and Transformation Connection Service Rate | C21: $/kW | E21: 1.8182 | G21: 0 | I21: 605497.6 | K21: 1100915.736 | M21: =IF(ISERROR(K21/SUM(K19:K100)),"",K21/SUM(K19:K100)) -> 0.1387403973 | O21: =IF(ISERROR('17. RTSR - Current Wholesale'!$P$113*M21), "", '17. RTSR - Current Wholesale'!$P$113*M21) -> 1163923.502 | Q21: 1.92225948
A22: GENERAL SERVICE 50 TO 1,000 KW | B22: Retail Transmission Rate - Line and Transformation Connection Service Rate - Interval Metered | C22: $/kW | E22: 1.8771 | G22: 0 | I22: 1053437.1 | K22: 1977406.78 | M22: =IF(ISERROR(K22/SUM(K19:K100)),"",K22/SUM(K19:K100)) -> 0.2491981841 | O22: =IF(ISERROR('17. RTSR - Current Wholesale'!$P$113*M22), "", '17. RTSR - Current Wholesale'!$P$113*M22) -> 2090578.005 | Q22: 1.984530453
A23: GENERAL SERVICE GREATER THAN 1,000 KW | B23: Retail Transmission Rate - Line and Transformation Connection Service Rate - Interval Metered | C23: $/kW | E23: 1.8771 | G23: 0 | I23: 362505 | K23: 680458.1355 | M23: =IF(ISERROR(K23/SUM(K19:K100)),"",K23/SUM(K19:K100)) -> 0.08575318615 | O23: =IF(ISERROR('17. RTSR - Current Wholesale'!$P$113*M23), "", '17. RTSR - Current Wholesale'!$P$113*M23) -> 719402.2119 | Q23: 1.984530453
A24: UNMETERED SCATTERED LOAD | B24: Retail Transmission Rate - Line and Transformation Connection Service Rate | C24: $/kWh | E24: 0.0048 | G24: 54915.084 | I24: 0 | K24: 263.5924032 | M24: =IF(ISERROR(K24/SUM(K19:K100)),"",K24/SUM(K19:K100)) -> 3.321863204e-05 | O24: =IF(ISERROR('17. RTSR - Current Wholesale'!$P$113*M24), "", '17. RTSR - Current Wholesale'!$P$113*M24) -> 278.678361 | Q24: 0.00507471428
A25: SENTINEL LIGHTING | B25: Retail Transmission Rate - Line and Transformation Connection Service Rate | C25: $/kW | E25: 0.3644 | G25: 0 | I25: 306.58 | K25: 111.717752 | M25: =IF(ISERROR(K25/SUM(K19:K100)),"",K25/SUM(K19:K100)) -> 1.407897516e-05 | O25: =IF(ISERROR('17. RTSR - Current Wholesale'!$P$113*M25), "", '17. RTSR - Current Wholesale'!$P$113*M25) -> 118.1115982 | Q25: 0.3852553924
A26: STREET LIGHTING | B26: Retail Transmission Rate - Line and Transformation Connection Service Rate | C26: $/kW | E26: 1.5169 | G26: 0 | I26: 33116 | K26: 50233.6604 | M26: =IF(ISERROR(K26/SUM(K19:K100)),"",K26/SUM(K19:K100)) -> 0.006330582598 | O26: =IF(ISERROR('17. RTSR - Current Wholesale'!$P$113*M26), "", '17. RTSR - Current Wholesale'!$P$113*M26) -> 53108.64037 | Q26: 1.603715436
A27: EMBEDDED DISTRIBUTOR | B27: Retail Transmission Rate - Line and Transformation Connection Service Rate | C27: $/kW | E27: 1.8771 | G27: 0 | I27: 62339 | K27: 117016.5369 | M27: =IF(ISERROR(K27/SUM(K19:K100)),"",K27/SUM(K19:K100)) -> 0.01474674245 | O27: =IF(ISERROR('17. RTSR - Current Wholesale'!$P$113*M27), "", '17. RTSR - Current Wholesale'!$P$113*M27) -> 123713.6439 | Q27: 1.984530453

Sheet 21. RTSR Adj Ntwk to Forcast WS
A13: The purpose of this sheet is to update the re-align RTS Network Rates to recover forecast wholesale network costs.
A16: Rate Class | B16: Rate Description | C16: Unit | E16: Adjusted RTSR-Network | G16: Loss Adjusted Billed kWh | I16: Loss Adjusted Billed kW | K16: Billed Amount | M16: Billed Amount % | O16: Forecast Wholesale Billing | Q16: Proposed RTSR Network
A19: RESIDENTIAL | B19: Retail Transmission Rate - Network Service Rate | C19: $/kWh | E19: 0.008421381394 | G19: 593810277.7 | I19: 0 | K19: =IF(E19="", "", IF(C19="$/kWh", E19*G19, E19*I19)) -> 5000702.824 | M19: =IF(ISERROR(K19/SUM(K19:K100)),"",K19/SUM(K19:K100)) -> 0.3933223164 | O19: =IF(ISERROR('18. RTSR - Forecast Wholesale'!$F$109*M19), "", '18. RTSR - Forecast Wholesale'!$F$109*M19) -> 4955009.905 | Q19: =IF(C19="","",IF(C19="$/kWh",IF(G19<>0,O19/G19,),IF(I19<>0,O19/I19,0))) -> 0.008344432711
A20: GENERAL SERVICE LESS THAN 50 KW | B20: Retail Transmission Rate - Network Service Rate | C20: $/kWh | E20: 0.007781782807 | G20: 179474244.4 | I20: 0 | K20: 1396629.589 | M20: =IF(ISERROR(K20/SUM(K19:K100)),"",K20/SUM(K19:K100)) -> 0.109849676 | O20: =IF(ISERROR('18. RTSR - Forecast Wholesale'!$F$109*M20), "", '18. RTSR - Forecast Wholesale'!$F$109*M20) -> 1383868.166 | Q20: 0.007710678328
A21: GENERAL SERVICE 50 TO 1,000 KW | B21: Retail Transmission Rate - Network Service Rate | C21: $/kW | E21: 2.925204137 | G21: 0 | I21: 605497.6 | K21: 1771204.085 | M21: =IF(ISERROR(K21/SUM(K19:K100)),"",K21/SUM(K19:K100)) -> 0.1393112364 | O21: =IF(ISERROR('18. RTSR - Forecast Wholesale'!$F$109*M21), "", '18. RTSR - Forecast Wholesale'!$F$109*M21) -> 1755020.062 | Q21: 2.898475671
A22: GENERAL SERVICE 50 TO 1,000 KW | B22: Retail Transmission Rate - Network Service Rate - Interval Metered | C22: $/kW | E22: 3.019758128 | G22: 0 | I22: 1053437.1 | K22: 3181125.245 | M22: =IF(ISERROR(K22/SUM(K19:K100)),"",K22/SUM(K19:K100)) -> 0.2502063399 | O22: =IF(ISERROR('18. RTSR - Forecast Wholesale'!$F$109*M22), "", '18. RTSR - Forecast Wholesale'!$F$109*M22) -> 3152058.351 | Q22: 2.992165694
A23: GENERAL SERVICE GREATER THAN 1,000 KW | B23: Retail Transmission Rate - Network Service Rate - Interval Metered | C23: $/kW | E23: 3.019758128 | G23: 0 | I23: 362505 | K23: 1094677.42 | M23: =IF(ISERROR(K23/SUM(K19:K100)),"",K23/SUM(K19:K100)) -> 0.08610010909 | O23: =IF(ISERROR('18. RTSR - Forecast Wholesale'!$F$109*M23), "", '18. RTSR - Forecast Wholesale'!$F$109*M23) -> 1084675.025 | Q23: 2.992165694
A24: UNMETERED SCATTERED LOAD | B24: Retail Transmission Rate - Network Service Rate | C24: $/kWh | E24: 0.007781782807 | G24: 54915.084 | I24: 0 | K24: 427.3372565 | M24: =IF(ISERROR(K24/SUM(K19:K100)),"",K24/SUM(K19:K100)) -> 3.361153133e-05 | O24: =IF(ISERROR('18. RTSR - Forecast Wholesale'!$F$109*M24), "", '18. RTSR - Forecast Wholesale'!$F$109*M24) -> 423.4325481 | Q24: 0.007710678328
A25: SENTINEL LIGHTING | B25: Retail Transmission Rate - Network Service Rate | C25: $/kW | E25: 0.5864053044 | G25: 0 | I25: 306.58 | K25: 179.7801382 | M25: =IF(ISERROR(K25/SUM(K19:K100)),"",K25/SUM(K19:K100)) -> 1.414032045e-05 | O25: =IF(ISERROR('18. RTSR - Forecast Wholesale'!$F$109*M25), "", '18. RTSR - Forecast Wholesale'!$F$109*M25) -> 178.1374333 | Q25: 0.5810471436
A26: STREET LIGHTING | B26: Retail Transmission Rate - Network Service Rate | C26: $/kW | E26: 2.440281809 | G26: 0 | I26: 33116 | K26: 80812.37237 | M26: =IF(ISERROR(K26/SUM(K19:K100)),"",K26/SUM(K19:K100)) -> 0.006356168446 | O26: =IF(ISERROR('18. RTSR - Forecast Wholesale'!$F$109*M26), "", '18. RTSR - Forecast Wholesale'!$F$109*M26) -> 80073.96553 | Q26: 2.417984223
A27: EMBEDDED DISTRIBUTOR | B27: Retail Transmission Rate - Network Service Rate | C27: $/kW | E27: 3.019758128 | G27: 0 | I27: 62339 | K27: 188248.702 | M27: =IF(ISERROR(K27/SUM(K19:K100)),"",K27/SUM(K19:K100)) -> 0.01480640184 | O27: =IF(ISERROR('18. RTSR - Forecast Wholesale'!$F$109*M27), "", '18. RTSR - Forecast Wholesale'!$F$109*M27) -> 186528.6172 | Q27: 2.992165694

Sheet 22. RTSR Adj Conn. to Forcst WS
A13: The purpose of this sheet is to update the re-aligned RTS Connection Rates to recover forecast wholesale connection costs.
A16: Rate Class | B16: Rate Description | C16: Unit | E16: Adjusted RTSR-Connection | G16: Loss Adjusted Billed kWh | I16: Loss Adjusted Billed kW | K16: Billed Amount | M16: Billed Amount % | O16: Forecast Wholesale Billing | Q16: Proposed RTSR Connection
A19: RESIDENTIAL | B19: Retail Transmission Rate - Line and Transformation Connection Service Rate | C19: $/kWh | E19: 0.005603330351 | G19: 593810277.7 | I19: 0 | K19: =IF(E19="", "", IF(C19="$/kWh", E19*G19, E19*I19)) -> 3327315.152 | M19: =IF(ISERROR(K19/SUM(K19:K100)),"",K19/SUM(K19:K100)) -> 0.3966180127 | O19: =IF(ISERROR('18. RTSR - Forecast Wholesale'!$P$113*M19), "", '18. RTSR - Forecast Wholesale'!$P$113*M19) -> 3327315.152 | Q19: =IF(C19="","",IF(C19="$/kWh",IF(G19<>0,O19/G19,),IF(I19<>0,O19/I19,0))) -> 0.005603330351
A20: GENERAL SERVICE LESS THAN 50 KW | B20: Retail Transmission Rate - Line and Transformation Connection Service Rate | C20: $/kWh | E20: 0.00507471428 | G20: 179474244.4 | I20: 0 | K20: 910780.5108 | M20: =IF(ISERROR(K20/SUM(K19:K100)),"",K20/SUM(K19:K100)) -> 0.1085655971 | O20: =IF(ISERROR('18. RTSR - Forecast Wholesale'!$P$113*M20), "", '18. RTSR - Forecast Wholesale'!$P$113*M20) -> 910780.5108 | Q20: 0.00507471428
A21: GENERAL SERVICE 50 TO 1,000 KW | B21: Retail Transmission Rate - Line and Transformation Connection Service Rate | C21: $/kW | E21: 1.92225948 | G21: 0 | I21: 605497.6 | K21: 1163923.502 | M21: =IF(ISERROR(K21/SUM(K19:K100)),"",K21/SUM(K19:K100)) -> 0.1387403973 | O21: =IF(ISERROR('18. RTSR - Forecast Wholesale'!$P$113*M21), "", '18. RTSR - Forecast Wholesale'!$P$113*M21) -> 1163923.502 | Q21: 1.92225948
A22: GENERAL SERVICE 50 TO 1,000 KW | B22: Retail Transmission Rate - Line and Transformation Connection Service Rate - Interval Metered | C22: $/kW | E22: 1.984530453 | G22: 0 | I22: 1053437.1 | K22: 2090578.005 | M22: =IF(ISERROR(K22/SUM(K19:K100)),"",K22/SUM(K19:K100)) -> 0.2491981841 | O22: =IF(ISERROR('18. RTSR - Forecast Wholesale'!$P$113*M22), "", '18. RTSR - Forecast Wholesale'!$P$113*M22) -> 2090578.005 | Q22: 1.984530453
A23: GENERAL SERVICE GREATER THAN 1,000 KW | B23: Retail Transmission Rate - Line and Transformation Connection Service Rate - Interval Metered | C23: $/kW | E23: 1.984530453 | G23: 0 | I23: 362505 | K23: 719402.2119 | M23: =IF(ISERROR(K23/SUM(K19:K100)),"",K23/SUM(K19:K100)) -> 0.08575318615 | O23: =IF(ISERROR('18. RTSR - Forecast Wholesale'!$P$113*M23), "", '18. RTSR - Forecast Wholesale'!$P$113*M23) -> 719402.2119 | Q23: 1.984530453
A24: UNMETERED SCATTERED LOAD | B24: Retail Transmission Rate - Line and Transformation Connection Service Rate | C24: $/kWh | E24: 0.00507471428 | G24: 54915.084 | I24: 0 | K24: 278.678361 | M24: =IF(ISERROR(K24/SUM(K19:K100)),"",K24/SUM(K19:K100)) -> 3.321863204e-05 | O24: =IF(ISERROR('18. RTSR - Forecast Wholesale'!$P$113*M24), "", '18. RTSR - Forecast Wholesale'!$P$113*M24) -> 278.678361 | Q24: 0.00507471428
A25: SENTINEL LIGHTING | B25: Retail Transmission Rate - Line and Transformation Connection Service Rate | C25: $/kW | E25: 0.3852553924 | G25: 0 | I25: 306.58 | K25: 118.1115982 | M25: =IF(ISERROR(K25/SUM(K19:K100)),"",K25/SUM(K19:K100)) -> 1.407897516e-05 | O25: =IF(ISERROR('18. RTSR - Forecast Wholesale'!$P$113*M25), "", '18. RTSR - Forecast Wholesale'!$P$113*M25) -> 118.1115982 | Q25: 0.3852553924
A26: STREET LIGHTING | B26: Retail Transmission Rate - Line and Transformation Connection Service Rate | C26: $/kW | E26: 1.603715436 | G26: 0 | I26: 33116 | K26: 53108.64037 | M26: =IF(ISERROR(K26/SUM(K19:K100)),"",K26/SUM(K19:K100)) -> 0.006330582598 | O26: =IF(ISERROR('18. RTSR - Forecast Wholesale'!$P$113*M26), "", '18. RTSR - Forecast Wholesale'!$P$113*M26) -> 53108.64037 | Q26: 1.603715436
A27: EMBEDDED DISTRIBUTOR | B27: Retail Transmission Rate - Line and Transformation Connection Service Rate | C27: $/kW | E27: 1.984530453 | G27: 0 | I27: 62339 | K27: 123713.6439 | M27: =IF(ISERROR(K27/SUM(K19:K100)),"",K27/SUM(K19:K100)) -> 0.01474674245 | O27: =IF(ISERROR('18. RTSR - Forecast Wholesale'!$P$113*M27), "", '18. RTSR - Forecast Wholesale'!$P$113*M27) -> 123713.6439 | Q27: 1.984530453

Sheet 23. RTSR Final 2015 RTS Rates
A13: This sheet lists proposed RTSRs for all classes. No input required.
A16: Rate Class | B16: Rate Description | C16: Unit | E16: Proposed Retail Transmission Rate
A19: RESIDENTIAL | B19: Retail Transmission Rate - Network Service Rate | C19: $/kWh | E19: 0.008344432711
A20: RESIDENTIAL | B20: Retail Transmission Rate - Line and Transformation Connection Service Rate | C20: $/kWh | E20: 0.005603330351
A21: GENERAL SERVICE LESS THAN 50 KW | B21: Retail Transmission Rate - Network Service Rate | C21: $/kWh | E21: 0.007710678328
A22: GENERAL SERVICE LESS THAN 50 KW | B22: Retail Transmission Rate - Line and Transformation Connection Service Rate | C22: $/kWh | E22: 0.00507471428
A23: GENERAL SERVICE 50 TO 1,000 KW | B23: Retail Transmission Rate - Network Service Rate | C23: $/kW | E23: 2.898475671
A24: GENERAL SERVICE 50 TO 1,000 KW | B24: Retail Transmission Rate - Network Service Rate - Interval Metered | C24: $/kW | E24: 2.992165694
A25: GENERAL SERVICE 50 TO 1,000 KW | B25: Retail Transmission Rate - Line and Transformation Connection Service Rate | C25: $/kW | E25: 1.92225948
A26: GENERAL SERVICE 50 TO 1,000 KW | B26: Retail Transmission Rate - Line and Transformation Connection Service Rate - Interval Metered | C26: $/kW | E26: 1.984530453
A27: GENERAL SERVICE GREATER THAN 1,000 KW | B27: Retail Transmission Rate - Network Service Rate - Interval Metered | C27: $/kW | E27: 2.992165694
A28: GENERAL SERVICE GREATER THAN 1,000 KW | B28: Retail Transmission Rate - Line and Transformation Connection Service Rate - Interval Metered | C28: $/kW | E28: 1.984530453
A29: UNMETERED SCATTERED LOAD | B29: Retail Transmission Rate - Network Service Rate | C29: $/kWh | E29: 0.007710678328
A30: UNMETERED SCATTERED LOAD | B30: Retail Transmission Rate - Line and Transformation Connection Service Rate | C30: $/kWh | E30: 0.00507471428
A31: SENTINEL LIGHTING | B31: Retail Transmission Rate - Network Service Rate | C31: $/kW | E31: 0.5810471436
A32: SENTINEL LIGHTING | B32: Retail Transmission Rate - Line and Transformation Connection Service Rate | C32: $/kW | E32: 0.3852553924
A33: STREET LIGHTING | B33: Retail Transmission Rate - Network Service Rate | C33: $/kW | E33: 2.417984223
A34: STREET LIGHTING | B34: Retail Transmission Rate - Line and Transformation Connection Service Rate | C34: $/kW | E34: 1.603715436
A35: EMBEDDED DISTRIBUTOR | B35: Retail Transmission Rate - Network Service Rate | C35: $/kW | E35: 2.992165694
A36: EMBEDDED DISTRIBUTOR | B36: Retail Transmission Rate - Line and Transformation Connection Service Rate | C36: $/kW | E36: 1.984530453

Sheet 24. Rev2Cost_GDPIPI
Y1: FALSE | Z1: 0 | AC1: NO
Y2: TRUE
A12: If applicable, please enter any adjustments related to the revenue to cost ratio model into columns C and E. The Price Escalator and Stretch Factor have been set at the 2014 values and will be updated by Board staff at a later date.
A15: Price Escalator | B15: 0.016 | C15: Choose Stretch Factor Group | E15: IV
A16: Productivity Factor | B16: 0 | C16: Associated Stretch Factor Value | E16: =IF(E15="I", 0%, IF(E15="II", 0.15%, IF(E15="III", 0.3%, IF(E15="IV", 0.45%, 0.6%)))) -> 0.0045
A17: Price Cap Index | B17: =B15-B16-E16 -> 0.0115
B19: Current MFC | C19: MFC Adjustment from R/C Model | D19: Current Volumetric Charge | E19: DVR Adjustment from R/C Model | F19: Price Cap Index to be Applied to MFC and DVR | G19: Proposed MFC | H19: Proposed Volumetric Charge
A20: Rate Class
A22: RESIDENTIAL | B22: 14.42 | D22: 0.0157 | F22: =$B$17 -> 0.0115 | G22: =ROUND(SUM(B22,C22)*(1+F22),2) -> 14.59 | H22: =ROUND(SUM(D22,E22)*(1+F22),4) -> 0.0159
A23: GENERAL SERVICE LESS THAN 50 KW | B23: 34.71 | D23: 0.0153 | F23: 0.0115 | G23: 35.11 | H23: 0.0155
A24: GENERAL SERVICE 50 TO 1,000 KW | B24: 118.45 | D24: 4.632 | F24: 0.0115 | G24: 119.81 | H24: 4.6853
A25: GENERAL SERVICE GREATER THAN 1,000 KW | B25: 3399.83 | D25: 2.6884 | F25: 0.0115 | G25: 3438.93 | H25: 2.7193
A26: UNMETERED SCATTERED LOAD | B26: 9.83 | D26: 0.0092 | F26: 0.0115 | G26: 9.94 | H26: 0.0093
A27: SENTINEL LIGHTING | B27: 2.69 | D27: 45.5762 | F27: 0.0115 | G27: 2.72 | H27: 46.1003
A28: STREET LIGHTING | B28: 3.69 | D28: 22.6392 | F28: 0.0115 | G28: 3.73 | H28: 22.8996
A29: EMBEDDED DISTRIBUTOR | B29: 5072.12 | D29: 2.7703 | F29: 0.0115 | G29: 5130.45 | H29: 2.8022
A30: microFIT | B30: 5.4 | G30: 5.4

Sheet 24. hidden (hidden)
A1: Rate Class | B1: MFC Adjustment from R/C Model | C1: DVR Adjustment from R/C Model
A2: RESIDENTIAL | B2: 14.42 | D2: 0.0157
A3: GENERAL SERVICE LESS THAN 50 KW | B3: 34.71 | D3: 0.0153
A4: GENERAL SERVICE 50 TO 1,000 KW | B4: 118.45 | D4: 4.632
A5: GENERAL SERVICE GREATER THAN 1,000 KW | B5: 3399.83 | D5: 2.6884
A6: UNMETERED SCATTERED LOAD | B6: 9.83 | D6: 0.0092
A7: SENTINEL LIGHTING | B7: 2.69 | D7: 45.5762
A8: STREET LIGHTING | B8: 3.69 | D8: 22.6392
A9: EMBEDDED DISTRIBUTOR | B9: 5072.12 | D9: 2.7703
A10: microFIT | B10: 5.4

Sheet 25. Other Charges & LF
A11: Please enter the following charges as found on your most recent Board-Approved Tariff Schedule. The standard Allowance rates have been included as default entries. If you have different rates, please make the appropriate corrections in the applicable cells below. As well, please enter the current Specific Service Charges below. The standard Retail Service Charges have been entered below. If you have different rates, please make the appropriate corrections in columns A, C or D as applicable (cells are unlocked).
C13: UNIT | D13: RATE
A15: ALLOWANCES
A17: Transformer Allowance for Ownership - per kW of billing demand/month | C17: $/kW | D17: -0.5
A20: Primary Metering Allowance for transformer losses – applied to measured demand and energy | C20: % | D20: -1
A22: SPECIFIC SERVICE CHARGES
A24: APPLICATION
A26: The application of these rates and charges shall be in accordance with the Licence of the Distributor and any Code or Order of the Board, and amendments thereto as approved by the Board, which may be applicable to the administration of this schedule.
A27: No charges to meet the costs of any work or service done or furnished for the purpose of the distribution of electricity shall be made except as permitted by this schedule, unless required by the Distributor’s Licence or a Code or Order of the Board, and amendments thereto as approved by the Board, or as specified herein.
A28: It should be noted that this schedule does not list any charges, assessments or credits that are required by law to be invoiced by a distributor and that are not subject to Board approval, such as the Debt Retirement Charge, the Global Adjustment, the Ontario Clean Energy Benefit and the HST.
A30: Customer Administration
A31: Statement of Account | C31: $ | D31: 15
A32: Pulling Post Dated Cheques | C32: $ | D32: 15
A33: Duplicate Invoices for previous billing | C33: $ | D33: 15
A34: Easement Letter | C34: $ | D34: 15
A35: Account History | C35: $ | D35: 15
A36: Credit Reference/credit check (plus credit agency costs) | C36: $ | D36: 15
A37: Returned cheque (plus bank charges) | C37: $ | D37: 15
A38: Account set up charge/change of occupancy charge (plus credit agency costs if applicable) | C38: $ | D38: 30
A39: Special meter reads | C39: $ | D39: 30
A40: Meter dispute charge plus Measurement Canada fees (if meter found correct) | C40: $ | D40: 30
A61: Service Call (after first service call in a 12-month period) - during regular hours | C61: $ | D61: 30
A62: Service Call (after first service call in a 12-month period) - after regular hours | C62: $ | D62: 165
A67: Non-Payment of Account
A68: Late Payment – per month | C68: % | D68: 1.5
A69: Late Payment – per annum | C69: % | D69: 19.56
A70: Collection of account charge – no disconnection | C70: $ | D70: 30
A71: Disconnect/Reconnect at meter – during regular hours | C71: $ | D71: 65
A72: Disconnect/Reconnect at meter – after regular hours | C72: $ | D72: 185
A73: Disconnect/Reconnect at pole – during regular hours | C73: $ | D73: 185
A74: Disconnect/Reconnect at pole – after regular hours | C74: $ | D74: 415
A94: Temporary Service – Install & remove – overhead – no transformer | C94: $ | D94: 500
A95: Temporary Service – Install & remove – underground – no transformer | C95: $ | D95: 300
A96: Specific Charge for Access to the Power Poles - $/pole/year | C96: $ | D96: 22.35
A116: RETAIL SERVICE CHARGES (if applicable)
A118: The application of these rates and charges shall be in accordance with the Licence of the Distributor and any Code or Order of the Board, and amendments thereto as approved by the Board, which may be applicable to the administration of this schedule.
A120: No rates and charges for the distribution of electricity and charges to meet the costs of any work or service done or furnished for the purpose of the distribution of electricity shall be made except as permitted by this schedule, unless required by the Distributor’s Licence or a Code or Order of the Board, and amendments thereto as approved by the Board, or as specified herein.
A122: Unless specifically noted, this schedule does not contain any charges for the electricity commodity, be it under the Regulated Price Plan, a contract with a retailer or the wholesale market price, as applicable.
A124: It should be noted that this schedule does not list any charges, assessments, or credits that are required by law to be invoiced by a distributor and that are not subject to Board approval, such as the Debt Retirement Charge, the Global Adjustment, the Ontario Clean Energy Benefit and the HST.
A126: Retail Service Charges refer to services provided by a distributor to retailers or customers related to the supply of competitive electricity.
A128: One-time charge, per retailer, to establish the service agreement between the distributor and the retailer | C128: $ | D128: 100
A129: Monthly Fixed Charge, per retailer | C129: $ | D129: 20
A130: Monthly Variable Charge, per customer, per retailer | C130: $/cust. | D130: 0.5
A131: Distributor-consolidated billing monthly charge, per customer, per retailer | C131: $/cust. | D131: 0.3
A132: Retailer-consolidated billing monthly credit, per customer, per retailer | C132: $/cust. | D132: -0.3
A133: Service Transaction Requests (STR)
A134: Request fee, per request, applied to the requesting party | C134: $ | D134: 0.25
A135: Processing fee, per request, applied to the requesting party | C135: $ | D135: 0.5
A136: Request for customer information as outlined in Section 10.6.3 and Chapter 11 of the Retail
A137: Settlement Code directly to retailers and customers, if not delivered electronically through the
A138: Electronic Business Transaction (EBT) system, applied to the requesting party
A139: Up to twice a year | C139: $ | D139: no charge
A140: More than twice a year, per request (plus incremental delivery costs) | C140: $ | D140: 2
A143: LOSS FACTORS
A145: If the distributor is not capable of prorating changed loss factors jointly with distribution rates, the revised loss factors will be implemented upon the first subsequent billing for each billing cycle.
A148: Total Loss Factor – Secondary Metered Customer < 5,000 kW | D148: 1.0376 | H148: TLF_Secondary_LT_5000kW
A149: Total Loss Factor – Secondary Metered Customer > 5,000 kW | D149: 1.0145 | H149: TLF_Primary_LT_5000kW
A150: Total Loss Factor – Primary Metered Customer < 5,000 kW | D150: 1.0272
A151: Total Loss Factor – Primary Metered Customer > 5,000 kW | D151: 1.0045

Sheet 26. Proposed Rates
Z1: 3
L5: =ROUND(LEN(B5), -2) / 100 -> 0
L9: =ROUND(LEN(B9), -2) / 100 -> 0
B12: In the Green Cells below, enter any proposed rate riders that are not already included in this model (e.g: ICM rate riders). In column B, the rate rider descriptions must begin with "Rate Rider for". In column C, choose the associated unit from the drop-down menu. In column D, enter the rate. All rate riders with a "$" unit will be rounded to 2 decimal places and all others will be rounded to 4 decimal places.
A20: RESIDENTIAL | B20: RESIDENTIAL SERVICE CLASSIFICATION | C20: Unit | D20: Rate
A21: RESIDENTIAL | B21: Rate Rider for Ice Storm Cost Recovery - effective until December 31 , 2015 | C21: $ | D21: 0.26
A22: RESIDENTIAL
A23: RESIDENTIAL
A24: RESIDENTIAL
A25: RESIDENTIAL
A26: RESIDENTIAL
A27: RESIDENTIAL
A28: RESIDENTIAL
A29: RESIDENTIAL
A30: RESIDENTIAL
A32: GENERAL SERVICE LESS THAN 50 KW | B32: GENERAL SERVICE LESS THAN 50 KW SERVICE CLASSIFICATION | C32: Unit | D32: Rate
A33: GENERAL SERVICE LESS THAN 50 KW | B33: Rate Rider for Ice Storm Cost Recovery - effective until December 31 , 2015 | C33: $ | D33: 0.73
A34: GENERAL SERVICE LESS THAN 50 KW
A35: GENERAL SERVICE LESS THAN 50 KW
A36: GENERAL SERVICE LESS THAN 50 KW
A37: GENERAL SERVICE LESS THAN 50 KW
A38: GENERAL SERVICE LESS THAN 50 KW
A39: GENERAL SERVICE LESS THAN 50 KW
A40: GENERAL SERVICE LESS THAN 50 KW
A41: GENERAL SERVICE LESS THAN 50 KW
A42: GENERAL SERVICE LESS THAN 50 KW
A44: GENERAL SERVICE 50 TO 1,000 KW | B44: GENERAL SERVICE 50 TO 1,000 KW SERVICE CLASSIFICATION | C44: Unit | D44: Rate
A45: GENERAL SERVICE 50 TO 1,000 KW | B45: Rate Rider for Ice Storm Cost Recovery - effective until December 31 , 2015 | C45: $ | D45: 7.5
A46: GENERAL SERVICE 50 TO 1,000 KW
A47: GENERAL SERVICE 50 TO 1,000 KW
A48: GENERAL SERVICE 50 TO 1,000 KW
A49: GENERAL SERVICE 50 TO 1,000 KW
A50: GENERAL SERVICE 50 TO 1,000 KW
A51: GENERAL SERVICE 50 TO 1,000 KW
A52: GENERAL SERVICE 50 TO 1,000 KW
A53: GENERAL SERVICE 50 TO 1,000 KW
A54: GENERAL SERVICE 50 TO 1,000 KW
A56: GENERAL SERVICE GREATER THAN 1,000 KW | B56: GENERAL SERVICE GREATER THAN 1,000 KW SERVICE CLASSIFICATION | C56: Unit | D56: Rate
A57: GENERAL SERVICE GREATER THAN 1,000 KW | B57: Rate Rider for Ice Storm Cost Recovery - effective until December 31 , 2015 | C57: $ | D57: 76.81
A58: GENERAL SERVICE GREATER THAN 1,000 KW
A59: GENERAL SERVICE GREATER THAN 1,000 KW
A60: GENERAL SERVICE GREATER THAN 1,000 KW
A61: GENERAL SERVICE GREATER THAN 1,000 KW
A62: GENERAL SERVICE GREATER THAN 1,000 KW
A63: GENERAL SERVICE GREATER THAN 1,000 KW
A64: GENERAL SERVICE GREATER THAN 1,000 KW
A65: GENERAL SERVICE GREATER THAN 1,000 KW
A66: GENERAL SERVICE GREATER THAN 1,000 KW
A68: UNMETERED SCATTERED LOAD | B68: UNMETERED SCATTERED LOAD SERVICE CLASSIFICATION | C68: Unit | D68: Rate
A69: UNMETERED SCATTERED LOAD | B69: Rate Rider for Ice Storm Cost Recovery - effective until December 31 , 2015 | C69: $ | D69: 0.13
A70: UNMETERED SCATTERED LOAD
A71: UNMETERED SCATTERED LOAD
A72: UNMETERED SCATTERED LOAD
A73: UNMETERED SCATTERED LOAD
A74: UNMETERED SCATTERED LOAD
A75: UNMETERED SCATTERED LOAD
A76: UNMETERED SCATTERED LOAD
A77: UNMETERED SCATTERED LOAD
A78: UNMETERED SCATTERED LOAD
A80: SENTINEL LIGHTING | B80: SENTINEL LIGHTING SERVICE CLASSIFICATION | C80: Unit | D80: Rate
A81: SENTINEL LIGHTING | B81: Rate Rider for Ice Storm Cost Recovery - effective until December 31 , 2015 | C81: $ | D81: 0.1
A82: SENTINEL LIGHTING
A83: SENTINEL LIGHTING
A84: SENTINEL LIGHTING
A85: SENTINEL LIGHTING
A86: SENTINEL LIGHTING
A87: SENTINEL LIGHTING
A88: SENTINEL LIGHTING
A89: SENTINEL LIGHTING
A90: SENTINEL LIGHTING
A92: STREET LIGHTING | B92: STREET LIGHTING SERVICE CLASSIFICATION | C92: Unit | D92: Rate
A93: STREET LIGHTING | B93: Rate Rider for Ice Storm Cost Recovery - effective until December 31 , 2015 | C93: $ | D93: 0.08
A94: STREET LIGHTING | B94: Rate Rider for Ice Storm Cost Recovery - effective until December 31 , 2015
A95: STREET LIGHTING
A96: STREET LIGHTING
A97: STREET LIGHTING
A98: STREET LIGHTING
A99: STREET LIGHTING
A100: STREET LIGHTING
A101: STREET LIGHTING
A102: STREET LIGHTING
A104: EMBEDDED DISTRIBUTOR | B104: EMBEDDED DISTRIBUTOR SERVICE CLASSIFICATION | C104: Unit | D104: Rate
A105: EMBEDDED DISTRIBUTOR
A106: EMBEDDED DISTRIBUTOR
A107: EMBEDDED DISTRIBUTOR
A108: EMBEDDED DISTRIBUTOR
A109: EMBEDDED DISTRIBUTOR
A110: EMBEDDED DISTRIBUTOR
A111: EMBEDDED DISTRIBUTOR
A112: EMBEDDED DISTRIBUTOR
A113: EMBEDDED DISTRIBUTOR
A114: EMBEDDED DISTRIBUTOR
A116: microFIT | B116: microFIT SERVICE CLASSIFICATION | C116: Unit | D116: Rate
A117: microFIT
A118: microFIT
A119: microFIT
A120: microFIT
A121: microFIT
A122: microFIT
A123: microFIT
A124: microFIT
A125: microFIT
A126: microFIT
B130: PROPOSED MONTHLY RATES AND CHARGES - Regulatory Component
A132: Wholesale Market Service Rate | B132: Wholesale Market Service Rate | C132: $/kWh | D132: 0.0044
A133: Rural or Remote Electricity Rate Protection Charge (RRRP) | B133: Rural or Remote Electricity Rate Protection Charge (RRRP) | C133: $/kWh | D133: 0.0013
A134: Standard Supply Service - Administrative Charge (if applicable) | B134: Standard Supply Service - Administrative Charge (if applicable) | C134: $ | D134: 0.25

Sheet 26. Hidden (hidden)
A1: RESIDENTIAL | B1: RESIDENTIAL SERVICE CLASSIFICATION | C1: Unit | D1: Rate
A2: RESIDENTIAL | B2: Rate Rider for Ice Storm Cost Recovery - effective until December 31 , 2015 | C2: $ | D2: 0.26
A3: RESIDENTIAL
A4: RESIDENTIAL
A5: RESIDENTIAL
A6: RESIDENTIAL
A7: RESIDENTIAL
A8: RESIDENTIAL
A9: RESIDENTIAL
A10: RESIDENTIAL
A11: RESIDENTIAL
A13: GENERAL SERVICE LESS THAN 50 KW | B13: GENERAL SERVICE LESS THAN 50 KW SERVICE CLASSIFICATION | C13: Unit | D13: Rate
A14: GENERAL SERVICE LESS THAN 50 KW | B14: Rate Rider for Ice Storm Cost Recovery - effective until December 31 , 2015 | C14: $ | D14: 0.73
A15: GENERAL SERVICE LESS THAN 50 KW
A16: GENERAL SERVICE LESS THAN 50 KW
A17: GENERAL SERVICE LESS THAN 50 KW
A18: GENERAL SERVICE LESS THAN 50 KW
A19: GENERAL SERVICE LESS THAN 50 KW
A20: GENERAL SERVICE LESS THAN 50 KW
A21: GENERAL SERVICE LESS THAN 50 KW
A22: GENERAL SERVICE LESS THAN 50 KW
A23: GENERAL SERVICE LESS THAN 50 KW
A25: GENERAL SERVICE 50 TO 1,000 KW | B25: GENERAL SERVICE 50 TO 1,000 KW SERVICE CLASSIFICATION | C25: Unit | D25: Rate
A26: GENERAL SERVICE 50 TO 1,000 KW | B26: Rate Rider for Ice Storm Cost Recovery - effective until December 31 , 2015 | C26: $ | D26: 7.5
A27: GENERAL SERVICE 50 TO 1,000 KW
A28: GENERAL SERVICE 50 TO 1,000 KW
A29: GENERAL SERVICE 50 TO 1,000 KW
A30: GENERAL SERVICE 50 TO 1,000 KW
A31: GENERAL SERVICE 50 TO 1,000 KW
A32: GENERAL SERVICE 50 TO 1,000 KW
A33: GENERAL SERVICE 50 TO 1,000 KW
A34: GENERAL SERVICE 50 TO 1,000 KW
A35: GENERAL SERVICE 50 TO 1,000 KW
A37: GENERAL SERVICE GREATER THAN 1,000 KW | B37: GENERAL SERVICE GREATER THAN 1,000 KW SERVICE CLASSIFICATION | C37: Unit | D37: Rate
A38: GENERAL SERVICE GREATER THAN 1,000 KW | B38: Rate Rider for Ice Storm Cost Recovery - effective until December 31 , 2015 | C38: $ | D38: 76.81
A39: GENERAL SERVICE GREATER THAN 1,000 KW
A40: GENERAL SERVICE GREATER THAN 1,000 KW
A41: GENERAL SERVICE GREATER THAN 1,000 KW
A42: GENERAL SERVICE GREATER THAN 1,000 KW
A43: GENERAL SERVICE GREATER THAN 1,000 KW
A44: GENERAL SERVICE GREATER THAN 1,000 KW
A45: GENERAL SERVICE GREATER THAN 1,000 KW
A46: GENERAL SERVICE GREATER THAN 1,000 KW
A47: GENERAL SERVICE GREATER THAN 1,000 KW
A49: UNMETERED SCATTERED LOAD | B49: UNMETERED SCATTERED LOAD SERVICE CLASSIFICATION | C49: Unit | D49: Rate
A50: UNMETERED SCATTERED LOAD | B50: Rate Rider for Ice Storm Cost Recovery - effective until December 31 , 2015 | C50: $ | D50: 0.13
A51: UNMETERED SCATTERED LOAD
A52: UNMETERED SCATTERED LOAD
A53: UNMETERED SCATTERED LOAD
A54: UNMETERED SCATTERED LOAD
A55: UNMETERED SCATTERED LOAD
A56: UNMETERED SCATTERED LOAD
A57: UNMETERED SCATTERED LOAD
A58: UNMETERED SCATTERED LOAD
A59: UNMETERED SCATTERED LOAD
A61: SENTINEL LIGHTING | B61: SENTINEL LIGHTING SERVICE CLASSIFICATION | C61: Unit | D61: Rate
A62: SENTINEL LIGHTING | B62: Rate Rider for Ice Storm Cost Recovery - effective until December 31 , 2015 | C62: $ | D62: 0.1
A63: SENTINEL LIGHTING
A64: SENTINEL LIGHTING
A65: SENTINEL LIGHTING
A66: SENTINEL LIGHTING
A67: SENTINEL LIGHTING
A68: SENTINEL LIGHTING
A69: SENTINEL LIGHTING
A70: SENTINEL LIGHTING
A71: SENTINEL LIGHTING
A73: STREET LIGHTING | B73: STREET LIGHTING SERVICE CLASSIFICATION | C73: Unit | D73: Rate
A74: STREET LIGHTING | B74: Rate Rider for Ice Storm Cost Recovery - effective until December 31 , 2015 | C74: $ | D74: 0.08
A75: STREET LIGHTING | B75: Rate Rider for Ice Storm Cost Recovery - effective until December 31 , 2015
A76: STREET LIGHTING
A77: STREET LIGHTING
A78: STREET LIGHTING
A79: STREET LIGHTING
A80: STREET LIGHTING
A81: STREET LIGHTING
A82: STREET LIGHTING
A83: STREET LIGHTING
A85: EMBEDDED DISTRIBUTOR | B85: EMBEDDED DISTRIBUTOR SERVICE CLASSIFICATION | C85: Unit | D85: Rate
A86: EMBEDDED DISTRIBUTOR
A87: EMBEDDED DISTRIBUTOR
A88: EMBEDDED DISTRIBUTOR
A89: EMBEDDED DISTRIBUTOR
A90: EMBEDDED DISTRIBUTOR
A91: EMBEDDED DISTRIBUTOR
A92: EMBEDDED DISTRIBUTOR
A93: EMBEDDED DISTRIBUTOR
A94: EMBEDDED DISTRIBUTOR
A95: EMBEDDED DISTRIBUTOR
A97: microFIT | B97: microFIT SERVICE CLASSIFICATION | C97: Unit | D97: Rate
A98: microFIT
A99: microFIT
A100: microFIT
A101: microFIT
A102: microFIT
A103: microFIT
A104: microFIT
A105: microFIT
A106: microFIT
A107: microFIT
B111: PROPOSED MONTHLY RATES AND CHARGES - Regulatory Component
A113: Wholesale Market Service Rate | B113: Wholesale Market Service Rate | C113: $/kWh | D113: 0.0044
A114: Rural or Remote Electricity Rate Protection Charge (RRRP) | B114: Rural or Remote Electricity Rate Protection Charge (RRRP) | C114: $/kWh | D114: 0.0013
A115: Standard Supply Service - Administrative Charge (if applicable) | B115: Standard Supply Service - Administrative Charge (if applicable) | C115: $ | D115: 0.25

Sheet 27. Final Tariff Schedule
A1: hidden column | B1: ='1. Information Sheet'!F14 -> Oakville Hydro Electricity Distribution Inc. | F1: hidden column | Z1: 3
A2: for rate classes | B2: TARIFF OF RATES AND CHARGES | F2: for proposed
B3: ="Effective and Implementation Date " & TEXT('1. Information Sheet'!F26, "mmmm dd, yyyy") -> Effective and Implementation Date January 01, 2015 | F3: labeliing
B5: This schedule supersedes and replaces all previously
B6: approved schedules of Rates, Charges and Loss Factors | L6: =ROUND(LEN(B6), -2) / 100 -> 1
B7: =IF(LEN('1. Information Sheet'!F18)=0, "Please enter your assigned EB# on Sheet 1", '1. Information Sheet'!F18) -> EB-2014-0102
B9: RESIDENTIAL SERVICE CLASSIFICATION
B11: This class refers to the supply of electrical energy to detached and semi-detached residential buildings as well as farms as defined in the local zoning by-laws. Where the residential dwelling comprises the entire electrical load of a farm, it is defined as a residential service. Where electricity is provided to a combined residential and business (including agricultural usage) and the service does not provide for separate metering, the classification shall be at the discretion of Oakville Hydro and shall be based on such considerations as the estimated predominant consumption. Further servicing details are available in the distributor’s Conditions of Service. | L11: =ROUND(LEN(B11), -2) / 100 -> 7
B13: APPLICATION
B15: The application of these rates and charges shall be in accordance with the Licence of the Distributor and any Code or Order of the Board, and amendments thereto as approved by the Board, which may be applicable to the administration of this schedule. | L15: =ROUND(LEN(B15), -2) / 100 -> 3
B17: No rates and charges for the distribution of electricity and charges to meet the costs of any work or service done or furnished for the purpose of the distribution of electricity shall be made except as permitted by this schedule, unless required by the Distributor’s Licence or a Code or Order of the Board, and amendments thereto as approved by the Board, or as specified herein. | L17: =ROUND(LEN(B17), -2) / 100 -> 4
B19: Unless specifically noted, this schedule does not contain any charges for the electricity commodity, be it under the Regulated Price Plan, a contract with a retailer or the wholesale market price, as applicable. In addition, the charges in the MONTHLY RATES AND CHARGES – Regulatory Component of this schedule do not apply to a customer that is an embedded wholesale market participant | L19: =ROUND(LEN(B19), -2) / 100 -> 4
B21: It should be noted that this schedule does not list any charges or assessments that are required by law to be charged by a distributor and that are not subject to Board approval, such as the Debt Retirement Charge, charges for Ministry of Energy Conservation and Renewable Energy Program, the Provincial Benefit and any applicable taxes. | L21: =ROUND(LEN(B21), -2) / 100 -> 3
B23: MONTHLY RATES AND CHARGES - Delivery Component
A25: RESIDENTIAL | B25: Service Charge | D25: $ | E25: 14.59 | K25: 1_P_MSC
A26: RESIDENTIAL | B26: Rate Rider for Recovery of Stranded Meter Assets - effective until April 30, 2019 | D26: $ | E26: 0.77 | K26: 1_P_MSC_Rate_Rider_1
A27: RESIDENTIAL | B27: Rate Rider for Smart Metering Entity Charge - effective until October 31, 2018 | D27: $ | E27: 0.79 | K27: 1_P_SMEC
A28: RESIDENTIAL | B28: Distribution Volumetric Rate | D28: $/kWh | E28: 0.0159 | K28: 1_P_VC_1
A29: RESIDENTIAL | B29: Low Voltage Service Rate | D29: $/kWh | E29: 0.0004 | K29: 1_P_LVrate
A30: RESIDENTIAL | B30: Rate Rider for Disposition of Deferral/Variance Accounts (2014) - effective until April 30, 2015 | D30: $/kWh | E30: -0.0005 | K30: 1_P_VC_DEFVAR_kWh_1
A31: RESIDENTIAL | B31: Rate Rider for Disposition of Global Adjustment Sub-Account (2014) - effective until April 30, 2015 Applicable only for Non-RPP Customers | D31: $/kWh | E31: -0.0016 | K31: 1_P_VC_GA_Rate_Rider_kWh_1
A32: RESIDENTIAL | B32: Rate Rider for Disposition of Account 1576 - effective until April 30, 2015 | D32: $/kWh | E32: -0.0006 | K32: 1_P_VC_Rate_Rider_kWh_2
A33: RESIDENTIAL | B33: Rate Rider for Disposition of CGAAP CWIP DIfferential - effective until April 30, 2015 | D33: $/kWh | E33: 0.0003 | K33: 1_P_VC_Rate_Rider_kWh_3
A34: RESIDENTIAL | B34: Rate Rider for Disposition of Incremental Capital Expenditures - effective until April 30, 2015 | D34: $/kWh | E34: 0.0002 | K34: 1_P_VC_Rate_Rider_kWh_4
A35: RESIDENTIAL | B35: Rate Rider for Ice Storm Cost Recovery - effective until December 31 , 2015 | D35: $ | E35: 0.26 | K35: 1_P_MSC_Rate_Rider_3
A36: RESIDENTIAL | B36: Retail Transmission Rate - Network Service Rate | D36: $/kWh | E36: 0.008344432711 | K36: 1_P_RTSR_Network
A37: RESIDENTIAL | B37: Retail Transmission Rate - Line and Transformation Connection Service Rate | D37: $/kWh | E37: 0.005603330351 | K37: 1_P_RTSR_Connection
A38: RESIDENTIAL
A39: RESIDENTIAL | B39: MONTHLY RATES AND CHARGES - Regulatory Component
A40: RESIDENTIAL
A41: RESIDENTIAL | B41: Wholesale Market Service Rate | D41: $/kWh | E41: 0.0044 | K41: 1_P_WMSR
A42: RESIDENTIAL | B42: Rural or Remote Electricity Rate Protection Charge (RRRP) | D42: $/kWh | E42: 0.0013 | K42: 1_P_RRPC
A43: RESIDENTIAL | B43: Standard Supply Service - Administrative Charge (if applicable) | D43: $ | E43: 0.25 | K43: 1_P_SSS
B45: GENERAL SERVICE LESS THAN 50 KW SERVICE CLASSIFICATION
B47: This class refers to customers who do not qualify as residential customers and whose monthly average peak demand in the preceding twelve months is less than 50kW. For new customers without prior billing history, the peak demand will be based on 90% of the proposed capacity or installed transformation. Note: Apartment buildings or multi-unit complexes and subdivisions that are not individually metered are treated as General Service. Further servicing details are available in the distributor’s Conditions of Service. | L47: =ROUND(LEN(B47), -2) / 100 -> 5
B49: APPLICATION
B51: The application of these rates and charges shall be in accordance with the Licence of the Distributor and any Code or Order of the Board, and amendments thereto as approved by the Board, which may be applicable to the administration of this schedule | L51: =ROUND(LEN(B51), -2) / 100 -> 2
B53: No rates and charges for the distribution of electricity and charges to meet the costs of any work or service done or furnished for the purpose of the distribution of electricity shall be made except as permitted by this schedule, unless required by the Distributor’s Licence or a Code or Order of the Board, and amendments thereto as approved by the Board, or as specified herein. | L53: =ROUND(LEN(B53), -2) / 100 -> 4
B55: Unless specifically noted, this schedule does not contain any charges for the electricity commodity, be it under the Regulated Price Plan, a contract with a retailer or the wholesale market price, as applicable. In addition, the charges in the MONTHLY RATES AND CHARGES – Regulatory Component of this schedule do not apply to a customer that is an embedded wholesale market participant | L55: =ROUND(LEN(B55), -2) / 100 -> 4
B57: It should be noted that this schedule does not list any charges, assessments or credits that are required by law to be invoiced by a distributor and that are not subject to Board approval, such as the Debt Retirement Charge, the Global Adjustment, the Ontario Clean Energy Benefit and the HST. | L57: =ROUND(LEN(B57), -2) / 100 -> 3
B59: MONTHLY RATES AND CHARGES - Delivery Component
A61: GENERAL SERVICE LESS THAN 50 KW | B61: Service Charge | D61: $ | E61: 35.11 | K61: 2_P_MSC
A62: GENERAL SERVICE LESS THAN 50 KW | B62: Rate Rider for Recovery of Stranded Meter Assets - effective until April 30, 2019 | D62: $ | E62: 2.27 | K62: 2_P_MSC_Rate_Rider_1
A63: GENERAL SERVICE LESS THAN 50 KW | B63: Rate Rider for Smart Metering Entity Charge - effective until October 31, 2018 | D63: $ | E63: 0.79 | K63: 2_P_SMEC
A64: GENERAL SERVICE LESS THAN 50 KW | B64: Distribution Volumetric Rate | D64: $/kWh | E64: 0.0155 | K64: 2_P_VC_1
A65: GENERAL SERVICE LESS THAN 50 KW | B65: Low Voltage Service Rate | D65: $/kWh | E65: 0.0003 | K65: 2_P_LVrate
A66: GENERAL SERVICE LESS THAN 50 KW | B66: Rate Rider for Disposition of Deferral/Variance Accounts (2014) - effective until April 30, 2015 | D66: $/kWh | E66: -0.0007 | K66: 2_P_VC_DEFVAR_kWh_1
A67: GENERAL SERVICE LESS THAN 50 KW | B67: Rate Rider for Disposition of Global Adjustment Sub-Account (2014) - effective until April 30, 2015 Applicable only for Non-RPP Customers | D67: $/kWh | E67: -0.0016 | K67: 2_P_VC_GA_Rate_Rider_kWh_1
A68: GENERAL SERVICE LESS THAN 50 KW | B68: Rate Rider for Disposition of Account 1576 - effective until April 30, 2015 | D68: $/kWh | E68: -0.0006 | K68: 2_P_VC_Rate_Rider_kWh_2
A69: GENERAL SERVICE LESS THAN 50 KW | B69: Rate Rider for Disposition of CGAAP CWIP DIfferential - effective until April 30, 2015 | D69: $/kWh | E69: 0.0003 | K69: 2_P_VC_Rate_Rider_kWh_3
A70: GENERAL SERVICE LESS THAN 50 KW | B70: Rate Rider for Disposition of Incremental Capital Expenditures - effective until April 30, 2015 | D70: $/kWh | E70: 0.0002 | K70: 2_P_VC_Rate_Rider_kWh_4
A71: GENERAL SERVICE LESS THAN 50 KW | B71: Rate Rider for Ice Storm Cost Recovery - effective until December 31 , 2015 | D71: $ | E71: 0.73 | K71: 2_P_MSC_Rate_Rider_3
A72: GENERAL SERVICE LESS THAN 50 KW | B72: Retail Transmission Rate - Network Service Rate | D72: $/kWh | E72: 0.007710678328 | K72: 2_P_RTSR_Network
A73: GENERAL SERVICE LESS THAN 50 KW | B73: Retail Transmission Rate - Line and Transformation Connection Service Rate | D73: $/kWh | E73: 0.00507471428 | K73: 2_P_RTSR_Connection
A74: GENERAL SERVICE LESS THAN 50 KW
A75: GENERAL SERVICE LESS THAN 50 KW | B75: MONTHLY RATES AND CHARGES - Regulatory Component
A76: GENERAL SERVICE LESS THAN 50 KW
A77: GENERAL SERVICE LESS THAN 50 KW | B77: Wholesale Market Service Rate | D77: $/kWh | E77: 0.0044 | K77: 2_P_WMSR
A78: GENERAL SERVICE LESS THAN 50 KW | B78: Rural or Remote Electricity Rate Protection Charge (RRRP) | D78: $/kWh | E78: 0.0013 | K78: 2_P_RRPC
A79: GENERAL SERVICE LESS THAN 50 KW | B79: Standard Supply Service - Administrative Charge (if applicable) | D79: $ | E79: 0.25 | K79: 2_P_SSS
B81: GENERAL SERVICE 50 TO 1,000 KW SERVICE CLASSIFICATION
B83: This class refers to customers who do not qualify as residential customers whose monthly average peak demand in the preceding twelve months is in the range of 50 to 999 kW. There are two sub categories within this class, those being non-interval and interval metered accounts. For new customers without prior billing history, the peak demand will be based on 90% of the proposed capacity or installed transformation. Further servicing details are available in the distributor’s Conditions of Service. | L83: =ROUND(LEN(B83), -2) / 100 -> 5
B85: APPLICATION
B87: The application of these rates and charges shall be in accordance with the Licence of the Distributor and any Code or Order of the Board, and amendments thereto as approved by the Board, which may be applicable to the administration of this schedule. | L87: =ROUND(LEN(B87), -2) / 100 -> 3
B89: No rates and charges for the distribution of electricity and charges to meet the costs of any work or service done or furnished for the purpose of the distribution of electricity shall be made except as permitted by this schedule, unless required by the Distributor’s Licence or a Code or Order of the Board, and amendments thereto as approved by the Board, or as specified herein. | L89: =ROUND(LEN(B89), -2) / 100 -> 4
B91: Unless specifically noted, this schedule does not contain any charges for the electricity commodity, be it under the Regulated Price Plan, a contract with a retailer or the wholesale market price, as applicable. In addition, the charges in the MONTHLY RATES AND CHARGES – Regulatory Component of this schedule do not apply to a customer that is an embedded wholesale market participant. | L91: =ROUND(LEN(B91), -2) / 100 -> 4
B93: It should be noted that this schedule does not list any charges, assessments or credits that are required by law to be invoiced by a distributor and that are not subject to Board approval, such as the Debt Retirement Charge, the Global Adjustment, the Ontario Clean Energy Benefit and the HST | L93: =ROUND(LEN(B93), -2) / 100 -> 3
B95: MONTHLY RATES AND CHARGES - Delivery Component
A97: GENERAL SERVICE 50 TO 1,000 KW | B97: Service Charge | D97: $ | E97: 119.81 | K97: 3_P_MSC
A98: GENERAL SERVICE 50 TO 1,000 KW | B98: Distribution Volumetric Rate | D98: $/kW | E98: 4.6853 | K98: 3_P_VC_1
A99: GENERAL SERVICE 50 TO 1,000 KW | B99: Low Voltage Service Rate | D99: $/kW | E99: 0.1313 | K99: 3_P_LVrate
A100: GENERAL SERVICE 50 TO 1,000 KW | B100: Rate Rider for Disposition of Deferral/Variance Accounts (2014) - effective until April 30, 2015 | D100: $/kW | E100: -0.5227 | K100: 3_P_VC_DEFVAR_kW_1
A101: GENERAL SERVICE 50 TO 1,000 KW | B101: Rate Rider for Disposition of Global Adjustment Sub-Account (2014) - effective until April 30, 2015 Applicable only for Non-RPP Customers | D101: $/kW | E101: -0.5833 | K101: 3_P_VC_GA_Rate_Rider_kW_1
A102: GENERAL SERVICE 50 TO 1,000 KW | B102: Rate Rider for Disposition of Account 1576 - effective until April 30, 2015 | D102: $/kW | E102: -0.2105 | K102: 3_P_VC_Rate_Rider_kW_2
A103: GENERAL SERVICE 50 TO 1,000 KW | B103: Rate Rider for Disposition of CGAAP CWIP DIfferential - effective until April 30, 2015 | D103: $/kW | E103: 0.1138 | K103: 3_P_VC_Rate_Rider_kW_3
A104: GENERAL SERVICE 50 TO 1,000 KW | B104: Rate Rider for Disposition of Incremental Capital Expenditures - effective until April 30, 2015 | D104: $/kW | E104: 0.0682 | K104: 3_P_VC_Rate_Rider_kW_4
A105: GENERAL SERVICE 50 TO 1,000 KW | B105: Rate Rider for Ice Storm Cost Recovery - effective until December 31 , 2015 | D105: $ | E105: 7.5 | K105: 3_P_MSC_Rate_Rider_1
A106: GENERAL SERVICE 50 TO 1,000 KW | B106: Retail Transmission Rate - Network Service Rate | D106: $/kW | E106: 2.898475671 | K106: 3_P_RTSR_Network
A107: GENERAL SERVICE 50 TO 1,000 KW | B107: Retail Transmission Rate - Network Service Rate - Interval Metered | D107: $/kW | E107: 2.992165694 | K107: 3_P_RTSR_Network_Interval
A108: GENERAL SERVICE 50 TO 1,000 KW | B108: Retail Transmission Rate - Line and Transformation Connection Service Rate | D108: $/kW | E108: 1.92225948 | K108: 3_P_RTSR_Connection
A109: GENERAL SERVICE 50 TO 1,000 KW | B109: Retail Transmission Rate - Line and Transformation Connection Service Rate - Interval Metered | D109: $/kW | E109: 1.984530453 | K109: 3_P_RTSR_Connection_Interval
A110: GENERAL SERVICE 50 TO 1,000 KW
A111: GENERAL SERVICE 50 TO 1,000 KW | B111: MONTHLY RATES AND CHARGES - Regulatory Component
A112: GENERAL SERVICE 50 TO 1,000 KW
A113: GENERAL SERVICE 50 TO 1,000 KW | B113: Wholesale Market Service Rate | D113: $/kWh | E113: 0.0044 | K113: 3_P_WMSR
A114: GENERAL SERVICE 50 TO 1,000 KW | B114: Rural or Remote Electricity Rate Protection Charge (RRRP) | D114: $/kWh | E114: 0.0013 | K114: 3_P_RRPC
A115: GENERAL SERVICE 50 TO 1,000 KW | B115: Standard Supply Service - Administrative Charge (if applicable) | D115: $ | E115: 0.25 | K115: 3_P_SSS
B117: GENERAL SERVICE GREATER THAN 1,000 KW SERVICE CLASSIFICATION
B119: This class refers to customers who do not qualify as residential customers whose monthly average peak demand in the preceding twelve months is equal to or greater than 1,000 kW. These accounts will all be interval metered accounts. For new customers without prior billing history, the peak demand will be based on 90% of the proposed capacity or installed transformation. Further servicing details are available in the distributor’s Conditions of Service. | L119: =ROUND(LEN(B119), -2) / 100 -> 5
B121: APPLICATION
B123: The application of these rates and charges shall be in accordance with the Licence of the Distributor and any Code or Order of the Board, and amendments thereto as approved by the Board, which may be applicable to the administration of this schedule. | L123: =ROUND(LEN(B123), -2) / 100 -> 3
B125: No rates and charges for the distribution of electricity and charges to meet the costs of any work or service done or service done or furnished for the purpose of the distribution of electricity shall be made except as permitted by this schedule, unless required by the Distributor’s Licence or a Code or Order of the Board, and amendments thereto as approved by the Board, or as specified herein. | L125: =ROUND(LEN(B125), -2) / 100 -> 4
B127: Unless specifically noted, this schedule does not contain any charges for the electricity commodity, be it under the Regulated Price Plan, a contract with a retailer or the wholesale market price, as applicable. In addition, the charges in the MONTHLY RATES AND CHARGES – Regulatory Component of this schedule do not apply to a customer that is an embedded wholesale market participant. | L127: =ROUND(LEN(B127), -2) / 100 -> 4
B129: It should be noted that this schedule does not list any charges, assessments or credits that are required by law to be invoiced by a distributor and that are not subject to Board approval, such as the Debt Retirement Charge, the Global Adjustment, the Ontario Clean Energy Benefit and the HST. | L129: =ROUND(LEN(B129), -2) / 100 -> 3
B131: MONTHLY RATES AND CHARGES - Delivery Component
A133: GENERAL SERVICE GREATER THAN 1,000 KW | B133: Service Charge | D133: $ | E133: 3438.93 | K133: 4_P_MSC
A134: GENERAL SERVICE GREATER THAN 1,000 KW | B134: Distribution Volumetric Rate | D134: $/kW | E134: 2.7193 | K134: 4_P_VC_1
A135: GENERAL SERVICE GREATER THAN 1,000 KW | B135: Low Voltage Service Rate | D135: $/kW | E135: 0.1313 | K135: 4_P_LVrate
A136: GENERAL SERVICE GREATER THAN 1,000 KW | B136: Rate Rider for Disposition of Deferral/Variance Accounts (2014) - effective until April 30, 2015 | D136: $/kW | E136: -0.7342 | K136: 4_P_VC_DEFVAR_kW_1
A137: GENERAL SERVICE GREATER THAN 1,000 KW | B137: Rate Rider for Disposition of Global Adjustment Sub-Account (2014) - effective until April 30, 2015 Applicable only for Non-RPP Customers | D137: $/kW | E137: -0.7144 | K137: 4_P_VC_GA_Rate_Rider_kW_1
A138: GENERAL SERVICE GREATER THAN 1,000 KW | B138: Rate Rider for Disposition of Account 1576 - effective until April 30, 2015 | D138: $/kW | E138: -0.2579 | K138: 4_P_VC_Rate_Rider_kW_2
A139: GENERAL SERVICE GREATER THAN 1,000 KW | B139: Rate Rider for Disposition of CGAAP CWIP DIfferential - effective until April 30, 2015 | D139: $/kW | E139: 0.1393 | K139: 4_P_VC_Rate_Rider_kW_3
A140: GENERAL SERVICE GREATER THAN 1,000 KW | B140: Rate Rider for Disposition of Incremental Capital Expenditures - effective until April 30, 2015 | D140: $/kW | E140: 0.0836 | K140: 4_P_VC_Rate_Rider_kW_4
A141: GENERAL SERVICE GREATER THAN 1,000 KW | B141: Rate Rider for Ice Storm Cost Recovery - effective until December 31 , 2015 | D141: $ | E141: 76.81 | K141: 4_P_MSC_Rate_Rider_1
A142: GENERAL SERVICE GREATER THAN 1,000 KW | B142: Retail Transmission Rate - Network Service Rate - Interval Metered | D142: $/kW | E142: 2.992165694 | K142: 4_P_RTSR_Network_Interval
A143: GENERAL SERVICE GREATER THAN 1,000 KW | B143: Retail Transmission Rate - Line and Transformation Connection Service Rate - Interval Metered | D143: $/kW | E143: 1.984530453 | K143: 4_P_RTSR_Connection_Interval
A144: GENERAL SERVICE GREATER THAN 1,000 KW
A145: GENERAL SERVICE GREATER THAN 1,000 KW | B145: MONTHLY RATES AND CHARGES - Regulatory Component
A146: GENERAL SERVICE GREATER THAN 1,000 KW
A147: GENERAL SERVICE GREATER THAN 1,000 KW | B147: Wholesale Market Service Rate | D147: $/kWh | E147: 0.0044 | K147: 4_P_WMSR
A148: GENERAL SERVICE GREATER THAN 1,000 KW | B148: Rural or Remote Electricity Rate Protection Charge (RRRP) | D148: $/kWh | E148: 0.0013 | K148: 4_P_RRPC
A149: GENERAL SERVICE GREATER THAN 1,000 KW | B149: Standard Supply Service - Administrative Charge (if applicable) | D149: $ | E149: 0.25 | K149: 4_P_SSS
B151: UNMETERED SCATTERED LOAD SERVICE CLASSIFICATION
B153: This classification applies to an account taking electricity at 750 volts or less whose average monthly maximum demand is less than, or is forecast to be less than, 50 kW and the consumption is unmetered. Such connections include cable TV power packs, bus shelters, telephone booths, traffic lights, pedestrian X-Walk signals/beacons, railway crossings, etc. The level of the consumption will be agreed to by the distributor and the customer, based on detailed manufacturer information and documentation with regard to electrical consumption of the unmetered load or periodic monitoring of actual consumption. Further servicing details are available in the distributor’s Conditions of Service. | L153: =ROUND(LEN(B153), -2) / 100 -> 7
B155: APPLICATION
B157: The application of these rates and charges shall be in accordance with the Licence of the Distributor and any Code or Order of the Board, and amendments thereto as approved by the Board, which may be applicable to the administration of this schedule. | L157: =ROUND(LEN(B157), -2) / 100 -> 3
B159: No rates and charges for the distribution of electricity and charges to meet the costs of any work or service done or furnished for the purpose of the distribution of electricity shall be made except as permitted by this schedule, unless required by the Distributor’s Licence or a Code or Order of the Board, and amendments thereto as approved by the Board, or as specified herein. | L159: =ROUND(LEN(B159), -2) / 100 -> 4
B161: Unless specifically noted, this schedule does not contain any charges for the electricity commodity, be it under the Regulated Price Plan, a contract with a retailer or the wholesale market price, as applicable. In addition, the charges in the MONTHLY RATES AND CHARGES – Regulatory Component of this schedule do not apply to a customer that is an embedded wholesale market participant. | L161: =ROUND(LEN(B161), -2) / 100 -> 4
B163: It should be noted that this schedule does not list any charges, assessments or credits that are required by law to be invoiced by a distributor and that are not subject to Board approval, such as the Debt Retirement Charge, the Global Adjustment, the Ontario Clean Energy Benefit and the HST. | L163: =ROUND(LEN(B163), -2) / 100 -> 3
B165: MONTHLY RATES AND CHARGES - Delivery Component
A167: UNMETERED SCATTERED LOAD | B167: Service Charge (per connection) | D167: $ | E167: 9.94 | K167: 5_P_MSC
A168: UNMETERED SCATTERED LOAD | B168: Distribution Volumetric Rate | D168: $/kWh | E168: 0.0093 | K168: 5_P_VC_1
A169: UNMETERED SCATTERED LOAD | B169: Low Voltage Service Rate | D169: $/kWh | E169: 0.0003 | K169: 5_P_LVrate
A170: UNMETERED SCATTERED LOAD | B170: Rate Rider for Disposition of Deferral/Variance Accounts (2014) - effective until April 30, 2015 | D170: $/kWh | E170: -0.0007 | K170: 5_P_VC_DEFVAR_kWh_1
A171: UNMETERED SCATTERED LOAD | B171: Rate Rider for Disposition of Global Adjustment Sub-Account (2014) - effective until April 30, 2015 Applicable only for Non-RPP Customers | D171: $/kWh | E171: -0.0016 | K171: 5_P_VC_GA_Rate_Rider_kWh_1
A172: UNMETERED SCATTERED LOAD | B172: Rate Rider for Disposition of Account 1576 - effective until April 30, 2015 | D172: $/kWh | E172: -0.0006 | K172: 5_P_VC_Rate_Rider_kWh_2
A173: UNMETERED SCATTERED LOAD | B173: Rate Rider for Disposition of CGAAP CWIP DIfferential - effective until April 30, 2015 | D173: $/kWh | E173: 0.0003 | K173: 5_P_VC_Rate_Rider_kWh_3
A174: UNMETERED SCATTERED LOAD | B174: Rate Rider for Disposition of Incremental Capital Expenditures - effective until April 30, 2015 | D174: $/kWh | E174: 0.0002 | K174: 5_P_VC_Rate_Rider_kWh_4
A175: UNMETERED SCATTERED LOAD | B175: Rate Rider for Ice Storm Cost Recovery - effective until December 31 , 2015 | D175: $ | E175: 0.13 | K175: 5_P_MSC_Rate_Rider_1
A176: UNMETERED SCATTERED LOAD | B176: Retail Transmission Rate - Network Service Rate | D176: $/kWh | E176: 0.007710678328 | K176: 5_P_RTSR_Network
A177: UNMETERED SCATTERED LOAD | B177: Retail Transmission Rate - Line and Transformation Connection Service Rate | D177: $/kWh | E177: 0.00507471428 | K177: 5_P_RTSR_Connection
A178: UNMETERED SCATTERED LOAD
A179: UNMETERED SCATTERED LOAD | B179: MONTHLY RATES AND CHARGES - Regulatory Component
A180: UNMETERED SCATTERED LOAD
A181: UNMETERED SCATTERED LOAD | B181: Wholesale Market Service Rate | D181: $/kWh | E181: 0.0044 | K181: 5_P_WMSR
A182: UNMETERED SCATTERED LOAD | B182: Rural or Remote Electricity Rate Protection Charge (RRRP) | D182: $/kWh | E182: 0.0013 | K182: 5_P_RRPC
A183: UNMETERED SCATTERED LOAD | B183: Standard Supply Service - Administrative Charge (if applicable) | D183: $ | E183: 0.25 | K183: 5_P_SSS
B185: SENTINEL LIGHTING SERVICE CLASSIFICATION
B187: This classification refers to accounts that are an unmetered lighting load supplied to a sentinel light. Further servicing details are available in the distributor’s Conditions of Service. | L187: =ROUND(LEN(B187), -2) / 100 -> 2
B189: APPLICATION
B191: The application of these rates and charges shall be in accordance with the Licence of the Distributor and any Code or Order of the Board, and amendments thereto as approved by the Board, which may be applicable to the administration of this schedule. | L191: =ROUND(LEN(B191), -2) / 100 -> 3
B193: No rates and charges for the distribution of electricity and charges to meet the costs of any work or service done or furnished for the purpose of the distribution of electricity shall be made except as permitted by this schedule, unless required by the Distributor’s Licence or a Code or Order of the Board, and amendments thereto as approved by the Board, or as specified herein. | L193: =ROUND(LEN(B193), -2) / 100 -> 4
B195: Unless specifically noted, this schedule does not contain any charges for the electricity commodity, be it under the Regulated Price Plan, a contract with a retailer or the wholesale market price, as applicable. In addition, the charges in the MONTHLY RATES AND CHARGES – Regulatory Component of this schedule do not apply to a customer that is an embedded wholesale market participant. | L195: =ROUND(LEN(B195), -2) / 100 -> 4
B197: It should be noted that this schedule does not list any charges, assessments or credits that are required by law to be invoiced by a distributor and that are not subject to Board approval, such as the Debt Retirement Charge, the Global Adjustment, the Ontario Clean Energy Benefit and the HST. | L197: =ROUND(LEN(B197), -2) / 100 -> 3
B199: MONTHLY RATES AND CHARGES - Delivery Component
A201: SENTINEL LIGHTING | B201: Service Charge (per connection) | D201: $ | E201: 2.72 | K201: 6_P_MSC
A202: SENTINEL LIGHTING | B202: Distribution Volumetric Rate | D202: $/kW | E202: 46.1003 | K202: 6_P_VC_1
A203: SENTINEL LIGHTING | B203: Low Voltage Service Rate | D203: $/kW | E203: 0.0255 | K203: 6_P_LVrate
A204: SENTINEL LIGHTING | B204: Rate Rider for Disposition of Deferral/Variance Accounts (2014) - effective until April 30, 2015 | D204: $/kW | E204: -1.0448 | K204: 6_P_VC_DEFVAR_kW_1
A205: SENTINEL LIGHTING | B205: Rate Rider for Disposition of Account 1576 - effective until April 30, 2015 | D205: $/kW | E205: -0.2055 | K205: 6_P_VC_Rate_Rider_kW_2
A206: SENTINEL LIGHTING | B206: Rate Rider for Disposition of CGAAP CWIP DIfferential - effective until April 30, 2015 | D206: $/kW | E206: 0.111 | K206: 6_P_VC_Rate_Rider_kW_3
A207: SENTINEL LIGHTING | B207: Rate Rider for Disposition of Incremental Capital Expenditures - effective until April 30, 2015 | D207: $/kW | E207: 0.0666 | K207: 6_P_VC_Rate_Rider_kW_4
A208: SENTINEL LIGHTING | B208: Rate Rider for Ice Storm Cost Recovery - effective until December 31 , 2015 | D208: $ | E208: 0.1 | K208: 6_P_MSC_Rate_Rider_1
A209: SENTINEL LIGHTING | B209: Retail Transmission Rate - Network Service Rate | D209: $/kW | E209: 0.5810471436 | K209: 6_P_RTSR_Network
A210: SENTINEL LIGHTING | B210: Retail Transmission Rate - Line and Transformation Connection Service Rate | D210: $/kW | E210: 0.3852553924 | K210: 6_P_RTSR_Connection
A211: SENTINEL LIGHTING
A212: SENTINEL LIGHTING | B212: MONTHLY RATES AND CHARGES - Regulatory Component
A213: SENTINEL LIGHTING
A214: SENTINEL LIGHTING | B214: Wholesale Market Service Rate | D214: $/kWh | E214: 0.0044 | K214: 6_P_WMSR
A215: SENTINEL LIGHTING | B215: Rural or Remote Electricity Rate Protection Charge (RRRP) | D215: $/kWh | E215: 0.0013 | K215: 6_P_RRPC
A216: SENTINEL LIGHTING | B216: Standard Supply Service - Administrative Charge (if applicable) | D216: $ | E216: 0.25 | K216: 6_P_SSS
B218: STREET LIGHTING SERVICE CLASSIFICATION
B220: All services supplied to street lighting equipment owned by or operated for the Municipality, the Region or the Province of Ontario shall be classified as Street Lighting Service. Street Lighting plant, facilities, or equipment owned by the customer are subject to the Electrical Safety Authority (ESA) requirements and Oakville Hydro specifications. Further servicing details are available in the distributor’s Conditions of Service. | L220: =ROUND(LEN(B220), -2) / 100 -> 4
B222: APPLICATION
B224: The application of these rates and charges shall be in accordance with the Licence of the Distributor and any Code or Order of the Board, and amendments thereto as approved by the Board, which may be applicable to the administration of this schedule. | L224: =ROUND(LEN(B224), -2) / 100 -> 3
B226: No rates and charges for the distribution of electricity and charges to meet the costs of any work or service done or furnished for the purpose of the distribution of electricity shall be made except as permitted by this schedule, unless required by the Distributor’s Licence or a Code or Order of the Board, and amendments thereto as approved by the Board, or as specified herein. | L226: =ROUND(LEN(B226), -2) / 100 -> 4
B228: Unless specifically noted, this schedule does not contain any charges for the electricity commodity, be it under the Regulated Price Plan, a contract with a retailer or the wholesale market price, as applicable. In addition, the charges in the MONTHLY RATES AND CHARGES – Regulatory Component of this schedule do not apply to a customer that is an embedded wholesale market participant. | L228: =ROUND(LEN(B228), -2) / 100 -> 4
B230: It should be noted that this schedule does not list any charges, assessments or credits that are required by law to be invoiced by a distributor and that are not subject to Board approval, such as the Debt Retirement Charge, the Global Adjustment, the Ontario Clean Energy Benefit and the HST. | L230: =ROUND(LEN(B230), -2) / 100 -> 3
B232: MONTHLY RATES AND CHARGES - Delivery Component
A234: STREET LIGHTING | B234: Service Charge (per connection) | D234: $ | E234: 3.73 | K234: 7_P_MSC
A235: STREET LIGHTING | B235: Distribution Volumetric Rate | D235: $/kW | E235: 22.8996 | K235: 7_P_VC_1
A236: STREET LIGHTING | B236: Low Voltage Service Rate | D236: $/kW | E236: 0.1061 | K236: 7_P_LVrate
A237: STREET LIGHTING | B237: Rate Rider for Disposition of Deferral/Variance Accounts (2014) - effective until April 30, 2015 | D237: $/kW | E237: -0.5864 | K237: 7_P_VC_DEFVAR_kW_1
A238: STREET LIGHTING | B238: Rate Rider for Disposition of Global Adjustment Sub-Account (2014) - effective until April 30, 2015 Applicable only for Non-RPP Customers | D238: $/kW | E238: -0.5679 | K238: 7_P_VC_GA_Rate_Rider_kW_1
A239: STREET LIGHTING | B239: Rate Rider for Disposition of Account 1576 - effective until April 30, 2015 | D239: $/kW | E239: -0.205 | K239: 7_P_VC_Rate_Rider_kW_2
A240: STREET LIGHTING | B240: Rate Rider for Disposition of CGAAP CWIP DIfferential - effective until April 30, 2015 | D240: $/kW | E240: 0.1108 | K240: 7_P_VC_Rate_Rider_kW_3
A241: STREET LIGHTING | B241: Rate Rider for Disposition of Incremental Capital Expenditures - effective until April 30, 2015 | D241: $/kWh | E241: 0.0664 | K241: 7_P_VC_Rate_Rider_kWh_1
A242: STREET LIGHTING | B242: Rate Rider for Ice Storm Cost Recovery - effective until December 31 , 2015 | D242: $ | E242: 0.08 | K242: 7_P_MSC_Rate_Rider_1
A243: STREET LIGHTING | B243: Rate Rider for Ice Storm Cost Recovery - effective until December 31 , 2015
A244: STREET LIGHTING | B244: Retail Transmission Rate - Network Service Rate | D244: $/kW | E244: 2.417984223 | K244: 7_P_RTSR_Network
A245: STREET LIGHTING | B245: Retail Transmission Rate - Line and Transformation Connection Service Rate | D245: $/kW | E245: 1.603715436 | K245: 7_P_RTSR_Connection
A246: STREET LIGHTING
A247: STREET LIGHTING | B247: MONTHLY RATES AND CHARGES - Regulatory Component
A248: STREET LIGHTING
A249: STREET LIGHTING | B249: Wholesale Market Service Rate | D249: $/kWh | E249: 0.0044 | K249: 7_P_WMSR
A250: STREET LIGHTING | B250: Rural or Remote Electricity Rate Protection Charge (RRRP) | D250: $/kWh | E250: 0.0013 | K250: 7_P_RRPC
A251: STREET LIGHTING | B251: Standard Supply Service - Administrative Charge (if applicable) | D251: $ | E251: 0.25 | K251: 7_P_SSS
B253: EMBEDDED DISTRIBUTOR SERVICE CLASSIFICATION
B255: This classification applies to an electricity distributor licenced by the Board, which is provided electricity by means of this distributor's facilities. Further servicing details are available in the distributor's Conditions of Service. | L255: =ROUND(LEN(B255), -2) / 100 -> 2
B257: APPLICATION
B259: The application of these rates and charges shall be in accordance with the Licence of the Distributor and any Code or Order of the Board, and amendments thereto as approved by the Board, which may be applicable to the administration of this schedule. | L259: =ROUND(LEN(B259), -2) / 100 -> 3
B261: No rates and charges for the distribution of electricity and charges to meet the costs of any work or service done or furnished for the purpose of the distribution of electricity shall be made except as permitted by this schedule, unless required by the Distributor’s Licence or a Code or Order of the Board, and amendments thereto as approved by the Board, or as specified herein. | L261: =ROUND(LEN(B261), -2) / 100 -> 4
B263: Unless specifically noted, this schedule does not contain any charges for the electricity commodity, be it under the Regulated Price Plan, a contract with a retailer or the wholesale market price, as applicable. In addition, the charges in the MONTHLY RATES AND CHARGES – Regulatory Component of this schedule do not apply to a customer that is an embedded wholesale market participant. | L263: =ROUND(LEN(B263), -2) / 100 -> 4
B265: It should be noted that this schedule does not list any charges, assessments or credits that are required by law to be invoiced by a distributor and that are not subject to Board approval, such as the Debt Retirement Charge, the Global Adjustment, the Ontario Clean Energy Benefit and the HST. | L265: =ROUND(LEN(B265), -2) / 100 -> 3
B267: MONTHLY RATES AND CHARGES - Delivery Component
A269: EMBEDDED DISTRIBUTOR | B269: Service Charge | D269: $ | E269: 5130.45 | K269: 8_P_MSC
A270: EMBEDDED DISTRIBUTOR | B270: Distribution Volumetric Rate | D270: $/kW | E270: 2.8022 | K270: 8_P_VC_1
A271: EMBEDDED DISTRIBUTOR | B271: Low Voltage Service Rate | D271: $/kW | E271: 0.1313 | K271: 8_P_LVrate
A272: EMBEDDED DISTRIBUTOR | B272: Retail Transmission Rate - Network Service Rate | D272: $/kW | E272: 2.992165694 | K272: 8_P_RTSR_Network
A273: EMBEDDED DISTRIBUTOR | B273: Retail Transmission Rate - Line and Transformation Connection Service Rate | D273: $/kW | E273: 1.984530453 | K273: 8_P_RTSR_Connection
... 73 more rows

Sheet 14. Bill Impacts (hidden)
Z1: =MATCH(A13, '3. Rate Class Selection'!B19:B40,0) -> 1 | AA1: =VLOOKUP(A13, lists!AO:AP,2,0) -> kWh
A11: Choose a Rate Class from the drop-down menu below and click UPDATE. For Street Lighting and USL classes, please ensure that the number of customers is manually entered into cells B30 and B31. Click the UPDATE button to refresh the sheet.
A13: RESIDENTIAL | F13: =IF(ISERROR(SEARCH("MicroFit",A13,1))=FALSE,"Bill impact presentation for this class does not exist.", "") -> 
A15: Consumption | B15: =730*D15*B17 -> 3650000 | C15: kWh | D15: 10000 | E15: =IF(AA1 = "kWh", "", "kW") -> 
A16: RPP Tier One | B16: 600 | C16: kWh | E16: 1
A17: Load Factor | B17: 0.5
A18: Loss Factor | B18: 1
B21: CURRENT ESTIMATED BILL | E21: PROPOSED ESTIMATED BILL
B22: Volume | C22: Current Rate ($) | D22: Current Charge ($) | E22: Volume | F22: Proposed Rate ($) | G22: Proposed Charge ($) | I22: Change ($) | J22: Change (%) | K22: % of Total RPP Bill | L22: % of Total TOU Bill
A23: Energy First Tier (kWh) | B23: 3650000 | C23: 0.075 | D23: =B23*C23 -> 273750 | E23: =B23 -> 3650000 | F23: =C23 -> 0.075 | G23: =E23*F23 -> 273750 | I23: =G23-D23 -> 0 | J23: =I23/D23 -> 0 | K23: =G23/G48 -> 0.8646078577
A24: Energy Second Tier (kWh) | B24: 0 | C24: 0.088 | D24: =B24*C24 -> 0 | E24: =B24 -> 0 | F24: =C24 -> 0.088 | G24: =E24*F24 -> 0 | I24: =G24-D24 -> 0 | J24: 0 | K24: =G24/G48 -> 0
A26: TOU - Off Peak | B26: =0.64*$B$15*$B$18 -> 2336000 | C26: 0.065 | D26: =C26*B26 -> 151840 | E26: =B26 -> 2336000 | F26: =C26 -> 0.065 | G26: =F26*E26 -> 151840 | I26: =G26-D26 -> 0 | J26: =I26/D26 -> 0 | L26: =G26/G54 -> 0.449726096
A27: TOU - Mid Peak | B27: =0.18*$B$15*$B$18 -> 657000 | C27: 0.1 | D27: =C27*B27 -> 65700 | E27: =B27 -> 657000 | F27: =C27 -> 0.1 | G27: =F27*E27 -> 65700 | H27: =G27*F27 -> 6570 | I27: =G27-D27 -> 0 | J27: =I27/D27 -> 0 | L27: =G27/G54 -> 0.1945930223
A28: TOU - On Peak | B28: =0.18*$B$15*$B$18 -> 657000 | C28: 0.117 | D28: 76869 | F28: =C28 -> 0.117 | G28: =F28*E28 -> 0 | H28: =G28*F28 -> 0 | J28: =I28/D28 -> 0 | L28: =G28/G54 -> 0
A30: Service Charge | B30: 1 | D30: 0 | G30: =F30*E30 -> 0 | H30: 0 | J30: 0 | K30: 0 | L30: 0
A31: Service Charge Rate Rider(s) | B31: 1 | C31: 0 | D31: 0 | F31: 0 | G31: 0 | H31: 0 | J31: 0 | K31: 0 | L31: 0
A32: Distribution Volumetric Rate | B32: 10000 | D32: 0 | E32: =B32 -> 10000 | G32: 0 | H32: 0 | I32: =G32-D32 -> 0 | J32: 0 | K32: 0 | L32: 0
A33: Low Voltage Volumetric Rate | B33: 10000 | D33: 0 | G33: 0 | H33: 0 | J33: 0 | K33: 0 | L33: 0
A34: Distribution Volumetric Rate Rider(s) | B34: 10000 | C34: 0 | D34: 0 | F34: 1.2025 | G34: 0 | H34: 0 | J34: 0 | K34: =G34/G48 -> 0 | L34: =G34/G54 -> 0
A35: Total: Distribution | D35: =ROUND(SUM(D30:D34),2) -> 0 | G35: =ROUND(SUM(G30:G34),2) -> 0 | J35: 0 | K35: =G35/G48 -> 0 | L35: =G35/G54 -> 0
A36: Total: Retail Transmission
A37: Sub-Total: Delivery (Distribution and Retail Transmission) | D37: =SUM(D36,D35) -> 0 | G37: =SUM(G36,G35) -> 0 | J37: 0 | K37: =G37/G48 -> 0 | L37: =G37/G54 -> 0
A38: Wholesale Market Service Rate | B38: 3650000 | C38: 0 | D38: =B38*C38 -> 0 | F38: =C38 -> 0 | G38: =E38*F38 -> 0 | J38: 0 | K38: 0 | L38: 0
A39: Rural Rate Protection Charge | B39: 3650000 | C39: 0 | D39: =B39*C39 -> 0 | E39: 3650000 | F39: 0 | G39: =E39*F39 -> 0 | I39: =G39-D39 -> 0 | J39: 0 | K39: 0 | L39: 0
A40: Standard Supply Service – Administration Charge (if applicable) | B40: 1 | C40: 0 | D40: =B40*C40 -> 0 | E40: 1 | F40: 0 | G40: =E40*F40 -> 0 | I40: =G40-D40 -> 0 | J40: 0 | K40: 0 | L40: 0
A41: Sub-Total: Regulatory | D41: =SUM(D38:D40) -> 0 | G41: =SUM(G38:H40) -> 0 | I41: =G41-D41 -> 0 | J41: 0 | K41: 0 | L41: 0
A42: Debt Retirement Charge (DRC) | B42: 3650000 | C42: 0.007 | D42: =B42*C42 -> 25550 | E42: =B42 -> 3650000 | F42: =C42 -> 0.007 | G42: =E42*F42 -> 25550 | I42: =G42-D42 -> 0 | J42: =I42/D42 -> 0 | K42: =G42/G48 -> 0.08069673339 | L42: =G42/G54 -> 0.07567506422
A44: Total Bill on RPP (before taxes) | D44: 299300 | G44: 311325 | I44: =G44-D44 -> 12025 | J44: =I44/D44 -> 0.04017707985 | K44: =G44/G48 -> 0.9832841691
A45: HST | C45: 0.13 | D45: =C45*D44 -> 38909 | F45: =C45 -> 0.13 | G45: =F45*G44 -> 40472.25 | I45: =G45-D45 -> 1563.25 | J45: =I45/D45 -> 0.04017707985 | K45: =G45/G48 -> 0.127826942
A46: Total Bill (including HST) | D46: =D45+D44 -> 338209 | G46: =G45+G44 -> 351797.25 | I46: =G46-D46 -> 13588.25 | J46: =I46/D46 -> 0.04017707985 | K46: =G46/G48 -> 1.111111111
A47: Ontario Clean Energy Benefit (OCEB) | C47: -0.1 | D47: =-0.1*D46 -> -33820.9 | F47: =C47 -> -0.1 | G47: =-0.1*G46 -> -35179.725 | I47: =G47-D47 -> -1358.825 | J47: =I47/D47 -> 0.04017707985 | K47: =G47/G48 -> -0.1111111111
A48: Total Bill on RPP (including OCEB) | D48: =D46+D47 -> 304388.1 | G48: =G46+G47 -> 316617.525 | I48: =G48-D48 -> 12229.425 | J48: =I48/D48 -> 0.04017707985 | K48: =G48/G48 -> 1
A50: Total Bill on TOU (before taxes) | D50: 319959 | G50: 331984 | I50: =G50-D50 -> 12025 | J50: =I50/D50 -> 0.03758294031 | L50: =G50/G54 -> 0.9832841691
A51: HST | C51: 0.13 | D51: =C51*D50 -> 41594.67 | F51: =C51 -> 0.13 | G51: =F51*G50 -> 43157.92 | I51: =G51-D51 -> 1563.25 | J51: =I51/D51 -> 0.03758294031 | L51: =G51/G54 -> 0.127826942
A52: Total Bill (including HST) | D52: =D51+D50 -> 361553.67 | G52: =G51+G50 -> 375141.92 | I52: =G52-D52 -> 13588.25 | J52: =I52/D52 -> 0.03758294031 | L52: =G52/G54 -> 1.111111111
A53: Ontario Clean Energy Benefit (OCEB) | C53: -0.1 | D53: =-0.1*D52 -> -36155.367 | F53: =C53 -> -0.1 | G53: =-0.1*G52 -> -37514.192 | I53: =G53-D53 -> -1358.825 | J53: =I53/D53 -> 0.03758294031 | L53: =G53/G54 -> -0.1111111111
A54: Total Bill on TOU (including OCEB) | D54: =D52+D53 -> 325398.303 | G54: =G52+G53 -> 337627.728 | I54: =G54-D54 -> 12229.425 | J54: =I54/D54 -> 0.03758294031 | L54: =G54/G54 -> 1
A57: Applicants must provide bill impacts for residential at 800 kWh and GS<50kW at 2000 kWh. In addition, their filing should cover the range that is relevant to their service territory, class by class. A general guideline of consumption levels follows: Residential (kWh) - 100, 250, 500, 800, 1000, 1500, 2000 GS<50kW (kWh) - 1000, 2000, 5000, 10000, 15000 GS>50kW (kW) 100, 500, 1000 Large User - range appropriate for utility Street/Sentinel Lighting Classes and USL - 150 kWh and 1 kW, range appropriate for utility.

Sheet 28. Bill Impacts
S1: 1 | Z1: =MATCH(C14, '3. Rate Class Selection'!B19:B40,0) -> 1 | AA1: =VLOOKUP(C14, lists!AO:AP,2,0) -> kWh
A14: Rate Class | C14: RESIDENTIAL
A16: Loss Factor | E16: 1.0376
A18: Consumption | C18: kWh | E18: 800
A20: If Billed on a kW basis:
A21: Demand | C21: kW
E25: Current Board-Approved | I25: Proposed | M25: Impact
E26: Rate | F26: Volume | G26: Charge | I26: Rate | J26: Volume | K26: Charge | M26: $ Change | N26: % Change
E27: ($) | G27: ($) | I27: ($) | K27: ($)
A28: Monthly Service Charge | E28: 14.42 | F28: 1 | G28: =F28*E28 -> 14.42 | I28: 14.59 | J28: 1 | K28: =J28*I28 -> 14.59 | M28: =K28-G28 -> 0.17 | N28: =IF((G28)=0,"",(M28/G28)) -> 0.01178918169
A29: Distribution Volumetric Rate | E29: 0.0157 | F29: 800 | G29: =F29*E29 -> 12.56 | I29: 0.0159 | J29: =F29 -> 800 | K29: =J29*I29 -> 12.72 | M29: 0.16 | N29: 0.0127388535
A30: Fixed Rate Riders | E30: 0.77 | F30: 1 | G30: =F30*E30 -> 0.77 | I30: 1.03 | J30: 1 | K30: =J30*I30 -> 1.03 | M30: 0.26 | N30: 0.3376623377
A31: Volumetric Rate Riders | E31: -0.0001 | F31: 800 | G31: =F31*E31 -> -0.08 | I31: -0.0001 | J31: =F31 -> 800 | K31: =J31*I31 -> -0.08 | M31: 0 | N31: 0
A32: Sub-Total A (excluding pass through) | G32: =SUM(G28:G31) -> 27.67 | K32: =SUM(K28:K31) -> 28.26 | M32: 0.59 | N32: 0.0213227322
A33: Line Losses on Cost of Power | E33: =E45*0.64+E46*0.18+E47*0.18 -> 0.08392 | F33: =E18*(E16-1) -> 30.08 | G33: =E33*F33 -> 2.5243136 | I33: =I45*0.64+I46*0.18+I47*0.18 -> 0.08392 | J33: =F33 -> 30.08 | K33: =I33*J33 -> 2.5243136 | M33: 0 | N33: 0
A34: Total Deferral/Variance Account Rate Riders | E34: -0.0005 | F34: 800 | G34: =F34*E34 -> -0.4 | I34: -0.0005 | J34: =F34 -> 800 | K34: =J34*I34 -> -0.4 | M34: 0 | N34: 0
A35: Low Voltage Service Charge | E35: 0.0004 | F35: 800 | G35: =F35*E35 -> 0.32 | I35: 0.0004 | J35: =F35 -> 800 | K35: =J35*I35 -> 0.32 | M35: 0 | N35: 0
A36: Smart Meter Entity Charge | E36: 0.79 | F36: 1 | G36: =F36*E36 -> 0.79 | I36: 0.79 | J36: =F36 -> 1 | K36: =J36*I36 -> 0.79 | M36: 0 | N36: 0
A37: Sub-Total B - Distribution (includes Sub-Total A) | G37: =SUM(G32:G36) -> 30.9043136 | K37: =SUM(K32:K36) -> 31.4943136 | M37: =K37-G37 -> 0.59 | N37: =IF((G37)=0,"",(M37/G37)) -> 0.01909118603
A38: RTSR - Network | E38: 0.0079 | F38: 830.08 | G38: =F38*E38 -> 6.557632 | I38: 0.0083 | J38: =F38 -> 830.08 | K38: =J38*I38 -> 6.889664 | M38: 0.332032 | N38: 0.05063291139
A39: RTSR - Connection and/or Line and Transformation Connection | E39: 0.0053 | F39: 830.08 | G39: =F39*E39 -> 4.399424 | I39: 0.0056 | J39: =F39 -> 830.08 | K39: =J39*I39 -> 4.648448 | M39: 0.249024 | N39: 0.05660377358
A40: Sub-Total C - Delivery (including Sub-Total B) | G40: =SUM(G37:G39) -> 41.8613696 | K40: =SUM(K37:K39) -> 43.0324256 | M40: 1.171056 | N40: 0.02797462222
A41: Wholesale Market Service Charge (WMSC) | E41: 0.0044 | F41: =E18*E16 -> 830.08 | G41: =F41*E41 -> 3.652352 | I41: 0.0044 | J41: =E18*E16 -> 830.08 | K41: =J41*I41 -> 3.652352 | M41: 0 | N41: 0
A42: Rural and Remote Rate Protection (RRRP) | E42: 0.0013 | F42: =E18*E16 -> 830.08 | G42: 1.079104 | I42: 0.0013 | J42: =E18*E16 -> 830.08 | K42: 1.079104 | M42: 0 | N42: 0
A43: Standard Supply Service Charge | E43: 0.25 | F43: 1 | G43: 0.25 | I43: 0.25 | J43: 1 | K43: 0.25 | M43: 0 | N43: 0
A44: Debt Retirement Charge (DRC) | E44: 0.007 | F44: =E18 -> 800 | G44: 5.6 | I44: 0.007 | J44: =E18 -> 800 | K44: 5.6 | M44: 0 | N44: 0
A45: TOU - Off Peak | E45: 0.067 | F45: 512 | G45: 34.304 | I45: 0.067 | J45: =F45 -> 512 | K45: 34.304 | M45: 0 | N45: 0
A46: TOU - Mid Peak | E46: 0.104 | F46: 144 | G46: 14.976 | I46: 0.104 | J46: =F46 -> 144 | K46: 14.976 | M46: 0 | N46: 0
A47: TOU - On Peak | E47: 0.124 | F47: 144 | G47: 17.856 | I47: 0.124 | J47: =F47 -> 144 | K47: 17.856 | M47: 0 | N47: 0
A49: Total Bill on TOU (before Taxes) | G49: =SUM(G40:G44,G45:G47) -> 119.5788256 | K49: =SUM(K40:K44,K45:K47) -> 120.7498816 | M49: =K49-G49 -> 1.171056 | N49: =IF((G49)=0,"",(M49/G49)) -> 0.009793171944
A50: HST | E50: 0.13 | G50: =G49*E50 -> 15.54524733 | I50: 0.13 | K50: =K49*I50 -> 15.69748461 | M50: 0.15223728 | N50: 0.009793171944
A51: Total Bill (including HST) | G51: =G49+G50 -> 135.1240729 | K51: =K49+K50 -> 136.4473662 | M51: 1.32329328 | N51: 0.009793171944
A52: Ontario Clean Energy Benefit 1 | G52: =ROUND(-G51*10%,2) -> -13.51 | K52: =ROUND(-K51*10%,2) -> -13.64 | M52: -0.13 | N52: 0.00962250185
A53: Total Bill on TOU (including OCEB) | G53: =G51+G52 -> 121.6140729 | K53: =K51+K52 -> 122.8073662 | M53: 1.19329328 | N53: 0.009812131534
A58: Note: For distributors who have a majority of customers on Tiered pricing, please provide a separate bill impact for such customers.

Sheet lists (hidden)
A1: DISTRIBUTED GENERATION [DGEN] | B1: Embedded Distributor | C1: =COUNTA(B1:B17) -> 4 | I1: A Standby Service Charge will be applied for a month where standby power is not provided. The applicable rate is the approved Distribution Volumetric Rate of the applicable service class and is applied to gross metered demand or contracted amount, whichever is greater. A monthly administration charge of $200, for simple metering arrangements, or $500, for complex metering arrangements, will also be applied. | L1: Loss Factors | N1: Units | O1: Units1 | P1: Units2 | Z1: Account History | AA1: Account set up charge/change of occupancy charge (plus credit agency costs if applicable) | AB1: Total Loss Factor – Embedded Distributor – Hydro One Networks Inc. | AL1: Algoma Power Inc. | AM1: Algoma Power Inc. | AO1: DISTRIBUTED GENERATION [DGEN] | AP1: kW | AT1: Sub-Total: Delivery (Distribution and Retail Transmission)
A2: EMBEDDED DISTRIBUTOR | B2: General Service 3,000 to 4,999 kW | I2: Distribution Volumetric Rate | L2: Total Loss Factor – Primary Metered Customer | N2: $ | O2: $/kWh | P2: $ | Z2: Account set up charge/change of occupancy charge | AA2: Administrative Billing Charge | AB2: Total Loss Factor – Primary Metered Customer | AL2: Atikokan Hydro Inc. | AM2: Atikokan Hydro Inc. | AO2: EMBEDDED DISTRIBUTOR | AP2: kW | AT2: Wholesale Market Service Rate | AW2: =AU2*AV2 -> 0 | AX2: =AU2 -> 0 | AY2: 0 | AZ2: =AX2*AY2 -> 0 | BB2: =AZ2-AW2 -> 0 | BC2: =BB2/AW2 -> 
A3: EMBEDDED DISTRIBUTOR | B3: General Service 1,000 to 4,999 kW | I3: Distribution Volumetric Rate - $/kW of contracted amount | L3: Total Loss Factor – Primary Metered Customer < 5,000 kW | N3: $/kWh | O3: $/kW | P3: % | W3: MSC | Z3: Account set up charge/change of occupancy charge (plus credit agency costs if applicable – Residential) | AA3: Bell Canada Pole Rentals | AB3: Total Loss Factor – Primary Metered Customer < 5,000 kW | AL3: Bluewater Power Distribution Corporation | AM3: Bluewater Power Distribution Corporation | AO3: EMBEDDED DISTRIBUTOR | AP3: kW | AT3: Rural or Remote Electricity Rate Protection Charge (RRRP) | AW3: =AU3*AV3 -> 0 | AX3: 0 | AY3: 0 | AZ3: =AX3*AY3 -> 0 | BB3: =AZ3-AW3 -> 0 | BC3: =BB3/AW3 -> 
A4: FARMS - SINGLE PHASE ENERGY-BILLED [F1] | B4: General Service Equal To Or Greater Than 1,500 kW - Interval Metered | I4: Distribution Wheeling Service Rate | L4: Total Loss Factor – Primary Metered Customer > 5,000 kW | N4: $/kW | O4: $/kVA | W4: SM_Rate_Adder | Z4: Account set up charge/change of occupancy charge (plus credit agency costs if applicable) | AA4: Clearance Pole Attachment charge $/pole/year | AB4: Total Loss Factor – Primary Metered Customer > 5,000 kW | AL4: Brant County Power Inc. | AM4: Brant County Power Inc. | AO4: FARMS - SINGLE PHASE ENERGY-BILLED [F1] | AP4: kWh | AT4: Standard Supply Service – Administration Charge (if applicable) | AW4: =AU4*AV4 -> 0 | AX4: 0 | AY4: 0 | AZ4: =AX4*AY4 -> 0 | BB4: =AZ4-AW4 -> 0 | BC4: =BB4/AW4 -> 
A5: FARMS - THREE PHASE ENERGY-BILLED [F3] | I5: Electricity Rate | L5: Total Loss Factor – Secondary Metered Customer | N5: $/kVA | W5: MSC_Rate_Rider_ | Z5: Arrears certificate | AA5: Collection of account charge – no disconnection | AB5: Total Loss Factor – Secondary Metered Customer | AL5: Brantford Power Inc. | AM5: Brantford Power Inc. | AO5: FARMS - THREE PHASE ENERGY-BILLED [F3] | AP5: kWh | AT5: Sub-Total: Regulatory | AW5: =SUM(AW2:AW4) -> 0 | AZ5: =SUM(AZ2:BA4) -> 0 | BB5: =AZ5-AW5 -> 0 | BC5: =BB5/AW5 -> 
A6: GENERAL SERVICE - COMMERCIAL | I6: Electricity Rate - All Additional kWh | L6: Total Loss Factor – Secondary Metered Customer < 5,000 kW | W6: VC | Z6: Arrears certificate (credit reference) | AA6: Collection of account charge – no disconnection – after regular hours | AB6: Total Loss Factor – Secondary Metered Customer < 5,000 kW | AL6: Burlington Hydro Inc. | AM6: Burlington Hydro Inc. | AO6: GENERAL SERVICE - COMMERCIAL | AP6: kW | AT6: Debt Retirement Charge (DRC) | AW6: =AU6*AV6 -> 0 | AX6: =AU6 -> 0 | AY6: =AV6 -> 0 | AZ6: =AX6*AY6 -> 0 | BB6: =AZ6-AW6 -> 0 | BC6: =BB6/AW6 -> 
A7: GENERAL SERVICE - INSTITUTIONAL | I7: Electricity Rate - First 250 kWh | AL7: Cambridge and North Dumfries Hydro Inc. | AM7: Cambridge and North Dumfries Hydro Inc. | AO7: GENERAL SERVICE - INSTITUTIONAL | AP7: kW
A8: GENERAL SERVICE 1,000 TO 2,999 KW | I8: Electricity Rate -All Additional kWh | L8: Total Loss Factor – Secondary Metered Customer > 5,000 kW | W8: VC_Rate_Rider_ | Z8: Charge to certify cheque | AA8: Collection of account charge – no disconnection - during regular business hours | AB8: Total Loss Factor – Secondary Metered Customer > 5,000 kW | AL8: Canadian Niagara Power Inc. | AM8: Canadian Niagara Power Inc. | AO8: GENERAL SERVICE 1,000 TO 2,999 KW | AP8: kW | AT8: Total Bill on RPP (before taxes) | BB8: =AZ8-AW8 -> 0
A9: GENERAL SERVICE 1,000 TO 4,999 KW | I9: Electricity Rate First 1,000 kWh | L9: Distribution Loss Factor - Secondary Metered Customer < 5,000 kW | W9: VC_GA_Rate_Rider_kW_ | Z9: Collection of Account Charge – No Disconnection | AA9: Collection of account charge – no disconnection – during regular hours | AL9: Centre Wellington Hydro Ltd. | AM9: Centre Wellington Hydro Ltd. | AO9: GENERAL SERVICE 1,000 TO 4,999 KW | AP9: kW | AT9: HST | AW9: =AV9*AW8 -> 0 | AY9: =AV9 -> 0 | AZ9: =AY9*AZ8 -> 0 | BB9: =AZ9-AW9 -> 0 | BC9: =BB9/AW9 -> 
A10: GENERAL SERVICE 1,000 TO 4,999 KW - INTERVAL METERS | I10: Electricity Rate First 25,000 kWh | L10: Distribution Loss Factor - Secondary Metered Customer > 5,000 kW | W10: VC_LV_Rate | Z10: Credit Card Convenience Charge | AA10: Collection/Disconnection/Load Limiter/Reconnection – if in Community | AL10: Chapleau Public Utilities Corporation | AM10: Chapleau Public Utilities Corporation | AO10: GENERAL SERVICE 1,000 TO 4,999 KW - INTERVAL METERS | AP10: kW | AT10: Total Bill (including HST) | AW10: =AW9+AW8 -> 0 | AZ10: =AZ9+AZ8 -> 0 | BB10: =AZ10-AW10 -> 0 | BC10: =BB10/AW10 -> 
A11: GENERAL SERVICE 1,000 TO 4,999 KW (CO-GENERATION) | I11: Electricity Rate First 6,000 kWh | L11: Distribution Loss Factor - Primary Metered Customer < 5,000 kW | W11: RTSR_Network | Z11: Credit check (plus credit agency costs) | AA11: Credit Card Convenience Charge | AL11: Collus PowerStream Corporation | AM11: Collus PowerStream Corporation | AO11: GENERAL SERVICE 1,000 TO 4,999 KW (CO-GENERATION) | AP11: kW | AT11: Ontario Clean Energy Benefit (OCEB) | AW11: =-0.1*AW10 -> 0 | AY11: =AV11 -> 0 | AZ11: =-0.1*AZ10 -> 0 | BB11: =AZ11-AW11 -> 0 | BC11: =BB11/AW11 -> 
A12: GENERAL SERVICE 1,500 TO 4,999 KW | I12: Electricity Rate Next 1,500 kWh | L12: Distribution Loss Factor - Primary Metered Customer > 5,000 kW | W12: RTSR_Connection | Z12: Credit reference Letter | AA12: Disconnect/Reconnect at meter – after regular hours | AL12: Cooperative Hydro Embrun Inc. | AM12: Cooperative Hydro Embrun Inc. | AO12: GENERAL SERVICE 1,500 TO 4,999 KW | AP12: kW | AT12: Total Bill on RPP (including OCEB) | AW12: =AW10+AW11 -> 0 | AZ12: =AZ10+AZ11 -> 0 | BB12: =AZ12-AW12 -> 0 | BC12: =BB12/AW12 -> 
A13: GENERAL SERVICE 2,500 TO 4,999 KW | I13: General Service 1,500 to 4,999 kW customer | AL13: E.L.K. Energy Inc. | AM13: E.L.K. Energy Inc. | AO13: GENERAL SERVICE 2,500 TO 4,999 KW | AP13: kW
A14: GENERAL SERVICE 3,000 TO 4,999 KW | I14: General Service 50 to 1,499 kW customer | L14: Total Loss Factor - Embedded Distributor | W14: RTSR_Network_Interval | Z14: Credit reference/credit check (plus credit agency costs – General Service) | AA14: Disconnect/Reconnect at meter – during regular hours | AL14: Enersource Hydro Mississauga Inc. | AM14: Enersource Hydro Mississauga Inc. | AO14: GENERAL SERVICE 3,000 TO 4,999 KW | AP14: kW | AT14: Total Bill on TOU (before taxes) | BB14: =AZ14-AW14 -> 0
A15: GENERAL SERVICE 3,000 TO 4,999 KW - INTERMEDIATE USE | I15: General Service Large Use customer | L15: Total Loss Factor – Embedded Distributor – Hydro One Networks Inc. | W15: RTSR_Connection_Interval | Z15: Credit Reference/credit check (plus credit agency costs) | AA15: Disconnect/Reconnect at pole – after regular hours | AL15: Entegrus Powerlines Inc. | AM15: Entegrus Powerlines Inc. | AO15: GENERAL SERVICE 3,000 TO 4,999 KW - INTERMEDIATE USE | AP15: kW | AT15: HST | AW15: =AV15*AW14 -> 0 | AY15: =AV15 -> 0 | AZ15: =AY15*AZ14 -> 0 | BB15: =AZ15-AW15 -> 0 | BC15: =BB15/AW15 -> 
A16: GENERAL SERVICE 3,000 TO 4,999 KW - INTERVAL METERED | I16: Green Energy Act Initiatives Funding Adder - effective until the date of the next cost of service-based rate order | W16: RTSR_Network_Interval_GR1000kW | Z16: Dispute Test – Commercial self contained -- MC | AA16: Disconnect/Reconnect at pole – during regular hours | AL16: Entegrus Powerlines Inc. - Dutton Service Area | AM16: Entegrus Powerlines Inc. - Dutton Service Area | AO16: GENERAL SERVICE 3,000 TO 4,999 KW - INTERVAL METERED | AP16: kW | AT16: Total Bill (including HST) | AW16: =AW15+AW14 -> 0 | AZ16: =AZ15+AZ14 -> 0 | BB16: =AZ16-AW16 -> 0 | BC16: =BB16/AW16 -> 
A17: GENERAL SERVICE 3,000 TO 4,999 KW - TIME OF USE | I17: Green Energy Act Plan Funding Adder | W17: RTSR_Connection_Interval_GR1000kW | Z17: Dispute Test – Commercial TT -- MC | AA17: Disconnect/Reconnect Charge – At Meter – After Hours | AL17: Entegrus Powerlines Inc. - former Chatham-Kent Hydro Service Area | AM17: Entegrus Powerlines Inc. - former Chatham-Kent Hydro Service Area | AO17: GENERAL SERVICE 3,000 TO 4,999 KW - TIME OF USE | AP17: kW | AT17: Ontario Clean Energy Benefit (OCEB) | AW17: =-0.1*AW16 -> 0 | AY17: =AV17 -> 0 | AZ17: =-0.1*AZ16 -> 0 | BB17: =AZ17-AW17 -> 0 | BC17: =BB17/AW17 -> 
A18: GENERAL SERVICE 50 TO 1,000 KW | I18: Green Energy Act Plan Funding Adder - effective April 1, 2013 until March 31, 2014 | W18: RTSR_Line_Connection | Z18: Dispute Test – Residential | AA18: Disconnect/Reconnect Charge – At Meter – During Regular Hours | AL18: Entegrus Powerlines Inc. - Newbury Service Area | AM18: Entegrus Powerlines Inc. - Newbury Service Area | AO18: GENERAL SERVICE 50 TO 1,000 KW | AP18: kW | AT18: Total Bill on TOU (including OCEB) | AW18: =AW16+AW17 -> 0 | AZ18: =AZ16+AZ17 -> 0 | BB18: =AZ18-AW18 -> 0 | BC18: =BB18/AW18 -> 
A19: GENERAL SERVICE 50 TO 1,000 KW - INTERVAL METERS | I19: Green Energy Act Plan Funding Adder - effective April 1, 2014 until March 31, 2015 | W19: RTSR_Transformer_Connection | Z19: Duplicate Invoices for previous billing | AA19: Disconnect/Reconnect Charge – At Pole – After Hours | AL19: Entegrus Powerlines Inc. - Strathroy, Mount Brydges and Parkhill Service Areas | AM19: Entegrus Powerlines Inc. - Strathroy, Mount Brydges and Parkhill Service Areas | AO19: GENERAL SERVICE 50 TO 1,000 KW - INTERVAL METERS | AP19: kW
A20: GENERAL SERVICE 50 TO 1,000 KW - NON INTERVAL METERS | I20: ICM Rate Rider (2014) - in effect until the effective date of the next cost of service rates | W20: WMSR | Z20: Easement Letter | AA20: Disconnect/Reconnect Charge – At Pole – During Regular Hours | AL20: ENWIN Utilities Ltd. | AM20: ENWIN Utilities Ltd. | AO20: GENERAL SERVICE 50 TO 1,000 KW - NON INTERVAL METERS | AP20: kW
A21: GENERAL SERVICE 50 TO 1,499 KW | I21: Low Voltage Service Charge | W21: RRRP | Z21: Income Tax Letter | AA21: Disconnect/Reconnect Charges for non payment of account - At Meter After Hours | AL21: Erie Thames Powerlines Corporation | AM21: Erie Thames Powerlines Corporation | AO21: GENERAL SERVICE 50 TO 1,499 KW | AP21: kW
A22: GENERAL SERVICE 50 TO 1,499 KW - INTERVAL METERED | I22: Low Voltage Service Rate | W22: SPC | Z22: Interval Meter Interrogation | AA22: Disconnect/Reconnect charges for non payment of account – at meter after regular hours | AL22: Espanola Regional Hydro Distribution Corporation | AM22: Espanola Regional Hydro Distribution Corporation | AO22: GENERAL SERVICE 50 TO 1,499 KW - INTERVAL METERED | AP22: kW
A23: GENERAL SERVICE 50 TO 2,499 KW | I23: Low Voltage Volumetric Rate | W23: DRC | Z23: Interval meter request change | AA23: Disconnect/Reconnect Charges for non payment of account - At Meter During Regular Hours | AL23: Essex Powerlines Corporation | AM23: Essex Powerlines Corporation | AO23: GENERAL SERVICE 50 TO 2,499 KW | AP23: kW
A24: GENERAL SERVICE 50 TO 2,999 KW | I24: LRAM Rate Rider - Effective Until April 30, 2015 | W24: SSS | Z24: Legal letter | AA24: Disconnect/Reconnect charges for non payment of account – at meter during regular hours | AL24: Festival Hydro Inc. | AM24: Festival Hydro Inc. | AO24: GENERAL SERVICE 50 TO 2,999 KW | AP24: kW
A25: GENERAL SERVICE 50 TO 2,999 KW - INTERVAL METERED | I25: Minimum Distribution Charge - per KW of maximum billing demand in the previous 11 months | W25: SFLF | Z25: Legal letter charge | AA25: Disconnect/Reconnect charges for non payment of account – at pole after regular hours | AL25: Fort Frances Power Corporation | AM25: Fort Frances Power Corporation | AO25: GENERAL SERVICE 50 TO 2,999 KW - INTERVAL METERED | AP25: kW
A26: GENERAL SERVICE 50 TO 2,999 KW - TIME OF USE | B26: January | I26: Monthly Distribution Wheeling Service Rate - Dedicated LV Line | W26: DLF_Secondary_LT_5000kW | Z26: Meter dispute charge plus Measurement Canada fees (if meter found correct) | AA26: Disconnect/Reconnect charges for non payment of account – at pole during regular hours | AL26: Greater Sudbury Hydro Inc. | AM26: Greater Sudbury Hydro Inc. | AO26: GENERAL SERVICE 50 TO 2,999 KW - TIME OF USE | AP26: kW
A27: GENERAL SERVICE 50 TO 4,999 KW | B27: February | I27: Monthly Distribution Wheeling Service Rate - Hydro One Networks | W27: DLF_Secondary_GT_5000kW | Z27: Notification charge | AA27: Disconnect/Reconnection for >300 volts - after regular hours | AL27: Grimsby Power Inc. | AM27: Grimsby Power Inc. | AO27: GENERAL SERVICE 50 TO 4,999 KW | AP27: kW
A28: GENERAL SERVICE 50 TO 4,999 KW - INTERVAL METERED | B28: March | I28: Monthly Distribution Wheeling Service Rate - Shared LV Line | W28: DLF_Primary_LT_5000kW | Z28: Pulling Post Dated Cheques | AA28: Disconnect/Reconnection for >300 volts - during regular hours | AL28: Guelph Hydro Electric Systems Inc. | AM28: Guelph Hydro Electric Systems Inc. | AO28: GENERAL SERVICE 50 TO 4,999 KW - INTERVAL METERED | AP28: kW
A29: GENERAL SERVICE 50 TO 4,999 KW - TIME OF USE | B29: April | I29: Monthly Distribution Wheeling Service Rate - Waterloo North Hydro | W29: DLF_Primary_GT_5000kW | Z29: Request for other billing information | AA29: Disposal of Concrete Poles | AL29: Haldimand County Hydro Inc. | AM29: Haldimand County Hydro Inc. | AO29: GENERAL SERVICE 50 TO 4,999 KW - TIME OF USE | AP29: kW
A30: GENERAL SERVICE 50 TO 4,999 KW (COGENERATION) | B30: May | I30: Rate Rider for Application of Tax Change - effective until April 30, 2015 | W30: TLF_Secondary_LT_5000kW | Z30: Returned cheque (plus bank charges) | AA30: Dispute Test – Commercial TT -- MC | AL30: Halton Hills Hydro Inc. | AM30: Halton Hills Hydro Inc. | AO30: GENERAL SERVICE 50 TO 4,999 KW (COGENERATION) | AP30: kW
A31: GENERAL SERVICE 50 TO 4,999 KW (FORMERLY TIME OF USE) | B31: June | I31: Rate Rider for Application of Tax Change - effective until December 31, 2014 | W31: TLF_Secondary_GT_5000kW | Z31: Returned cheque charge (plus bank charges) | AA31: Install/Remove load control device – after regular hours | AL31: Hearst Power Distribution Company Limited | AM31: Hearst Power Distribution Company Limited | AO31: GENERAL SERVICE 50 TO 4,999 KW (FORMERLY TIME OF USE) | AP31: kW
A32: GENERAL SERVICE 50 TO 499 KW | B32: July | I32: Rate Rider for Application of Tax Change (2014) - effective until April 30, 2015 | W32: TLF_Primary_LT_5000kW | Z32: Special Billing Service (aggregation) | AA32: Install/Remove load control device – during regular hours | AL32: Horizon Utilities Corporation | AM32: Horizon Utilities Corporation | AO32: GENERAL SERVICE 50 TO 499 KW | AP32: kW
A33: GENERAL SERVICE 50 TO 699 KW | B33: August | I33: Rate Rider for Application of Tax Change (per connection) - effective until April 30, 2015 | W33: TLF_Primary_GT_5000kW | Z33: Special Billing Service (sub-metering charge per meter) | AA33: Interval Meter Interrogation | AL33: Hydro 2000 Inc. | AM33: Hydro 2000 Inc. | AO33: GENERAL SERVICE 50 TO 699 KW | AP33: kW
A34: GENERAL SERVICE 50 TO 999 KW | B34: September | I34: Rate Rider for CGAAP Accounting Changes (2013) - effective until April 30, 2017 | W34: TLF_EmbeddedDistributor | Z34: Special meter reads | AA34: Interval Meter Load Management Tool Charge $/month | AL34: Hydro Hawkesbury Inc. | AM34: Hydro Hawkesbury Inc. | AO34: GENERAL SERVICE 50 TO 999 KW | AP34: kW
A35: GENERAL SERVICE 50 TO 999 KW - INTERVAL METERED | B35: October | I35: Rate Rider for Deferral/Variance Account (2012) - effective unitl April 30, 2016 | Z35: Statement of Account | AA35: Interval meter request change | AL35: Hydro One Brampton Networks Inc. | AM35: Hydro One Brampton Networks Inc. | AO35: GENERAL SERVICE 50 TO 999 KW - INTERVAL METERED | AP35: kW
A36: GENERAL SERVICE 500 TO 4,999 KW | B36: November | I36: Rate Rider for Deferral/Variance Account Disposition – effective until April 30, 2015 | Z36: Unprocessed Payment Charge (plus bank charges) | AA36: Late Payment – per annum | AL36: Hydro One Networks Inc. | AM36: Hydro One Networks Inc. | AO36: GENERAL SERVICE 500 TO 4,999 KW | AP36: kW
A37: GENERAL SERVICE 700 TO 4,999 KW | B37: December | I37: Rate Rider for Deferral/Variance Account Disposition (2012) - effective until April 30, 2016 | AA37: Late Payment – per month | AL37: Hydro Ottawa Limited | AM37: Hydro Ottawa Limited | AO37: GENERAL SERVICE 700 TO 4,999 KW | AP37: kW
A38: GENERAL SERVICE DEMAND BILLED (50 KW AND ABOVE) [GSD] | I38: Rate Rider for Deferral/Variance Account Disposition (2013) - effective until April 30, 2014 | AA38: Layout fees | AL38: Innisfil Hydro Distribution Systems Limited | AM38: Innisfil Hydro Distribution Systems Limited | AO38: GENERAL SERVICE DEMAND BILLED (50 KW AND ABOVE) [GSD] | AP38: kW
A39: GENERAL SERVICE ENERGY BILLED (LESS THAN 50 KW) [GSE-METERED] | I39: Rate Rider for Deferral/Variance Account Disposition (2014) - effective until April 28, 2016 | AA39: Meter dispute charge plus Measurement Canada fees (if meter found correct) | AL39: Kenora Hydro Electric Corporation Ltd. | AM39: Kenora Hydro Electric Corporation Ltd. | AO39: GENERAL SERVICE ENERGY BILLED (LESS THAN 50 KW) [GSE-METERED] | AP39: kWh
A40: GENERAL SERVICE ENERGY BILLED (LESS THAN TO 50 KW) [GSE-UNMETERED] | I40: Rate Rider for Deferral/Variance Account Disposition (2014) - effective until April 30, 2015 | AA40: Meter Interrogation Charge | AL40: Kingston Hydro Corporation | AM40: Kingston Hydro Corporation | AO40: GENERAL SERVICE ENERGY BILLED (LESS THAN TO 50 KW) [GSE-UNMETERED] | AP40: kWh
A41: GENERAL SERVICE EQUAL TO OR GREATER THAN 1,500 KW | I41: Rate Rider for Deferral/Variance Account Disposition (2014) - effective until December 31, 2014 | AA41: Missed Service Appointment | AL41: Kitchener-Wilmot Hydro Inc. | AM41: Kitchener-Wilmot Hydro Inc. | AO41: GENERAL SERVICE EQUAL TO OR GREATER THAN 1,500 KW | AP41: kW
A42: GENERAL SERVICE EQUAL TO OR GREATER THAN 1,500 KW - INTERVAL METERED | I42: Rate Rider for Deferral/Variance Account Disposition (2014) - effective until December 31, 2015 | AA42: Norfolk Pole Rentals – Billed | AL42: Lakefront Utilities Inc. | AM42: Lakefront Utilities Inc. | AO42: GENERAL SERVICE EQUAL TO OR GREATER THAN 1,500 KW - INTERVAL METERED | AP42: kW
A43: GENERAL SERVICE GREATER THAN 1,000 KW | I43: Rate Rider for Deferral/Variance Account Dispositon (2012) - effective until April 30, 2016 | AA43: Optional Interval/TOU Meter charge $/month | AL43: Lakeland Power Distribution Ltd. | AM43: Lakeland Power Distribution Ltd. | AO43: GENERAL SERVICE GREATER THAN 1,000 KW | AP43: kW
A44: GENERAL SERVICE GREATER THAN 50 kW - WMP | I44: Rate Rider for Disposition of Accounting Changes Under CGAAP Account 1576 - effective until April 30, 2016 | AA44: Overtime Locate | AL44: London Hydro Inc. | AM44: London Hydro Inc. | AO44: GENERAL SERVICE GREATER THAN 50 kW - WMP | AP44: kW
A45: GENERAL SERVICE INTERMEDIATE 1,000 TO 4,999 KW | I45: Rate Rider for Disposition of Deferral/Variance Accounts (2010) - effective until December 31, 2014 | AA45: Owner Requested Disconnection/Reconnection – after regular hours | AL45: Midland Power Utility Corporation | AM45: Midland Power Utility Corporation | AO45: GENERAL SERVICE INTERMEDIATE 1,000 TO 4,999 KW | AP45: kW
A46: GENERAL SERVICE INTERMEDIATE RATE CLASS 1,000 TO 4,999 KW (FORMERLY GENERAL SERVICE > 50 KW CUSTOMERS) | I46: Rate Rider for Disposition of Deferral/Variance Accounts (2011) - effective until April 30, 2015 | AA46: Owner Requested Disconnection/Reconnection – during regular hours | AL46: Milton Hydro Distribution Inc. | AM46: Milton Hydro Distribution Inc. | AO46: GENERAL SERVICE INTERMEDIATE RATE CLASS 1,000 TO 4,999 KW (FORMERLY GENERAL SERVICE > 50 KW CUSTOMERS) | AP46: kW
A47: GENERAL SERVICE INTERMEDIATE RATE CLASS 1,000 TO 4,999 KW (FORMERLY LARGE USE CUSTOMERS) | I47: Rate Rider for Disposition of Deferral/Variance Accounts (2011) - effective until April 30, 2016 | AA47: Returned cheque (plus bank charges) | AL47: Newmarket - Tay Power Distribution Ltd. | AM47: Newmarket - Tay Power Distribution Ltd. | AO47: GENERAL SERVICE INTERMEDIATE RATE CLASS 1,000 TO 4,999 KW (FORMERLY LARGE USE CUSTOMERS) | AP47: kW
A48: GENERAL SERVICE LESS THAN 50 KW | I48: Rate Rider for Disposition of Deferral/Variance Accounts (2012) - effective until April 30, 2014 | AA48: Rural system expansion / line connection fee | AL48: Niagara Peninsula Energy Inc. | AM48: Niagara Peninsula Energy Inc. | AO48: GENERAL SERVICE LESS THAN 50 KW | AP48: kWh
A49: GENERAL SERVICE LESS THAN 50 KW - SINGLE PHASE ENERGY-BILLED [G1] | I49: Rate Rider for Disposition of Deferral/Variance Accounts (2012) - effective until April 30, 2015 | AA49: Same Day Open Trench | AL49: Niagara-on-the-Lake Hydro Inc. | AM49: Niagara-on-the-Lake Hydro Inc. | AO49: GENERAL SERVICE LESS THAN 50 KW - SINGLE PHASE ENERGY-BILLED [G1] | AP49: kWh
A50: GENERAL SERVICE LESS THAN 50 KW - THREE PHASE ENERGY-BILLED [G3] | I50: Rate Rider for Disposition of Deferral/Variance Accounts (2012) - effective until April 30, 2016 | AA50: Scheduled Day Open Trench | AL50: Norfolk Power Distribution Inc. | AM50: Norfolk Power Distribution Inc. | AO50: GENERAL SERVICE LESS THAN 50 KW - THREE PHASE ENERGY-BILLED [G3] | AP50: kWh
A51: GENERAL SERVICE LESS THAN 50 KW - TRANSMISSION CLASS ENERGY-BILLED [T] | I51: Rate Rider for Disposition of Deferral/Variance Accounts (2012) - effective until August 31, 2014 | AA51: Service call – after regular hours | AL51: North Bay Hydro Distribution Limited | AM51: North Bay Hydro Distribution Limited | AO51: GENERAL SERVICE LESS THAN 50 KW - TRANSMISSION CLASS ENERGY-BILLED [T] | AP51: kWh
A52: GENERAL SERVICE LESS THAN 50 KW - URBAN ENERGY-BILLED [UG] | I52: Rate Rider for Disposition of Deferral/Variance Accounts (2012) - effective until December 31, 2015 | AA52: Service call – customer owned equipment | AL52: Northern Ontario Wires Inc. | AM52: Northern Ontario Wires Inc. | AO52: GENERAL SERVICE LESS THAN 50 KW - URBAN ENERGY-BILLED [UG] | AP52: kWh
A53: GENERAL SERVICE SINGLE PHASE - G1 | I53: Rate Rider for Disposition of Deferral/Variance Accounts (2012) - effective until December 31, 2016 Applicable only in the former service area of Clinton Power | AA53: Service Call – Customer-owned Equipment – After Regular Hours | AL53: Oakville Hydro Electricity Distribution Inc. | AM53: Oakville Hydro Electricity Distribution Inc. | AO53: GENERAL SERVICE SINGLE PHASE - G1 | AP53: kW
A54: GENERAL SERVICE THREE PHASE - G3 | I54: Rate Rider for Disposition of Deferral/Variance Accounts (2012) – effective until December 31, 2016 Applicable only in the former service area of Clinton Power | AA54: Service Call – Customer-owned Equipment – During Regular Hours | AL54: Orangeville Hydro Limited | AM54: Orangeville Hydro Limited | AO54: GENERAL SERVICE THREE PHASE - G3 | AP54: kW
A55: INTERMEDIATE USERS | I55: Rate Rider for Disposition of Deferral/Variance Accounts (2012) - effective until January 31, 2014 | AA55: Service Charge for onsite interrogation of interval meter due to customer phone line failure - required weekly until line repaired $ 6 | AL55: Orillia Power Distribution Corporation | AM55: Orillia Power Distribution Corporation | AO55: INTERMEDIATE USERS | AP55: kW
A56: INTERMEDIATE WITH SELF GENERATION | I56: Rate Rider for Disposition of Deferral/Variance Accounts (2012) - effective until June 30, 2014 | AA56: Service Layout - Commercial | AL56: Oshawa PUC Networks Inc. | AM56: Oshawa PUC Networks Inc. | AO56: INTERMEDIATE WITH SELF GENERATION | AP56: kW
A57: LARGE USE | I57: Rate Rider for Disposition of Deferral/Variance Accounts (2013) - Applicable only to Wholesale Market Participants - effective until April 30, 2015 | AA57: Service Layout - ResidentiaI | AL57: Ottawa River Power Corporation | AM57: Ottawa River Power Corporation | AO57: LARGE USE | AP57: kW
A58: LARGE USE - 3TS | I58: Rate Rider for Disposition of Deferral/Variance Accounts (2013) - effective until April 30, 2014 | AA58: Special Billing Service (sub-metering charge per meter) | AL58: Parry Sound Power Corporation | AM58: Parry Sound Power Corporation | AO58: LARGE USE - 3TS | AP58: kW
A59: LARGE USE - FORD ANNEX | I59: Rate Rider for Disposition of Deferral/Variance Accounts (2013) - effective until April 30, 2015 | AA59: Special meter reads | AL59: Peterborough Distribution Incorporated | AM59: Peterborough Distribution Incorporated | AO59: LARGE USE - FORD ANNEX | AP59: kW
A60: LARGE USE - REGULAR | I60: Rate Rider for Disposition of Deferral/Variance Accounts (2013) - effective until April 30, 2015 - not applicable to Wholesale Market Participants | AA60: Specific Charge for Access to the Power Poles - $/pole/year | AL60: PowerStream Inc. | AM60: PowerStream Inc. | AO60: LARGE USE - REGULAR | AP60: kW
A61: LARGE USE > 5000 KW | I61: Rate Rider for Disposition of Deferral/Variance Accounts (2013) - effective until April 30, 2017 | AA61: Specific Charge for Bell Canada Access to the Power Poles – per pole/year | AL61: PUC Distribution Inc. | AM61: PUC Distribution Inc. | AO61: LARGE USE > 5000 KW | AP61: kW
A62: microFIT | I62: Rate Rider for Disposition of Deferral/Variance Accounts (2013) - effective until August 31, 2014 | AA62: Switching for company maintenance – Charge based on Time and Materials | AL62: Renfrew Hydro Inc. | AM62: Renfrew Hydro Inc. | AO62: microFIT | AP62: $
A63: RESIDENTIAL | I63: Rate Rider for Disposition of Deferral/Variance Accounts (2013) - effective until December 31, 2014 | AA63: Temporary Service – Install & remove – overhead – no transformer | AL63: Rideau St. Lawrence Distribution Inc. | AM63: Rideau St. Lawrence Distribution Inc. | AO63: RESIDENTIAL | AP63: kWh
A64: RESIDENTIAL - HENSALL | I64: Rate Rider for Disposition of Deferral/Variance Accounts (2013) - effective until May 31, 2014 | AA64: Temporary Service – Install & remove – overhead – with transformer | AL64: Sioux Lookout Hydro Inc. | AM64: Sioux Lookout Hydro Inc. | AO64: RESIDENTIAL - HENSALL | AP64: kWh
A65: RESIDENTIAL - HIGH DENSITY [R1] | I65: Rate Rider for Disposition of Deferral/Variance Accounts (2014) - effective until December 31, 2015 | AA65: Temporary Service – Install & remove – underground – no transformer | AL65: St. Thomas Energy Inc. | AM65: St. Thomas Energy Inc. | AO65: RESIDENTIAL - HIGH DENSITY [R1] | AP65: kWh
A66: RESIDENTIAL - LOW DENSITY [R2] | I66: Rate Rider for Disposition of Deferred PILs Variance Account 1562 - effective until March 31, 2016 | AA66: Temporary service install & remove – overhead – no transformer | AL66: Thunder Bay Hydro Electricity Distribution Inc. | AM66: Thunder Bay Hydro Electricity Distribution Inc. | AO66: RESIDENTIAL - LOW DENSITY [R2] | AP66: kWh
A67: RESIDENTIAL - MEDIUM DENSITY [R1] | I67: Rate Rider for Disposition of Deferred PILs Variance Account 1562 (2012) - effective until April 30, 2015 | AA67: Temporary Service Install & Remove – Overhead – With Transformer | AL67: Tillsonburg Hydro Inc. | AM67: Tillsonburg Hydro Inc. | AO67: RESIDENTIAL - MEDIUM DENSITY [R1] | AP67: kWh
A68: RESIDENTIAL - NORMAL DENSITY [R2] | I68: Rate Rider for Disposition of Deferred PILs Variance Account 1562 (2012) - effective until April 30, 2016 | AA68: Temporary Service Install & Remove – Underground – No Transformer | AL68: Toronto Hydro-Electric System Limited | AM68: Toronto Hydro-Electric System Limited | AO68: RESIDENTIAL - NORMAL DENSITY [R2] | AP68: kWh
A69: RESIDENTIAL - TIME OF USE | I69: Rate Rider for Disposition of Deferred PILs Variance Account 1562 (2nd Installment - 2012) - effective until April 30, 2016 | AA69: Temporary service installation and removal – overhead – no transformer | AL69: Veridian Connections Inc. | AM69: Veridian Connections Inc. | AO69: RESIDENTIAL - TIME OF USE | AP69: kWh
A70: RESIDENTIAL - URBAN [UR] | I70: Rate Rider for Disposition of Deferred PILs Variance Account 1562 (per connection) (2012) - effective until April 30, 2015 | AA70: Temporary service installation and removal – overhead – with transformer | AL70: Wasaga Distribution Inc. | AM70: Wasaga Distribution Inc. | AO70: RESIDENTIAL - URBAN [UR] | AP70: kWh
A71: RESIDENTIAL REGULAR | I71: Rate Rider for Disposition of Deferred PILs Variance Account 1562 (per connection) (2012) - effective until April 30, 2016 | AA71: Temporary service installation and removal – underground – no transformer | AL71: Waterloo North Hydro Inc. | AM71: Waterloo North Hydro Inc. | AO71: RESIDENTIAL REGULAR | AP71: kWh
A72: RESIDENTIAL SUBURBAN | I72: Rate Rider for Disposition of Global Adjustment Sub-Account (2011) - effective until April 30, 2015 Applicable only for Non-RPP Customers | AL72: Welland Hydro-Electric System Corp. | AM72: Welland Hydro-Electric System Corp. | AO72: RESIDENTIAL SUBURBAN | AP72: kWh
A73: RESIDENTIAL SUBURBAN SEASONAL | I73: Rate Rider for Disposition of Global Adjustment Sub-Account (2011) - effective until April 30, 2016 Applicable only for Non-RPP Customers | AL73: Wellington North Power Inc. | AM73: Wellington North Power Inc. | AO73: RESIDENTIAL SUBURBAN SEASONAL | AP73: kWh
A74: RESIDENTIAL SUBURBAN YEAR ROUND | I74: Rate Rider for Disposition of Global Adjustment Sub-Account (2012) - effective until April 30, 2014 Applicable only for Non-RPP Customers | AL74: West Coast Huron Energy Inc. | AM74: West Coast Huron Energy Inc. | AO74: RESIDENTIAL SUBURBAN YEAR ROUND | AP74: kWh
A75: RESIDENTIAL URBAN | I75: Rate Rider for Disposition of Global Adjustment Sub-Account (2012) - effective until April 30, 2015 Applicable only for Non-RPP Customers | AL75: Westario Power Inc. | AM75: Westario Power Inc. | AO75: RESIDENTIAL URBAN | AP75: kWh
A76: RESIDENTIAL URBAN YEAR-ROUND | I76: Rate Rider for Disposition of Global Adjustment Sub-Account (2012) - effective until April 30, 2015 Applicatble only for Non-RPP Customers | AL76: Whitby Hydro Electric Corporation | AM76: Whitby Hydro Electric Corporation | AO76: RESIDENTIAL URBAN YEAR-ROUND | AP76: kWh
A77: SEASONAL RESIDENTIAL | I77: Rate Rider for Disposition of Global Adjustment Sub-Account (2012) - effective until April 30, 2016 Applicable only for Non-RPP Customers | AL77: Woodstock Hydro Services Inc. | AM77: Woodstock Hydro Services Inc. | AO77: SEASONAL RESIDENTIAL | AP77: kWh
A78: SEASONAL RESIDENTIAL - HIGH DENSITY [R3] | I78: Rate Rider for Disposition of Global Adjustment Sub-Account (2012) - effective until January 31, 2014. Applicable only for Non-RPP Customers | AO78: SEASONAL RESIDENTIAL - HIGH DENSITY [R3] | AP78: kWh
A79: SEASONAL RESIDENTIAL - NORMAL DENSITY [R4] | I79: Rate Rider for Disposition of Global Adjustment Sub-Account (2012) - effective until June 30, 2014 Applicable only for Non-RPP Customers | AO79: SEASONAL RESIDENTIAL - NORMAL DENSITY [R4] | AP79: kWh
A80: SENTINEL LIGHTING | I80: Rate Rider for Disposition of Global Adjustment Sub-Account (2012) Applicable only for Non-RPP Customers - effective until August 31, 2014 | AO80: SENTINEL LIGHTING | AP80: kW
A81: SMALL COMMERCIAL AND USL - PER CONNECTION | I81: Rate Rider for Disposition of Global Adjustment Sub-Account (2012) Applicable only to Non-RPP Customers - effective until August 31, 2014 | AO81: SMALL COMMERCIAL AND USL - PER CONNECTION | AP81: kWh
A82: SMALL COMMERCIAL AND USL - PER METER | I82: Rate Rider for Disposition of Global Adjustment Sub-Account (2013) - effective until April 30, 2014 Applicable only for Non-RPP Customers | AO82: SMALL COMMERCIAL AND USL - PER METER | AP82: kWh
A83: STANDARD A GENERAL SERVICE AIR ACCESS | I83: Rate Rider for Disposition of Global Adjustment Sub-Account (2013) - effective until April 30, 2015 Applicable only for Non-RPP Customers | AO83: STANDARD A GENERAL SERVICE AIR ACCESS | AP83: kWh
A84: STANDARD A GENERAL SERVICE ROAD/RAIL | I84: Rate Rider for Disposition of Global Adjustment Sub-Account (2013) - effective until April 30, 2015 Applicable only for Non-RPP Customers and excluding Wholesale Market Participants | AO84: STANDARD A GENERAL SERVICE ROAD/RAIL | AP84: kWh
A85: STANDARD A GRID CONNECTED | I85: Rate Rider for Disposition of Global Adjustment Sub-Account (2013) - effective until April 30, 2017 Applicable only for Non-RPP Customers | AO85: STANDARD A GRID CONNECTED | AP85: kWh
A86: STANDARD A RESIDENTIAL AIR ACCESS | I86: Rate Rider For Disposition of Global Adjustment Sub-Account (2013) - effective until August 31, 2014 Applicable only for Non-RPP Customers | AO86: STANDARD A RESIDENTIAL AIR ACCESS | AP86: kWh
A87: STANDARD A RESIDENTIAL ROAD/RAIL | I87: Rate Rider for Disposition of Global Adjustment Sub-Account (2013) - effective until December 31, 2014 Applicable only for Non-RPP Customers | AO87: STANDARD A RESIDENTIAL ROAD/RAIL | AP87: kWh
A88: STANDBY - GENERAL SERVICE 1,000 - 5,000 KW | I88: Rate Rider for Disposition of Global Adjustment Sub-Account (2013) - effective until May 31, 2014 Applicable only for Non-RPP Customers | AO88: STANDBY - GENERAL SERVICE 1,000 - 5,000 KW | AP88: kW
A89: STANDBY - GENERAL SERVICE 50 - 1,000 KW | I89: Rate Rider for Disposition of Global Adjustment Sub-Account (2014) - effective until December 31, 2014. Applicable only for Non-RPP - Class B Customers | AO89: STANDBY - GENERAL SERVICE 50 - 1,000 KW | AP89: kW
A90: STANDBY - LARGE USE | I90: Rate Rider for Disposition of Global Adjustment Sub-Account (2014) - effective until December 31, 2014. Applicable only for Non-RPP Customers | AO90: STANDBY - LARGE USE | AP90: kW
A91: STANDBY DISTRIBUTION SERVICE | I91: Rate Rider for Disposition of Global Adjustment Sub-Account (2014) - effective until December 31, 2014. Applicable only for Non-RPP Customers - Class A Customers | AO91: STANDBY DISTRIBUTION SERVICE | AP91: kW
A92: STANDBY POWER | I92: Rate Rider for Disposition of Global Adjustment Sub-Account (2014) - effective until December 31, 2014. Applicable only for Non-RPP Customers - Interval Metered | AO92: STANDBY POWER | AP92: kW
A93: STANDBY POWER - APPROVED ON AN INTERIM BASIS | I93: Rate Rider for Disposition of Global Adjustment Sub-Account (2014) - effective until December 31, 2014. Applicable only for Non-RPP Customers - Non Interval Metered | AO93: STANDBY POWER - APPROVED ON AN INTERIM BASIS | AP93: kW
A94: STANDBY POWER GENERAL SERVICE 1,500 TO 4,999 KW | I94: Rate Rider for Disposition of Global Adjustment Sub-Account (2014) - effective until December 31, 2015. Applicable only for Non-RPP Customers. | AO94: STANDBY POWER GENERAL SERVICE 1,500 TO 4,999 KW | AP94: kW
A95: STANDBY POWER GENERAL SERVICE 50 TO 1,499 KW | I95: Rate Rider for Disposition of Post Retirement Actuarial Gain - effective until March 31, 2025 | AO95: STANDBY POWER GENERAL SERVICE 50 TO 1,499 KW | AP95: kW
A96: STANDBY POWER GENERAL SERVICE LARGE USE | I96: Rate Rider for Disposition of Residual Hisotrical Smart Meter Costs - effective until April 30, 2015 | AO96: STANDBY POWER GENERAL SERVICE LARGE USE | AP96: kW
A97: STREET LIGHTING | I97: Rate Rider for Disposition of Residual Hisotrical Smart Meter Costs - effective until April 30, 2017 | AO97: STREET LIGHTING | AP97: kW
A98: SUB TRANSMISSION [ST] | I98: Rate Rider for Disposition of Residual Historical Smart Meter Costs - effective until April 30, 2014 | AO98: SUB TRANSMISSION [ST] | AP98: kW
A99: UNMETERED SCATTERED LOAD | I99: Rate Rider for Disposition of Residual Historical Smart Meter Costs - effective until April 30, 2016 | AO99: UNMETERED SCATTERED LOAD | AP99: kWh
A100: URBAN GENERAL SERVICE DEMAND BILLED (50 KW AND ABOVE) [UGD] | I100: Rate Rider for Disposition of Residual Historical Smart Meter Costs - effective until August 31, 2014 | AO100: URBAN GENERAL SERVICE DEMAND BILLED (50 KW AND ABOVE) [UGD] | AP100: kW
A101: URBAN GENERAL SERVICE ENERGY BILLED (LESS THAN 50 KW) [UGE] | I101: Rate Rider for Disposition of Residual Historical Smart Meter Costs - effective until August 31, 2015 | AO101: URBAN GENERAL SERVICE ENERGY BILLED (LESS THAN 50 KW) [UGE] | AP101: kWh
A102: WESTPORT SEWAGE TREATMENT PLANT | I102: Rate Rider for Disposition of Residual Historical Smart Meter Costs - effective until December 31, 2014 | AO102: WESTPORT SEWAGE TREATMENT PLANT | AP102: kW
A103: YEAR-ROUND RESIDENTIAL - R2 | I103: Rate Rider for Disposition of Residual Historical Smart Meter Costs – effective until December 31, 2014 | AO103: YEAR-ROUND RESIDENTIAL - R2 | AP103: kWh
I104: Rate Rider for Disposition of Residual Historical Smart Meter Costs - effective until December 31, 2015
I105: Rate Rider for Disposition of Residual Historical Smart Meter Costs - effective until December 31, 2016
I106: Rate Rider for Disposition of Residual Historical Smart Meter Costs - effective until October 31, 2014
I107: Rate Rider for Disposition of Residual Historical Smart Meter Costs - effective until September 30, 2014
I108: Rate Rider for Disposition of Residual Historical Smart Meter Costs - Non-Interval Metered - effective until April 30, 2014
I109: Rate Rider for Disposition of Residual Historical Smart Meter Costs 2 - in effect until the effective date of the next cost of service-based rate order
I110: Rate Rider for Disposition of Residual Historical Smart Meter Costs 3 - in effect until the effective date of the next cost of service-based rate order
I111: Rate Rider for Disposition of Residual Incremental Historical Smart Meter Costs - effective until August 31, 2015
I112: Rate Rider for Disposition of Stranded Meter costs - effective until April 30, 2015
I113: Rate Rider for Disposition of Stranded Meter Costs - effective until April 30, 2016
I114: Rate Rider for Disposition of Stranded Meter Costs - effective until April 30, 2017
I115: Rate Rider for Global Adjustment Sub Account Disposition - effective until April 30, 2016 Applicable only for Non RPP Customers
I116: Rate Rider for Global Adjustment Sub-Account Disposition (2014) - effective until April 28, 2016 Applicable only for Non-RPP Customers
I117: Rate Rider for Global Adjustment Sub-Account Disposition (2014) - effective until April 30, 2015 Applicable only for Non-RPP Customers
I118: Rate Rider for Global Adjustment Sub-Account Disposition (2014) - effective until December 30, 2015 Applicable only for Non-RPP Customers
I119: Rate Rider for Global Adjustment Sub-Account Disposition (2014) - effective until December 31, 2014 Applicable only for Non-RPP Customers
I120: Rate Rider for Global Adjustment Sub-Account Disposition (2014) - effective until December 31, 2015 Applicable only for Non-RPP Customers
I121: Rate Rider for Global Adjustment Sub-Account Disposition Applicable only for Non-RPP Customers - effective until April 30, 2015
I122: Rate Rider for Incremental Capital - Distribution Volumetric - effective until April 30, 2016
I123: Rate Rider for Incremental Capital - Service Charge - effective until April 30, 2016
I124: Rate Rider for Incremental Capital (2012) - effective until April 30, 2015
I125: Rate Rider for Lost Revenue Adjustment Mechanism Variance Account (LRAMVA) Recovery (2012 CDM Activities) - effective until April 30, 2015
I126: Rate Rider for Recover of Residual Historical Smart meter Costs - effective until June 30, 2014
I127: Rate Rider for Recovery of CGAAP/CWIP Differential - in effect until December 31, 2016
I128: Rate Rider for Recovery of Foregone Revenue - effective until April 30, 2015
I129: Rate Rider for Recovery of Forgone Revenue - effective until April 30, 2015
I130: Rate Rider for Recovery of Forgone Revenue - effective until December 31, 2014
I131: Rate Rider for Recovery of Green Energy Act related costs - effective until December 31, 2014
I132: Rate Rider for Recovery of Incremental Capital (2013) - in effect until the effective date of the next cost of service-based rate order
I133: Rate Rider for Recovery of Incremental Capital (2013) - in effect until the effective date of the next cost of service-based rate order
I134: Rate Rider for Recovery of Incremental Capital (2013) (per connection) - in effect until the effective date of the next cost of service-based rate order
I135: Rate Rider for Recovery of Incremental Capital (2013) (per connection)- in effect until the effective date of the next cost of service-based rate order
I136: Rate Rider for Recovery of Incremental Capital Costs
I137: Rate Rider for Recovery of Incremental Capital Costs - effective until April 30, 2015
I138: Rate Rider for Recovery of Incremental Capital Module Costs (2014) - in effect until the effective date of the next cost of service-based rate order
I139: Rate Rider for Recovery of Incremental Capital Module Costs (2014) - in effect until the effective date of the next cost of service-based rate order
I140: Rate Rider for Recovery of Lost Revenue Adjustment Mechanism ( LRAM)/Shared Savings Mechanism (SSM) (2012) - effective until August 31, 2014
I141: Rate Rider for Recovery of Lost Revenue Adjustment Mechanism (2013) - effective until December 31, 2014
I142: Rate Rider for Recovery of Lost Revenue Adjustment Mechanism (LRAM) - effective until April 30, 2016
I143: Rate Rider for Recovery of Lost Revenue Adjustment Mechanism (LRAM) (pre-2011 CDM Activities) - effective until April 30, 2015
I144: Rate Rider for Recovery of Lost Revenue Adjustment Mechanism (LRAM) (pre-2011 CDM Activities) (2013) - effective until April 30, 2015
I145: Rate Rider for Recovery of Lost Revenue Adjustment Mechanism (LRAM)/Shared Savings
I146: Rate Rider for Recovery of Lost Revenue Adjustment Mechanism (LRAM)/Shared Savings Mechanism (SSM) - effective until December 31, 2018 and applicable in the service area excluding the former service areas of Clinton Power and West Perth Power
I147: Rate Rider for Recovery of Lost Revenue Adjustment Mechanism (LRAM)/Shared Savings Mechanism (SSM) - effective until December 31, 2014 and applicable in the service area excluding the former service areas of Clinton Power and West Perth Power
I148: Rate Rider for Recovery of Lost Revenue Adjustment Mechanism (LRAM)/Shared Savings Mechanism (SSM) - effective until December 31, 2014 and applicable only in the former service area of Clinton Power
I149: Rate Rider for Recovery of Lost Revenue Adjustment Mechanism (LRAM)/Shared Savings Mechanism (SSM) - effective until December 31, 2014 and applicable only in the former service area of West Perth Power
I150: Rate Rider for Recovery of Lost Revenue Adjustment Mechanism (LRAM)/Shared Savings Mechanism (SSM) - effective until December 31, 2014 and applicable in the service area excluding the former service area of Clinton Power
I151: Rate Rider for Recovery of Lost Revenue Adjustment Mechanism (LRAM)/Shared Savings Mechanism (SSM) - effective until March 31, 2016
I152: Rate Rider for Recovery of Lost Revenue Adjustment Mechanism (LRAM)/Shared Savings Mechanism (SSM) (2012) - effective until August 31, 2014
I153: Rate Rider for Recovery of Lost Revenue Adjustment Mechanism (LRAM)/Shared Savings Mechanism (SSM) Recovery - effective until April 30, 2015
I154: Rate Rider for Recovery of Lost Revenue Adjustment Mechanism Variance Account (LRAMVA) (2014) - effective until April 30, 2015
I155: Rate Rider for Recovery of Residual Historical Smart Meter Costs - effective July 1, 2012 - April 30, 2016
I156: Rate Rider for Recovery of Smart Meter Incremental Revenue Requirement - effective until the date of the next cost of service-based rate order
I157: Rate Rider for Recovery of Smart Meter Incremental Revenue Requirement - effective until the effective date of the next cost of service-based rate order, or October 31, 2017, whichever occurs earlier
I158: Rate Rider for Recovery of Smart Meter Incremental Revenue Requirement - in effect until the effective date of the next cost of service-based rate order
I159: Rate Rider for Recovery of Smart Meter Incremental Revenue Requirement - Non-Interval Metered - in effect until the effective date of the next cost of service-based rate order
I160: Rate Rider for Recovery of Smart Meter Incremental Revenue Requirements - in effect until the effective date of the next cost of service application
I161: Rate Rider for Recovery of Smart Meter Stranded Assets - effective until April 30, 2016
I162: Rate Rider for Recovery of Storm Damage Costs - effective until August 31, 2017
I163: Rate Rider for Recovery of Stranded Assets - effective until April 30, 2016
I164: Rate Rider for Recovery of Stranded Meter Assets - effective July 1, 2012 - April 30, 2016
I165: Rate Rider for Recovery of Stranded Meter Assets – effective until April 30, 2015
I166: Rate Rider for Recovery of Stranded Meter Assets - effective until April 30, 2016
I167: Rate Rider for Recovery of Stranded Meter Assets - effective until April 30, 2017
I168: Rate Rider for Recovery of Stranded Meter Assets - effective until August 31, 2015
I169: Rate Rider for Recovery of Stranded Meter Assets - effective until August 31, 2017
I170: Rate Rider for Recovery of Stranded Meter Assets - effective until December 31, 2014
I171: Rate Rider for Recovery of Stranded Meter Assets - effective until December 31, 2015
I172: Rate Rider for Recovery of Stranded Meter Assets - effective until June 30, 2016
I173: Rate Rider for Recovery of Stranded Meter Assets - effective until March 31, 2016
I174: Rate Rider for Recovery of Stranded Meter Assets - effective until May 31, 2014
I175: Rate Rider for Reversal of Deferral/Variance Account Disposition (2011) - effective until April 30, 2015
I176: Rate Rider for Smart Meter Disposition - effective until April 30, 2016
I177: Rate Rider for Smart Meter Incremental Revenue Requirement - in effect until the effective date of the next cost of service-based rate order
I178: Rate Rider for Smart Metering Entity Charge - effective until October 31, 2018
I179: Rate Rider for Stranded Meter Cost Recovery - effective until April 30, 2017
I180: Rate Rider for Tax Change
I181: Rate Rider for Tax Change - effective until April 30, 2015
I182: Rate Rider for Tax Change (2014) - effective until April 30, 2015
I183: Retail Transmission Rate - Line and Transformation Connection Service Rate
I184: Retail Transmission Rate - Line and Transformation Connection Service Rate - (less than 1,000 kW)
I185: Retail Transmission Rate - Line and Transformation Connection Service Rate - Interval Metered
I186: Retail Transmission Rate - Line and Transformation Connection Service Rate - Interval Metered (1,000 to 4,999 kW)
I187: Retail Transmission Rate - Line and Transformation Connection Service Rate - Interval Metered (less than 1,000 kW)
I188: Retail Transmission Rate - Line and Transformation Connection Service Rate - Interval Metered < 1,000 kW
I189: Retail Transmission Rate - Line and Transformation Connection Service Rate FOR ALL SERVICE AREAS EXCEPT HENSALL
I190: Retail Transmission Rate - Line and Transformation Connection Service Rate - Interval Metered > 1,000 kW
I191: Retail Transmission Rate - Line Connection Service Rate
I192: Retail Transmission Rate - Network Service Rate
I193: Retail Transmission Rate - Network Service Rate - (less than 1,000 kW)
I194: Retail Transmission Rate - Network Service Rate - Interval Metered
I195: Retail Transmission Rate - Network Service Rate - Interval Metered (1,000 to 4,999 kW)
I196: Retail Transmission Rate - Network Service Rate - Interval Metered (less than 1,000 kW)
I197: Retail Transmission Rate - Network Service Rate - Interval Metered > 1,000 kW
I198: Retail Transmission Rate - Transformation Connection Service Rate
I199: Rider for Global Adjustment Sub-Account Disposition (2012) - effective until April 30, 2016 Applicable only for Non-RPP Customers
I200: Rural or Remote Electricity Rate Protection Charge (RRRP)
... 14 more rows
